Workbook

Sheet Analyze
A1: 1 | B1: nlayer | C1: 3 | D1: 4 | E1: 5 | F1: 6 | G1: 7 | H1: 8 | I1: 9 | J1: 10 | K1: 11 | L1: 12 | M1: 13 | N1: 14 | O1: 15 | P1: 16 | Q1: 17 | R1: 18 | S1: 19 | T1: 20 | U1: 21 | V1: 22 | W1: 23 | X1: 24 | Y1: 25 | Z1: 26 | AA1: 27 | AB1: 28 | AC1: 29 | AD1: 30 | AE1: 31 | AF1: 32 | AG1: 33 | AH1: 34 | AI1: 35 | AJ1: 36 | AK1: 37 | AL1: 38 | AM1: 39 | AN1: 40 | AO1: 41 | AP1: 42 | AQ1: 43 | AR1: 44 | AS1: 45 | AT1: 46 | AU1: 47 | AV1: 48 | AW1: 49 | AX1: 50 | AY1: 51 | AZ1: 52 | BA1: 53 | BB1: 54 | BC1: 55 | BD1: 56 | BE1: 57 | BF1: 58 | BG1: 59 | BH1: 60
A2: 12.5 | B2: h
A3: 6 | B3: d
A4: 1 | B4: dz | D4: Surcharge (Dead) (kPa) | E4: 0
B5: wt | D5: Surcharge (Live) (kPa) | E5: 200 | G5: Depth (m) | H5: g (kN/m3) | I5: gsat (kN/m3) | J5: C (kPa) | K5: фa | L5: фp | M5: δ | N5: Wt | O5: Ka | P5: Kp | Q5: Kea | R5: Kep | S5: ξ (Radians) | T5: σza (kPa) | U5: σz'a (kPa) | V5: σzp (kPa) | W5: σz'p (kPa) | X5: Pa (kPa) | Y5: Pp (Kpa) | Z5: Net Pressure (Kpa) | AA5: WaterPressure (kPA) | AB5: T-Distribution (kPa) | AH5: Depth (m) | AI5: Angle (Degrees) | AJ5: Spacing (m) | AK5: Z1 (m) | AL5: Z2 (m) | AN5: Strut Force (kN/m) | AO5: Strut Force Horizontal (kN/m) | BA5: θa | BB5: θp | BK5: puller | BL5: fhwa | BM5: T*(clay) | BN5: T*(sand) | BO5: T(stiff) | BP5: T(sand) | BQ5: T(soft)
A6: 19 | G6: 0 | H6: 19 | I6: 19 | J6: 40 | K6: 36 | M6: 0 | O6: =IF(G6="",(""),((SIN(RADIANS($E$9+BA6-K6)))^2)*((SIN(RADIANS($E$9)))^-2)*((COS(RADIANS(BA6)))^-1)*((SIN((RADIANS($E$9+BA6+M6))))^-1)/(1+((SIN(RADIANS(K6+M6)))*(SIN((RADIANS(K6-$E$7-BA6))/(SIN(RADIANS($E$9-$E$7)))/(SIN((RADIANS($E$9+BA6+M6)))))))^0.5)^2) -> 0.2596161837 | P6: =IF(L6="",(""),((SIN(RADIANS($E$9-BB6+L6)))^2)*((SIN(RADIANS($E$9)))^-2)*((COS(RADIANS(BB6)))^-1)*((SIN((RADIANS($E$9-BB6-M6))))^-1)/(1-((SIN(RADIANS(L6+M6)))*(SIN((RADIANS(L6+$E$7-BB6))/(SIN(RADIANS($E$9-$E$7)))/(SIN((RADIANS($E$9-BB6-M6)))))))^0.5)^2) ->  | Q6: =IF(G6="","",(IF(N6="",$E$11,($E$11*T6/U6)))) -> 0 | R6: =IF(L6="","",(IF(G6="","",IF(G6=h,(R7),(IF(N6="",$E$11,($E$11*V6/W6))))))) ->  | S6: =IF(G6="","",0.5*PI()-ATAN((-TAN(RADIANS(K6+M6+(90-$E$9)-$E$7)))+(1/(COS(RADIANS(K6+M6+(90-$E$9)-$E$7))))*((COS((RADIANS(90-$E$9+M6+BA6))))^0.5)*((SIN(RADIANS(K6+M6)))^0.5)*((COS(RADIANS(90-$E$9-$E$7)))^-0.5)*((SIN(RADIANS(K6-$E$7-BA6)))^-0.5)))+$E$7 -> 1.099557429 | T6: =IF(G6=0,(0.5*(G6-G6)*H6+$E$5+$E$4),(IF(G6="",(""),(T5+(G6-G5)*H6)))) -> 200 | U6: =IF(G6=0,(0.5*(G6+G6)*H6+$E$5+$E$4),(IF(G7="",(""),(U5+(G6-G5)*H6)))) -> 200 | V6: =IF(G6<h,(""),(IF(G6<h+dzd,(0),(IF(N6="",(V5+H6*(G6-G5)),(V5+(I6)*(G6-G5))))))) ->  | W6: =IF(G6<h,(""),(IF(G6<h+dzd,(0),(IF(N6="",(W5+H6*(G6-G5)),(W5+(I6-9.81)*(G6-G5))))))) ->  | X6: =IF(G6="",(""),((O6*U6-2*J6*(O6)^0.5))*COS(RADIANS(M6))) -> 11.16120078 | Y6: =IF(G6<h,(""),((-P6*W6-2*J6*(P6^0.5))*COS(RADIANS(M6)))) ->  | Z6: =IF(Y6="",X6,X6+Y6) -> 11.16120078 | AA6: =IF(N6="",(""),IF(G6>h,AA5,((G6-nz)*9.81))) ->  | AB6: =IF(G6="","",IF(G6>hd,0,IF($A$27=1,BK6,IF($A$27=2,BL6,IF($A$27=3,BM6,IF($A$27=4,BN6+ka*($E$4+$E$5),IF($A$27=5,BP6,IF($A$27=6,BO6,BQ6)))))))) -> 0 | AG6: Strut 1 | AH6: 0 | AI6: 35 | AJ6: 6 | AK6: 0 | AL6: =IF($A$28=1,IF(AH6="",(""),(IF(AH7="",(AH6+0.5*(h+d-(h+d-$AK$21)-AH6)),(AH6+0.5*(AH7-AH6))))),IF($A$28=2,IF(AH6="","",IF(AH7="",$AK$21,AH7)),(""))) -> 1.9 | AN6: 26.58490364 | AO6: 21.77883523 | AP6: 0 | BA6: =ATAN(Q6)/0.017453 -> 0 | BB6: =ATAN(Q6)/0.017453 -> 0 | BD6: =IF(AH6="",0,AH6) -> 0 | BE6: =BD6 -> 0 | BG6: 0 | BH6: =IF(AN6="",0,AN6) -> 26.58490364 | BK6: =IF(G6="","",IF(G6>hd,0,(IF(G6<0.2*(hd),(1.6*($AH$20+$AH$21)/(hd)/0.2/(hd)*G6),(IF(G6<0.8*(hd),(1.6*($AH$20+$AH$21)/(hd)),(1.6*($AH$20+$AH$21)/(hd)-1.6*($AH$20+$AH$21)/(hd)/0.2/(hd)*(G6-0.8*(hd))))))))) -> 0 | BL6: =IF(G6="","",IF(G6>hd,0,(IF(G6<((2/3)*$AH$6),(1.3*($AH$20+$AH$21)/(hd-(1/3)*($AH$6+(hd-MAX($AP$6:$AP$15))))*G6/(2/3*$AH$6)),(IF(G6<(h-2/3*(hd-MAX($AP$6:$AP$15))),1.3*($AH$20+$AH$21)/(hd-1/3*($AH$6+(hd-MAX($AP$6:$AP$15)))),1.3*($AH$20+$AH$21)/(hd-1/3*($AH$6+(hd-MAX($AP$6:$AP$15))))*(1-(G6-(hd-2/3*(hd-MAX($AP$6:$AP$15))))/(2/3*(hd-MAX($AP$6:$AP$15)))))))))) -> 41.367607 | BM6: =IF(G6="","",IF(G6>hd,0,(IF(G6<(0.6667*$AH$6),(0.3*g*hd*G6/(0.6667*$AH$6)),(IF(G6<(hd-0.6667*(hd-MAX($AP$6:$AP$15))),0.3*g*hd,0.3*g*hd*(1-(G6-(hd-0.6667*(hd-MAX($AP$6:$AP$15))))/(0.6667*(hd-MAX($AP$6:$AP$15)))))))))) -> 105.45 | BN6: =IF(G6="","",IF(G6>hd,0,(IF(G6<((2/3)*$AH$6),(0.65*ka*g*hd*hd/(hd-(1/3)*($AH$6+(hd-MAX($AP$6:$AP$15))))*G6/(2/3*$AH$6)),(IF(G6<(h-2/3*(hd-MAX($AP$6:$AP$15))),0.65*ka*g*hd*hd/(hd-1/3*($AH$6+(hd-MAX($AP$6:$AP$15)))),0.65*ka*g*hd*hd/(hd-1/3*($AH$6+(hd-MAX($AP$6:$AP$15))))*(1-(G6-(hd-2/3*(hd-MAX($AP$6:$AP$15))))/(2/3*(hd-MAX($AP$6:$AP$15)))))))))) -> 67.45957623 | BO6: =IF(G6="","",IF(G6>hd,0,(IF(G6<(0.25*hd),(0.3*g*h*G6/(0.25*hd)),(IF(G6<(0.75*hd),0.3*g*h,0.3*g*h*(1-(G6-0.75*hd)/0.25/hd))))))) -> 0 | BP6: =IF(G6>hd,0,IF(G6="","",0.65*ka*g*hd)) -> 59.31580757 | BQ6: =IF(G6="","",IF(G6>hd,0,(IF(G6<(0.25*hd),(1-4*ca/g/hd)*g*hd*G6/(0.25*hd),((1-4*ca/g/hd)*g*hd))))) -> 0
A7: 185 | B7: nz | D7: β (Degrees): | E7: 0 | G7: 0.1 | H7: 19 | I7: 19 | J7: 40 | K7: 36 | M7: 0 | O7: =IF(G7="",(""),((SIN(RADIANS($E$9+BA7-K7)))^2)*((SIN(RADIANS($E$9)))^-2)*((COS(RADIANS(BA7)))^-1)*((SIN((RADIANS($E$9+BA7+M7))))^-1)/(1+((SIN(RADIANS(K7+M7)))*(SIN((RADIANS(K7-$E$7-BA7))/(SIN(RADIANS($E$9-$E$7)))/(SIN((RADIANS($E$9+BA7+M7)))))))^0.5)^2) -> 0.2596161837 | P7: =IF(L7="",(""),((SIN(RADIANS($E$9-BB7+L7)))^2)*((SIN(RADIANS($E$9)))^-2)*((COS(RADIANS(BB7)))^-1)*((SIN((RADIANS($E$9-BB7-M7))))^-1)/(1-((SIN(RADIANS(L7+M7)))*(SIN((RADIANS(L7+$E$7-BB7))/(SIN(RADIANS($E$9-$E$7)))/(SIN((RADIANS($E$9-BB7-M7)))))))^0.5)^2) ->  | Q7: =IF(G7="","",(IF(N7="",$E$11,($E$11*T7/U7)))) -> 0 | S7: =IF(G7="","",0.5*PI()-ATAN((-TAN(RADIANS(K7+M7+(90-$E$9)-$E$7)))+(1/(COS(RADIANS(K7+M7+(90-$E$9)-$E$7))))*((COS((RADIANS(90-$E$9+M7+BA7))))^0.5)*((SIN(RADIANS(K7+M7)))^0.5)*((COS(RADIANS(90-$E$9-$E$7)))^-0.5)*((SIN(RADIANS(K7-$E$7-BA7)))^-0.5)))+$E$7 -> 1.099557429 | T7: =IF(G7="",(""),(IF(N7="",(T6+(G7-G6)*H6),(T6+(G7-G6)*(I6))))) -> 201.9 | U7: =IF(G7="",(""),(IF(N7="",(U6+(G7-G6)*H6),(U6+(G7-G6)*(I6-9.81))))) -> 201.9 | V7: =IF(G7<h,(""),(IF(G7<h+dzd,(0),(IF(N7="",(V6+H7*(G7-G6)),(V6+(I7)*(G7-G6))))))) ->  | W7: =IF(G7<h,(""),(IF(G7<h+dzd,(0),(IF(N7="",(W6+H7*(G7-G6)),(W6+(I7-9.81)*(G7-G6))))))) ->  | X7: =IF(G7="",(""),((O7*U7-2*J7*(O7)^0.5))*COS(RADIANS(M7))) -> 11.65447153 | Z7: =IF(Y7="",X7,X7+Y7) -> 11.65447153 | AB7: 1.20993529 | AG7: Strut 2 | AH7: 3.8 | AI7: 15 | AJ7: 3 | AK7: =IF(AH7="","",IF(A28=2,IF(AH7="",(""),(AH7)),AL6)) -> 1.9 | AL7: 5.8 | AN7: 165.0927606 | AO7: 159.4694713 | AP7: 3.8 | BA7: =ATAN(Q7)/0.017453 -> 0 | BB7: =ATAN(Q7)/0.017453 -> 0 | BD7: 3.8 | BE7: =BD7 -> 3.8 | BG7: 0 | BH7: 165.0927606 | BK7: 1.20993529 | BL7: 41.367607 | BM7: 105.45 | BN7: =IF(G7="","",IF(G7>hd,0,(IF(G7<((2/3)*$AH$6),(0.65*ka*g*hd*hd/(hd-(1/3)*($AH$6+(hd-MAX($AP$6:$AP$15))))*G7/(2/3*$AH$6)),(IF(G7<(h-2/3*(hd-MAX($AP$6:$AP$15))),0.65*ka*g*hd*hd/(hd-1/3*($AH$6+(hd-MAX($AP$6:$AP$15)))),0.65*ka*g*hd*hd/(hd-1/3*($AH$6+(hd-MAX($AP$6:$AP$15))))*(1-(G7-(hd-2/3*(hd-MAX($AP$6:$AP$15))))/(2/3*(hd-MAX($AP$6:$AP$15)))))))))) -> 67.45957623 | BO7: 1.540540541 | BP7: 59.31580757 | BQ7: 4.140540541
G8: 0.2 | H8: 19 | I8: 19 | J8: 40 | K8: 36 | M8: 0 | O8: 0.2596161837 | Q8: 0 | S8: 1.099557429 | T8: =IF(G8="",(""),(IF(N8="",(T7+(G8-G7)*H7),(T7+(G8-G7)*(I7))))) -> 203.8 | U8: =IF(G8="",(""),(IF(N8="",(U7+(G8-G7)*H7),(U7+(G8-G7)*(I7-9.81))))) -> 203.8 | X8: =IF(G8="",(""),((O8*U8-2*J8*(O8)^0.5))*COS(RADIANS(M8))) -> 12.14774227 | Z8: 12.14774227 | AA8: =IF(N8="",(""),IF(G8>h,AA7,((G8-nz)*9.81))) ->  | AB8: 2.419870581 | AG8: Strut 3 | AH8: 7.8 | AI8: 15 | AJ8: 3 | AK8: 5.8 | AL8: 9.8 | AN8: 185.3848905 | AO8: 179.070423 | AP8: 7.8 | BA8: 0 | BB8: 0 | BD8: 7.8 | BE8: 7.8 | BG8: 0 | BH8: 185.3848905 | BK8: 2.419870581 | BL8: 41.367607 | BM8: 105.45 | BN8: 67.45957623 | BO8: 3.081081081 | BP8: 59.31580757 | BQ8: 8.281081081
A9: 4 | B9: nstrut | D9: α (Degrees): | E9: 90 | G9: 0.3 | H9: 19 | I9: 19 | J9: 40 | K9: 36 | M9: 0 | O9: 0.2596161837 | Q9: 0 | S9: 1.099557429 | T9: 205.7 | U9: 205.7 | X9: 12.64101302 | Z9: 12.64101302 | AB9: 3.629805871 | AG9: Strut 4 | AH9: 11.8 | AI9: 15 | AJ9: 3 | AK9: 9.8 | AL9: 14.00179404 | AN9: 194.654135 | AO9: 188.0239441 | AP9: 11.8 | BA9: 0 | BB9: 0 | BD9: 11.8 | BE9: 11.8 | BG9: 0 | BH9: 194.654135 | BK9: 3.629805871 | BL9: 41.367607 | BM9: 105.45 | BN9: 67.45957623 | BO9: 4.621621622 | BP9: 59.31580757 | BQ9: 12.42162162
A10: 1 | B10: sdd | G10: 0.4 | H10: 19 | I10: 19 | J10: 40 | K10: 36 | M10: 0 | O10: 0.2596161837 | Q10: 0 | S10: 1.099557429 | T10: 207.6 | U10: 207.6 | X10: 13.13428377 | Z10: 13.13428377 | AB10: 4.839741162 | AG10: Strut 5 | BA10: 0 | BB10: 0 | BD10: 0 | BE10: 0 | BG10: 0 | BH10: 0 | BK10: 4.839741162 | BL10: 41.367607 | BM10: 105.45 | BN10: 67.45957623 | BO10: 6.162162162 | BP10: 59.31580757 | BQ10: 16.56216216
D11: Ke | E11: 0 | G11: 0.5 | H11: 19 | I11: 19 | J11: 40 | K11: 36 | M11: 0 | O11: 0.2596161837 | Q11: 0 | S11: 1.099557429 | T11: 209.5 | U11: 209.5 | X11: 13.62755452 | Z11: 13.62755452 | AB11: 6.049676452 | AG11: Strut 6 | BA11: 0 | BB11: 0 | BD11: 0 | BE11: 0 | BG11: 0 | BH11: 0 | BK11: 6.049676452 | BL11: 41.367607 | BM11: 105.45 | BN11: 67.45957623 | BO11: 7.702702703 | BP11: 59.31580757 | BQ11: 20.7027027
A12: 28 | B12: Z1 | G12: 0.6 | H12: 19 | I12: 19 | J12: 40 | K12: 36 | M12: 0 | O12: 0.2596161837 | Q12: 0 | S12: 1.099557429 | T12: 211.4 | U12: 211.4 | X12: 14.12082527 | Z12: 14.12082527 | AB12: 7.259611743 | AG12: Strut 7 | BA12: 0 | BB12: 0 | BD12: 0 | BE12: 0 | BG12: 0 | BH12: 0 | BK12: 7.259611743 | BL12: 41.367607 | BM12: 105.45 | BN12: 67.45957623 | BO12: 9.243243243 | BP12: 59.31580757 | BQ12: 24.84324324
A13: 28 | B13: Z2 | D13: γave (kN/m3) | E13: =(SUM(H6:H1010))/($A$7+1) -> 19 | G13: 0.7 | H13: 19 | I13: 19 | J13: 40 | K13: 36 | M13: 0 | O13: 0.2596161837 | Q13: 0 | S13: 1.099557429 | T13: 213.3 | U13: 213.3 | X13: 14.61409602 | Z13: 14.61409602 | AB13: 8.469547033 | AG13: Strut 8 | BA13: 0 | BB13: 0 | BD13: 0 | BE13: 0 | BG13: 0 | BH13: 0 | BK13: 8.469547033 | BL13: 41.367607 | BM13: 105.45 | BN13: 67.45957623 | BO13: 10.78378378 | BP13: 59.31580757 | BQ13: 28.98378378
G14: 0.8 | H14: 19 | I14: 19 | J14: 40 | K14: 36 | M14: 0 | O14: 0.2596161837 | Q14: 0 | S14: 1.099557429 | T14: 215.2 | U14: 215.2 | X14: 15.10736677 | Z14: =IF(Y14="",X14,X14+Y14) -> 15.10736677 | AB14: 9.679482324 | AG14: Strut 9 | BA14: 0 | BB14: 0 | BD14: 0 | BE14: 0 | BG14: 0 | BH14: 0 | BK14: 9.679482324 | BL14: 41.367607 | BM14: 105.45 | BN14: 67.45957623 | BO14: 12.32432432 | BP14: 59.31580757 | BQ14: 33.12432432
A15: 125 | B15: nzh | D15: Kaave | E15: =(SUM(O6:O1007))/($A$7+1) -> 0.2596161837 | G15: 0.9 | H15: 19 | I15: 19 | J15: 40 | K15: 36 | M15: 0 | O15: 0.2596161837 | Q15: 0 | S15: 1.099557429 | T15: 217.1 | U15: 217.1 | X15: 15.60063752 | Z15: 15.60063752 | AB15: 10.88941761 | AG15: Strut 10 | BA15: 0 | BB15: 0 | BD15: 0 | BE15: 0 | BG15: 0 | BH15: 0 | BK15: 10.88941761 | BL15: 41.367607 | BM15: 105.45 | BN15: 67.45957623 | BO15: 13.86486486 | BP15: 59.31580757 | BQ15: 37.26486486
A16: 60 | B16: nzd | G16: 1 | H16: 19 | I16: 19 | J16: 40 | K16: 36 | M16: 0 | O16: 0.2596161837 | Q16: 0 | S16: 1.099557429 | T16: 219 | U16: 219 | X16: 16.09390827 | Z16: 16.09390827 | AB16: 12.0993529 | BA16: 0 | BB16: 0 | BK16: 12.0993529 | BL16: 41.367607 | BM16: 105.45 | BN16: 67.45957623 | BO16: 15.40540541 | BP16: 59.31580757 | BQ16: 41.40540541
A17: 0.1 | B17: dzh | D17: Cave (kPa) | E17: =(SUM(J6:J1009))/($A$7+1) -> 40 | G17: 1.1 | H17: 19 | I17: 19 | J17: 40 | K17: 36 | M17: 0 | O17: 0.2596161837 | Q17: 0 | S17: 1.099557429 | T17: 220.9 | U17: 220.9 | X17: 16.58717902 | Z17: 16.58717902 | AB17: 13.3092882 | AN17: Distribution Method: | AO17: =IF(A27=1,"Puller",IF(A27=2,"FHWA",IF(A27=3,"Terzaghi (Clay)","Terzaghi (Sand)"))) -> Puller | BA17: 0 | BB17: 0 | BD17: 0 | BE17: 0 | BK17: 13.3092882 | BL17: 41.367607 | BM17: 105.45 | BN17: 67.45957623 | BO17: 16.94594595 | BP17: 59.31580757 | BQ17: 45.54594595
A18: 0.1 | B18: dzd | G18: 1.2 | H18: 19 | I18: 19 | J18: 40 | K18: 36 | M18: 0 | O18: 0.2596161837 | Q18: 0 | S18: 1.099557429 | T18: 222.8 | U18: 222.8 | X18: 17.08044976 | Z18: 17.08044976 | AB18: 14.51922349 | AJ18: Hydroststic Force (kN) | AK18: 0 | AQ18: FS: | AR18: =AK20/(AK19+AK18-SUM(AO6:AO15)) -> 11.65907871 | BA18: 0 | BB18: 0 | BD18: =h+d -> 18.5 | BE18: 0 | BK18: 14.51922349 | BL18: 41.367607 | BM18: 105.45 | BN18: 67.45957623 | BO18: 18.48648649 | BP18: 59.31580757 | BQ18: 49.68648649
G19: 1.3 | H19: 19 | I19: 19 | J19: 40 | K19: 36 | M19: 0 | O19: 0.2596161837 | Q19: 0 | S19: 1.099557429 | T19: 224.7 | U19: 224.7 | X19: 17.57372051 | Z19: 17.57372051 | AB19: 15.72915878 | AJ19: Area(kN) | AK19: 662.5605651 | AN19: Strut Method: | AO19: =IF(A28=1,"Half Method",IF(A28=2,"Underneath","Hinge Method")) -> Half Method | BA19: 0 | BB19: 0 | BK19: 15.72915878 | BL19: 41.367607 | BM19: 105.45 | BN19: 67.45957623 | BO19: 20.02702703 | BP19: 59.31580757 | BQ19: 53.82702703
A20: 1 | B20: γ(kN/m3) | G20: 1.4 | H20: 19 | I20: 19 | J20: 40 | K20: 36 | M20: 0 | O20: 0.2596161837 | Q20: 0 | S20: 1.099557429 | T20: 226.6 | U20: 226.6 | X20: 18.06699126 | Z20: 18.06699126 | AB20: 16.93909407 | AG20: Pa(kN) | AH20: 517.6254415 | AJ20: Fp(kN) | AK20: 1331.675386 | BA20: 0 | BB20: 0 | BK20: 16.93909407 | BL20: 41.367607 | BM20: 105.45 | BN20: 67.45957623 | BO20: 21.56756757 | BP20: 59.31580757 | BQ20: 57.96756757
A21: 1 | B21: C(kPa) | G21: 1.5 | H21: 19 | I21: 19 | J21: 40 | K21: 36 | M21: 0 | O21: 0.2596161837 | Q21: 0 | S21: 1.099557429 | T21: 228.5 | U21: 228.5 | X21: 18.56026201 | Z21: 18.56026201 | AB21: 18.14902936 | AG21: Fa (e) (kN) | AH21: =$E$11*$E$4*$A$34 -> 0 | AJ21: Z Fp(m) | AK21: =IF(A27=1,A30,h) -> 16.20358808 | AN21: H or H+D | AO21: =IF(hd=h,"H","H+D") -> H+D | BA21: 0 | BB21: 0 | BK21: 18.14902936 | BL21: 41.367607 | BM21: 105.45 | BN21: 67.45957623 | BO21: 23.10810811 | BP21: 59.31580757 | BQ21: 62.10810811
A22: 1 | B22: ф | E22: ss | G22: 1.6 | H22: 19 | I22: 19 | J22: 40 | K22: 36 | M22: 0 | O22: 0.2596161837 | Q22: 0 | S22: 1.099557429 | T22: 230.4 | U22: 230.4 | X22: 19.05353276 | Z22: 19.05353276 | AB22: 19.35896465 | BA22: 0 | BB22: 0 | BK22: 19.35896465 | BL22: 41.367607 | BM22: 105.45 | BN22: 67.45957623 | BO22: 24.64864865 | BP22: 59.31580757 | BQ22: 66.24864865
A23: 1 | B23: th | G23: 1.7 | H23: 19 | I23: 19 | J23: 40 | K23: 36 | M23: 0 | O23: 0.2596161837 | Q23: 0 | S23: 1.099557429 | T23: 232.3 | U23: 232.3 | X23: 19.54680351 | Z23: 19.54680351 | AB23: 20.56889994 | AH23: Thickness (m) | AI23: g (kN/m3) | AJ23: gsat (kN/m3) | AK23: C (kPa) | AL23: ф | AM23: δ | AN23: Fs фa | AO23: Fs фp | AP23: Fs C | BA23: 0 | BB23: 0 | BK23: 20.56889994 | BL23: 41.367607 | BM23: 105.45 | BN23: 67.45957623 | BO23: 26.18918919 | BP23: 59.31580757 | BQ23: 70.38918919
G24: 1.8 | H24: 19 | I24: 19 | J24: 40 | K24: 36 | M24: 0 | O24: 0.2596161837 | Q24: 0 | S24: 1.099557429 | T24: 234.2 | U24: 234.2 | X24: 20.04007426 | Z24: 20.04007426 | AB24: 21.77883523 | AG24: Soil 1 | AH24: 28 | AI24: 19 | AJ24: 19 | AK24: 40 | AL24: 36 | AM24: 0 | AN24: 1 | AO24: 1.2 | AP24: 1 | BA24: 0 | BB24: 0 | BK24: 21.77883523 | BL24: 41.367607 | BM24: 105.45 | BN24: 67.45957623 | BO24: 27.72972973 | BP24: 59.31580757 | BQ24: 74.52972973
B25: cf | G25: 1.9 | H25: 19 | I25: 19 | J25: 40 | K25: 36 | M25: 0 | O25: 0.2596161837 | Q25: 0 | S25: 1.099557429 | T25: 236.1 | U25: 236.1 | X25: 20.53334501 | Z25: 20.53334501 | AB25: 22.98877052 | AG25: Soil 2 | BA25: 0 | BB25: 0 | BK25: 22.98877052 | BL25: 41.367607 | BM25: 105.45 | BN25: 67.45957623 | BO25: 29.27027027 | BP25: 59.31580757 | BQ25: 78.67027027
G26: 2 | H26: 19 | I26: 19 | J26: 40 | K26: 36 | M26: 0 | O26: 0.2596161837 | Q26: 0 | S26: 1.099557429 | T26: 238 | U26: 238 | X26: 21.02661576 | Z26: 21.02661576 | AB26: 24.19870581 | AG26: Soil 3 | BA26: 0 | BB26: 0 | BK26: 24.19870581 | BL26: 41.367607 | BM26: 105.45 | BN26: 67.45957623 | BO26: 30.81081081 | BP26: 59.31580757 | BQ26: 82.81081081
A27: 1 | B27: T-method | G27: 2.1 | H27: 19 | I27: 19 | J27: 40 | K27: 36 | M27: 0 | O27: 0.2596161837 | Q27: 0 | S27: 1.099557429 | T27: 239.9 | U27: 239.9 | X27: 21.51988651 | Z27: 21.51988651 | AB27: 25.4086411 | AG27: Soil 4 | BA27: 0 | BB27: 0 | BK27: 25.4086411 | BL27: 41.367607 | BM27: 105.45 | BN27: 67.45957623 | BO27: 32.35135135 | BP27: 59.31580757 | BQ27: 86.95135135
A28: 1 | B28: S-method | G28: 2.2 | H28: 19 | I28: 19 | J28: 40 | K28: 36 | M28: 0 | O28: 0.2596161837 | Q28: 0 | S28: 1.099557429 | T28: 241.8 | U28: 241.8 | X28: 22.01315725 | Z28: 22.01315725 | AB28: 26.61857639 | AG28: Soil 5 | BA28: 0 | BB28: 0 | BK28: 26.61857639 | BL28: 41.367607 | BM28: 105.45 | BN28: 67.45957623 | BO28: 33.89189189 | BP28: 59.31580757 | BQ28: 91.09189189
G29: 2.3 | H29: 19 | I29: 19 | J29: 40 | K29: 36 | M29: 0 | O29: 0.2596161837 | Q29: 0 | S29: 1.099557429 | T29: 243.7 | U29: 243.7 | X29: 22.506428 | Z29: 22.506428 | AB29: 27.82851168 | AG29: Soil 6 | BA29: 0 | BB29: 0 | BK29: 27.82851168 | BL29: 41.367607 | BM29: 105.45 | BN29: 67.45957623 | BO29: 35.43243243 | BP29: 59.31580757 | BQ29: 95.23243243
A30: 16.20358808 | B30: Zfp | G30: 2.4 | H30: 19 | I30: 19 | J30: 40 | K30: 36 | M30: 0 | O30: 0.2596161837 | Q30: 0 | S30: 1.099557429 | T30: 245.6 | U30: 245.6 | X30: 22.99969875 | Z30: 22.99969875 | AB30: 29.03844697 | AG30: Soil 7 | BA30: 0 | BB30: 0 | BK30: 29.03844697 | BL30: 41.367607 | BM30: 105.45 | BN30: 67.45957623 | BO30: 36.97297297 | BP30: 59.31580757 | BQ30: 99.37297297
G31: 2.5 | H31: 19 | I31: 19 | J31: 40 | K31: 36 | M31: 0 | O31: 0.2596161837 | Q31: 0 | S31: 1.099557429 | T31: 247.5 | U31: 247.5 | X31: 23.4929695 | Z31: 23.4929695 | AB31: 30.24838226 | AG31: Soil 8 | BA31: 0 | BB31: 0 | BK31: 30.24838226 | BL31: 41.367607 | BM31: 105.45 | BN31: 67.45957623 | BO31: 38.51351351 | BP31: 59.31580757 | BQ31: 103.5135135
A32: 18.5 | B32: h or h+d | G32: 2.6 | H32: 19 | I32: 19 | J32: 40 | K32: 36 | M32: 0 | O32: 0.2596161837 | Q32: 0 | S32: 1.099557429 | T32: 249.4 | U32: 249.4 | X32: 23.98624025 | Z32: 23.98624025 | AB32: 31.45831755 | AG32: Soil 9 | BA32: 0 | BB32: 0 | BK32: 31.45831755 | BL32: 41.367607 | BM32: 105.45 | BN32: 67.45957623 | BO32: 40.05405405 | BP32: 59.31580757 | BQ32: 107.6540541
G33: 2.7 | H33: 19 | I33: 19 | J33: 40 | K33: 36 | M33: 0 | O33: 0.2596161837 | Q33: 0 | S33: 1.099557429 | T33: 251.3 | U33: 251.3 | X33: 24.479511 | Z33: 24.479511 | AB33: 32.66825284 | AG33: Soil 10 | BA33: 0 | BB33: 0 | BK33: 32.66825284 | BL33: 41.367607 | BM33: 105.45 | BN33: 67.45957623 | BO33: 41.59459459 | BP33: 59.31580757 | BQ33: 111.7945946
A34: 40 | B34: L | G34: 2.8 | H34: 19 | I34: 19 | J34: 40 | K34: 36 | M34: 0 | O34: 0.2596161837 | Q34: 0 | S34: 1.099557429 | T34: 253.2 | U34: 253.2 | X34: 24.97278175 | Z34: 24.97278175 | AB34: 33.87818813 | BA34: 0 | BB34: 0 | BK34: 33.87818813 | BL34: 41.367607 | BM34: 105.45 | BN34: 67.45957623 | BO34: 43.13513514 | BP34: 59.31580757 | BQ34: 115.9351351
G35: 2.9 | H35: 19 | I35: 19 | J35: 40 | K35: 36 | M35: 0 | O35: 0.2596161837 | Q35: 0 | S35: 1.099557429 | T35: 255.1 | U35: 255.1 | X35: 25.4660525 | Z35: 25.4660525 | AB35: 35.08812342 | BA35: 0 | BB35: 0 | BK35: 35.08812342 | BL35: 41.367607 | BM35: 105.45 | BN35: 67.45957623 | BO35: 44.67567568 | BP35: 59.31580757 | BQ35: 120.0756757
G36: 3 | H36: 19 | I36: 19 | J36: 40 | K36: 36 | M36: 0 | O36: 0.2596161837 | Q36: 0 | S36: 1.099557429 | T36: 257 | U36: 257 | X36: 25.95932325 | Z36: 25.95932325 | AB36: 36.29805871 | BA36: 0 | BB36: 0 | BK36: 36.29805871 | BL36: 41.367607 | BM36: 105.45 | BN36: 67.45957623 | BO36: 46.21621622 | BP36: 59.31580757 | BQ36: 124.2162162
G37: 3.1 | H37: 19 | I37: 19 | J37: 40 | K37: 36 | M37: 0 | O37: 0.2596161837 | Q37: 0 | S37: 1.099557429 | T37: 258.9 | U37: 258.9 | X37: 26.452594 | Z37: 26.452594 | AB37: 37.50799401 | BA37: 0 | BB37: 0 | BK37: 37.50799401 | BL37: 41.367607 | BM37: 105.45 | BN37: 67.45957623 | BO37: 47.75675676 | BP37: 59.31580757 | BQ37: 128.3567568
G38: 3.2 | H38: 19 | I38: 19 | J38: 40 | K38: 36 | M38: 0 | O38: 0.2596161837 | Q38: 0 | S38: 1.099557429 | T38: 260.8 | U38: 260.8 | X38: 26.94586474 | Z38: 26.94586474 | AB38: 38.7179293 | BA38: 0 | BB38: 0 | BK38: 38.7179293 | BL38: 41.367607 | BM38: 105.45 | BN38: 67.45957623 | BO38: 49.2972973 | BP38: 59.31580757 | BQ38: 132.4972973
G39: 3.3 | H39: 19 | I39: 19 | J39: 40 | K39: 36 | M39: 0 | O39: 0.2596161837 | Q39: 0 | S39: 1.099557429 | T39: 262.7 | U39: 262.7 | X39: 27.43913549 | Z39: 27.43913549 | AB39: 39.92786459 | BA39: 0 | BB39: 0 | BK39: 39.92786459 | BL39: 41.367607 | BM39: 105.45 | BN39: 67.45957623 | BO39: 50.83783784 | BP39: 59.31580757 | BQ39: 136.6378378
G40: 3.4 | H40: 19 | I40: 19 | J40: 40 | K40: 36 | M40: 0 | O40: 0.2596161837 | Q40: 0 | S40: 1.099557429 | T40: 264.6 | U40: 264.6 | X40: 27.93240624 | Z40: 27.93240624 | AB40: 41.13779988 | BA40: 0 | BB40: 0 | BK40: 41.13779988 | BL40: 41.367607 | BM40: 105.45 | BN40: 67.45957623 | BO40: 52.37837838 | BP40: 59.31580757 | BQ40: 140.7783784
G41: 3.5 | H41: 19 | I41: 19 | J41: 40 | K41: 36 | M41: 0 | O41: 0.2596161837 | Q41: 0 | S41: 1.099557429 | T41: 266.5 | U41: 266.5 | X41: 28.42567699 | Z41: 28.42567699 | AB41: 42.34773517 | BA41: 0 | BB41: 0 | BK41: 42.34773517 | BL41: 41.367607 | BM41: 105.45 | BN41: 67.45957623 | BO41: 53.91891892 | BP41: 59.31580757 | BQ41: 144.9189189
G42: 3.6 | H42: 19 | I42: 19 | J42: 40 | K42: 36 | M42: 0 | O42: 0.2596161837 | Q42: 0 | S42: 1.099557429 | T42: 268.4 | U42: 268.4 | X42: 28.91894774 | Z42: 28.91894774 | AB42: 43.55767046 | BA42: 0 | BB42: 0 | BK42: 43.55767046 | BL42: 41.367607 | BM42: 105.45 | BN42: 67.45957623 | BO42: 55.45945946 | BP42: 59.31580757 | BQ42: 149.0594595
G43: 3.7 | H43: 19 | I43: 19 | J43: 40 | K43: 36 | M43: 0 | O43: 0.2596161837 | Q43: 0 | S43: 1.099557429 | T43: 270.3 | U43: 270.3 | X43: 29.41221849 | Z43: 29.41221849 | AB43: 44.76760575 | BA43: 0 | BB43: 0 | BK43: 44.76760575 | BL43: 41.367607 | BM43: 105.45 | BN43: 67.45957623 | BO43: 57 | BP43: 59.31580757 | BQ43: 153.2
G44: 3.8 | H44: 19 | I44: 19 | J44: 40 | K44: 36 | M44: 0 | O44: 0.2596161837 | Q44: 0 | S44: 1.099557429 | T44: 272.2 | U44: 272.2 | X44: 29.90548924 | Z44: 29.90548924 | AB44: 44.76760575 | BA44: 0 | BB44: 0 | BK44: 44.76760575 | BL44: 41.367607 | BM44: 105.45 | BN44: 67.45957623 | BO44: 58.54054054 | BP44: 59.31580757 | BQ44: 157.3405405
G45: 3.9 | H45: 19 | I45: 19 | J45: 40 | K45: 36 | M45: 0 | O45: 0.2596161837 | Q45: 0 | S45: 1.099557429 | T45: 274.1 | U45: 274.1 | X45: 30.39875999 | Z45: 30.39875999 | AB45: 44.76760575 | BA45: 0 | BB45: 0 | BK45: 44.76760575 | BL45: 41.367607 | BM45: 105.45 | BN45: 67.45957623 | BO45: 60.08108108 | BP45: 59.31580757 | BQ45: 161.4810811
G46: 4 | H46: 19 | I46: 19 | J46: 40 | K46: 36 | M46: 0 | O46: 0.2596161837 | Q46: 0 | S46: 1.099557429 | T46: 276 | U46: 276 | X46: 30.89203074 | Z46: 30.89203074 | AB46: 44.76760575 | BA46: 0 | BB46: 0 | BK46: 44.76760575 | BL46: 41.367607 | BM46: 105.45 | BN46: 67.45957623 | BO46: 61.62162162 | BP46: 59.31580757 | BQ46: 165.6216216
G47: 4.1 | H47: 19 | I47: 19 | J47: 40 | K47: 36 | M47: 0 | O47: 0.2596161837 | Q47: 0 | S47: 1.099557429 | T47: 277.9 | U47: 277.9 | X47: 31.38530149 | Z47: 31.38530149 | AB47: 44.76760575 | BA47: 0 | BB47: 0 | BK47: 44.76760575 | BL47: 41.367607 | BM47: 105.45 | BN47: 67.45957623 | BO47: 63.16216216 | BP47: 59.31580757 | BQ47: 169.7621622
G48: 4.2 | H48: 19 | I48: 19 | J48: 40 | K48: 36 | M48: 0 | O48: 0.2596161837 | Q48: 0 | S48: 1.099557429 | T48: 279.8 | U48: 279.8 | X48: 31.87857223 | Z48: 31.87857223 | AB48: 44.76760575 | BA48: 0 | BB48: 0 | BK48: 44.76760575 | BL48: 41.367607 | BM48: 105.45 | BN48: 67.45957623 | BO48: 64.7027027 | BP48: 59.31580757 | BQ48: 173.9027027
G49: 4.3 | H49: 19 | I49: 19 | J49: 40 | K49: 36 | M49: 0 | O49: 0.2596161837 | Q49: 0 | S49: 1.099557429 | T49: 281.7 | U49: 281.7 | X49: 32.37184298 | Z49: 32.37184298 | AB49: 44.76760575 | BA49: 0 | BB49: 0 | BK49: 44.76760575 | BL49: 41.367607 | BM49: 105.45 | BN49: 67.45957623 | BO49: 66.24324324 | BP49: 59.31580757 | BQ49: 178.0432432
G50: 4.4 | H50: 19 | I50: 19 | J50: 40 | K50: 36 | M50: 0 | O50: 0.2596161837 | Q50: 0 | S50: 1.099557429 | T50: 283.6 | U50: 283.6 | X50: 32.86511373 | Z50: 32.86511373 | AB50: 44.76760575 | BA50: 0 | BB50: 0 | BK50: 44.76760575 | BL50: 41.367607 | BM50: 105.45 | BN50: 67.45957623 | BO50: 67.78378378 | BP50: 59.31580757 | BQ50: 182.1837838
G51: 4.5 | H51: 19 | I51: 19 | J51: 40 | K51: 36 | M51: 0 | O51: 0.2596161837 | Q51: 0 | S51: 1.099557429 | T51: 285.5 | U51: 285.5 | X51: 33.35838448 | Z51: 33.35838448 | AB51: 44.76760575 | BA51: 0 | BB51: 0 | BK51: 44.76760575 | BL51: 41.367607 | BM51: 105.45 | BN51: 67.45957623 | BO51: 69.32432432 | BP51: 59.31580757 | BQ51: 186.3243243
G52: 4.6 | H52: 19 | I52: 19 | J52: 40 | K52: 36 | M52: 0 | O52: 0.2596161837 | Q52: 0 | S52: 1.099557429 | T52: 287.4 | U52: 287.4 | X52: 33.85165523 | Z52: 33.85165523 | AB52: 44.76760575 | BA52: 0 | BB52: 0 | BK52: 44.76760575 | BL52: 41.367607 | BM52: 105.45 | BN52: 67.45957623 | BO52: 70.86486486 | BP52: 59.31580757 | BQ52: 190.4648649
G53: 4.7 | H53: 19 | I53: 19 | J53: 40 | K53: 36 | M53: 0 | O53: 0.2596161837 | Q53: 0 | S53: 1.099557429 | T53: 289.3 | U53: 289.3 | X53: 34.34492598 | Z53: 34.34492598 | AB53: 44.76760575 | BA53: 0 | BB53: 0 | BK53: 44.76760575 | BL53: 41.367607 | BM53: 105.45 | BN53: 67.45957623 | BO53: 71.25 | BP53: 59.31580757 | BQ53: 191.5
G54: 4.8 | H54: 19 | I54: 19 | J54: 40 | K54: 36 | M54: 0 | O54: 0.2596161837 | Q54: 0 | S54: 1.099557429 | T54: 291.2 | U54: 291.2 | X54: 34.83819673 | Z54: 34.83819673 | AB54: 44.76760575 | BA54: 0 | BB54: 0 | BK54: 44.76760575 | BL54: 41.367607 | BM54: 105.45 | BN54: 67.45957623 | BO54: 71.25 | BP54: 59.31580757 | BQ54: 191.5
G55: 4.9 | H55: 19 | I55: 19 | J55: 40 | K55: 36 | M55: 0 | O55: 0.2596161837 | Q55: 0 | S55: 1.099557429 | T55: 293.1 | U55: 293.1 | X55: 35.33146748 | Z55: 35.33146748 | AB55: 44.76760575 | BA55: 0 | BB55: 0 | BK55: 44.76760575 | BL55: 41.367607 | BM55: 105.45 | BN55: 67.45957623 | BO55: 71.25 | BP55: 59.31580757 | BQ55: 191.5
G56: 5 | H56: 19 | I56: 19 | J56: 40 | K56: 36 | M56: 0 | O56: 0.2596161837 | Q56: 0 | S56: 1.099557429 | T56: 295 | U56: 295 | X56: 35.82473823 | Z56: 35.82473823 | AB56: 44.76760575 | BA56: 0 | BB56: 0 | BK56: 44.76760575 | BL56: 41.367607 | BM56: 105.45 | BN56: 67.45957623 | BO56: 71.25 | BP56: 59.31580757 | BQ56: 191.5
G57: 5.1 | H57: 19 | I57: 19 | J57: 40 | K57: 36 | M57: 0 | O57: 0.2596161837 | Q57: 0 | S57: 1.099557429 | T57: 296.9 | U57: 296.9 | X57: 36.31800898 | Z57: 36.31800898 | AB57: 44.76760575 | BA57: 0 | BB57: 0 | BK57: 44.76760575 | BL57: 41.367607 | BM57: 105.45 | BN57: 67.45957623 | BO57: 71.25 | BP57: 59.31580757 | BQ57: 191.5
G58: 5.2 | H58: 19 | I58: 19 | J58: 40 | K58: 36 | M58: 0 | O58: 0.2596161837 | Q58: 0 | S58: 1.099557429 | T58: 298.8 | U58: 298.8 | X58: 36.81127972 | Z58: 36.81127972 | AB58: 44.76760575 | BA58: 0 | BB58: 0 | BK58: 44.76760575 | BL58: 41.367607 | BM58: 105.45 | BN58: 67.45957623 | BO58: 71.25 | BP58: 59.31580757 | BQ58: 191.5
G59: 5.3 | H59: 19 | I59: 19 | J59: 40 | K59: 36 | M59: 0 | O59: 0.2596161837 | Q59: 0 | S59: 1.099557429 | T59: 300.7 | U59: 300.7 | X59: 37.30455047 | Z59: 37.30455047 | AB59: 44.76760575 | BA59: 0 | BB59: 0 | BK59: 44.76760575 | BL59: 41.367607 | BM59: 105.45 | BN59: 67.45957623 | BO59: 71.25 | BP59: 59.31580757 | BQ59: 191.5
G60: 5.4 | H60: 19 | I60: 19 | J60: 40 | K60: 36 | M60: 0 | O60: 0.2596161837 | Q60: 0 | S60: 1.099557429 | T60: 302.6 | U60: 302.6 | X60: 37.79782122 | Z60: 37.79782122 | AB60: 44.76760575 | BA60: 0 | BB60: 0 | BK60: 44.76760575 | BL60: 41.367607 | BM60: 105.45 | BN60: 67.45957623 | BO60: 71.25 | BP60: 59.31580757 | BQ60: 191.5
G61: 5.5 | H61: 19 | I61: 19 | J61: 40 | K61: 36 | M61: 0 | O61: 0.2596161837 | Q61: 0 | S61: 1.099557429 | T61: 304.5 | U61: 304.5 | X61: 38.29109197 | Z61: 38.29109197 | AB61: 44.76760575 | BA61: 0 | BB61: 0 | BK61: 44.76760575 | BL61: 41.367607 | BM61: 105.45 | BN61: 67.45957623 | BO61: 71.25 | BP61: 59.31580757 | BQ61: 191.5
G62: 5.6 | H62: 19 | I62: 19 | J62: 40 | K62: 36 | M62: 0 | O62: 0.2596161837 | Q62: 0 | S62: 1.099557429 | T62: 306.4 | U62: 306.4 | X62: 38.78436272 | Z62: 38.78436272 | AB62: 44.76760575 | BA62: 0 | BB62: 0 | BK62: 44.76760575 | BL62: 41.367607 | BM62: 105.45 | BN62: 67.45957623 | BO62: 71.25 | BP62: 59.31580757 | BQ62: 191.5
G63: 5.7 | H63: 19 | I63: 19 | J63: 40 | K63: 36 | M63: 0 | O63: 0.2596161837 | Q63: 0 | S63: 1.099557429 | T63: 308.3 | U63: 308.3 | X63: 39.27763347 | Z63: 39.27763347 | AB63: 44.76760575 | BA63: 0 | BB63: 0 | BK63: 44.76760575 | BL63: 41.367607 | BM63: 105.45 | BN63: 67.45957623 | BO63: 71.25 | BP63: 59.31580757 | BQ63: 191.5
G64: 5.8 | H64: 19 | I64: 19 | J64: 40 | K64: 36 | M64: 0 | O64: 0.2596161837 | Q64: 0 | S64: 1.099557429 | T64: 310.2 | U64: 310.2 | X64: 39.77090422 | Z64: 39.77090422 | AB64: 44.76760575 | BA64: 0 | BB64: 0 | BK64: 44.76760575 | BL64: 41.367607 | BM64: 105.45 | BN64: 67.45957623 | BO64: 71.25 | BP64: 59.31580757 | BQ64: 191.5
G65: 5.9 | H65: 19 | I65: 19 | J65: 40 | K65: 36 | M65: 0 | O65: 0.2596161837 | Q65: 0 | S65: 1.099557429 | T65: 312.1 | U65: 312.1 | X65: 40.26417497 | Z65: 40.26417497 | AB65: 44.76760575 | BA65: 0 | BB65: 0 | BK65: 44.76760575 | BL65: 41.367607 | BM65: 105.45 | BN65: 67.45957623 | BO65: 71.25 | BP65: 59.31580757 | BQ65: 191.5
G66: 6 | H66: 19 | I66: 19 | J66: 40 | K66: 36 | M66: 0 | O66: 0.2596161837 | Q66: 0 | S66: 1.099557429 | T66: 314 | U66: 314 | X66: 40.75744572 | Z66: 40.75744572 | AB66: 44.76760575 | BA66: 0 | BB66: 0 | BK66: 44.76760575 | BL66: 41.367607 | BM66: 105.45 | BN66: 67.45957623 | BO66: 71.25 | BP66: 59.31580757 | BQ66: 191.5
G67: 6.1 | H67: 19 | I67: 19 | J67: 40 | K67: 36 | M67: 0 | O67: 0.2596161837 | Q67: 0 | S67: 1.099557429 | T67: 315.9 | U67: 315.9 | X67: 41.25071647 | Z67: 41.25071647 | AB67: 44.76760575 | BA67: 0 | BB67: 0 | BK67: 44.76760575 | BL67: 41.367607 | BM67: 105.45 | BN67: 67.45957623 | BO67: 71.25 | BP67: 59.31580757 | BQ67: 191.5
G68: 6.2 | H68: 19 | I68: 19 | J68: 40 | K68: 36 | M68: 0 | O68: 0.2596161837 | Q68: 0 | S68: 1.099557429 | T68: 317.8 | U68: 317.8 | W68: =IF(G68<h,(""),(IF(G68<h+dzd,(0),(IF(N68="",(W67+H68*(G68-G67)),(W67+(I68-9.81)*(G68-G67))))))) ->  | X68: 41.74398721 | Z68: =IF(Y68="",X68,X68+Y68) -> 41.74398721 | AA68: =IF(N68="",(""),IF(G68>h,AA67,((G68-nz)*9.81))) ->  | AB68: 44.76760575 | BA68: 0 | BB68: 0 | BK68: 44.76760575 | BL68: 41.367607 | BM68: 105.45 | BN68: 67.45957623 | BO68: 71.25 | BP68: 59.31580757 | BQ68: 191.5
G69: 6.3 | H69: 19 | I69: 19 | J69: 40 | K69: 36 | M69: 0 | O69: 0.2596161837 | Q69: 0 | S69: 1.099557429 | T69: 319.7 | U69: 319.7 | X69: 42.23725796 | Z69: 42.23725796 | AB69: 44.76760575 | BA69: 0 | BB69: 0 | BK69: 44.76760575 | BL69: 41.367607 | BM69: 105.45 | BN69: 67.45957623 | BO69: 71.25 | BP69: 59.31580757 | BQ69: 191.5
G70: 6.4 | H70: 19 | I70: 19 | J70: 40 | K70: 36 | M70: 0 | O70: 0.2596161837 | Q70: 0 | R70: =IF(L70="","",(IF(G70="","",IF(G70=h,(R71),(IF(N70="",$E$11,($E$11*V70/W70))))))) ->  | S70: 1.099557429 | T70: 321.6 | U70: 321.6 | V70: =IF(G70<h,(""),(IF(G70<h+dzd,(0),(IF(N70="",(V69+H70*(G70-G69)),(V69+(I70)*(G70-G69))))))) ->  | X70: 42.73052871 | Y70: =IF(G70<h,(""),((-P70*W70-2*J70*(P70^0.5))*COS(RADIANS(M70)))) ->  | Z70: 42.73052871 | AB70: =IF(G70="","",IF(G70>hd,0,IF($A$27=1,BK70,IF($A$27=2,BL70,IF($A$27=3,BM70,IF($A$27=4,BN70+ka*($E$4+$E$5),IF($A$27=5,BP70,IF($A$27=6,BO70,BQ70)))))))) -> 44.76760575 | BA70: 0 | BB70: 0 | BK70: =IF(G70="","",IF(G70>hd,0,(IF(G70<0.2*(hd),(1.6*($AH$20+$AH$21)/(hd)/0.2/(hd)*G70),(IF(G70<0.8*(hd),(1.6*($AH$20+$AH$21)/(hd)),(1.6*($AH$20+$AH$21)/(hd)-1.6*($AH$20+$AH$21)/(hd)/0.2/(hd)*(G70-0.8*(hd))))))))) -> 44.76760575 | BL70: =IF(G70="","",IF(G70>hd,0,(IF(G70<((2/3)*$AH$6),(1.3*($AH$20+$AH$21)/(hd-(1/3)*($AH$6+(hd-MAX($AP$6:$AP$15))))*G70/(2/3*$AH$6)),(IF(G70<(h-2/3*(hd-MAX($AP$6:$AP$15))),1.3*($AH$20+$AH$21)/(hd-1/3*($AH$6+(hd-MAX($AP$6:$AP$15)))),1.3*($AH$20+$AH$21)/(hd-1/3*($AH$6+(hd-MAX($AP$6:$AP$15))))*(1-(G70-(hd-2/3*(hd-MAX($AP$6:$AP$15))))/(2/3*(hd-MAX($AP$6:$AP$15)))))))))) -> 41.367607 | BM70: =IF(G70="","",IF(G70>hd,0,(IF(G70<(0.6667*$AH$6),(0.3*g*hd*G70/(0.6667*$AH$6)),(IF(G70<(hd-0.6667*(hd-MAX($AP$6:$AP$15))),0.3*g*hd,0.3*g*hd*(1-(G70-(hd-0.6667*(hd-MAX($AP$6:$AP$15))))/(0.6667*(hd-MAX($AP$6:$AP$15)))))))))) -> 105.45 | BN70: =IF(G70="","",IF(G70>hd,0,(IF(G70<((2/3)*$AH$6),(0.65*ka*g*hd*hd/(hd-(1/3)*($AH$6+(hd-MAX($AP$6:$AP$15))))*G70/(2/3*$AH$6)),(IF(G70<(h-2/3*(hd-MAX($AP$6:$AP$15))),0.65*ka*g*hd*hd/(hd-1/3*($AH$6+(hd-MAX($AP$6:$AP$15)))),0.65*ka*g*hd*hd/(hd-1/3*($AH$6+(hd-MAX($AP$6:$AP$15))))*(1-(G70-(hd-2/3*(hd-MAX($AP$6:$AP$15))))/(2/3*(hd-MAX($AP$6:$AP$15)))))))))) -> 67.45957623 | BO70: =IF(G70="","",IF(G70>hd,0,(IF(G70<(0.25*hd),(0.3*g*h*G70/(0.25*hd)),(IF(G70<(0.75*hd),0.3*g*h,0.3*g*h*(1-(G70-0.75*hd)/0.25/hd))))))) -> 71.25 | BP70: =IF(G70>hd,0,IF(G70="","",0.65*ka*g*hd)) -> 59.31580757 | BQ70: =IF(G70="","",IF(G70>hd,0,(IF(G70<(0.25*hd),(1-4*ca/g/hd)*g*hd*G70/(0.25*hd),((1-4*ca/g/hd)*g*hd))))) -> 191.5
G71: 6.5 | H71: 19 | I71: 19 | J71: 40 | K71: 36 | M71: 0 | O71: =IF(G71="",(""),((SIN(RADIANS($E$9+BA71-K71)))^2)*((SIN(RADIANS($E$9)))^-2)*((COS(RADIANS(BA71)))^-1)*((SIN((RADIANS($E$9+BA71+M71))))^-1)/(1+((SIN(RADIANS(K71+M71)))*(SIN((RADIANS(K71-$E$7-BA71))/(SIN(RADIANS($E$9-$E$7)))/(SIN((RADIANS($E$9+BA71+M71)))))))^0.5)^2) -> 0.2596161837 | P71: =IF(L71="",(""),((SIN(RADIANS($E$9-BB71+L71)))^2)*((SIN(RADIANS($E$9)))^-2)*((COS(RADIANS(BB71)))^-1)*((SIN((RADIANS($E$9-BB71-M71))))^-1)/(1-((SIN(RADIANS(L71+M71)))*(SIN((RADIANS(L71+$E$7-BB71))/(SIN(RADIANS($E$9-$E$7)))/(SIN((RADIANS($E$9-BB71-M71)))))))^0.5)^2) ->  | Q71: =IF(G71="","",(IF(N71="",$E$11,($E$11*T71/U71)))) -> 0 | S71: =IF(G71="","",0.5*PI()-ATAN((-TAN(RADIANS(K71+M71+(90-$E$9)-$E$7)))+(1/(COS(RADIANS(K71+M71+(90-$E$9)-$E$7))))*((COS((RADIANS(90-$E$9+M71+BA71))))^0.5)*((SIN(RADIANS(K71+M71)))^0.5)*((COS(RADIANS(90-$E$9-$E$7)))^-0.5)*((SIN(RADIANS(K71-$E$7-BA71)))^-0.5)))+$E$7 -> 1.099557429 | T71: 323.5 | U71: 323.5 | X71: 43.22379946 | Z71: 43.22379946 | AB71: 44.76760575 | BA71: =ATAN(Q71)/0.017453 -> 0 | BB71: =ATAN(Q71)/0.017453 -> 0 | BK71: 44.76760575 | BL71: 41.367607 | BM71: 105.45 | BN71: 67.45957623 | BO71: 71.25 | BP71: 59.31580757 | BQ71: 191.5
G72: 6.6 | H72: 19 | I72: 19 | J72: 40 | K72: 36 | M72: 0 | O72: 0.2596161837 | Q72: 0 | S72: 1.099557429 | T72: =IF(G72="",(""),(IF(N72="",(T71+(G72-G71)*H71),(T71+(G72-G71)*(I71))))) -> 325.4 | U72: =IF(G72="",(""),(IF(N72="",(U71+(G72-G71)*H71),(U71+(G72-G71)*(I71-9.81))))) -> 325.4 | X72: =IF(G72="",(""),((O72*U72-2*J72*(O72)^0.5))*COS(RADIANS(M72))) -> 43.71707021 | Z72: 43.71707021 | AB72: 44.76760575 | BA72: 0 | BB72: 0 | BK72: 44.76760575 | BL72: 41.367607 | BM72: 105.45 | BN72: 67.45957623 | BO72: 71.25 | BP72: 59.31580757 | BQ72: 191.5
G73: 6.7 | H73: 19 | I73: 19 | J73: 40 | K73: 36 | M73: 0 | O73: 0.2596161837 | Q73: 0 | S73: 1.099557429 | T73: 327.3 | U73: 327.3 | X73: 44.21034096 | Z73: 44.21034096 | AB73: 44.76760575 | BA73: 0 | BB73: 0 | BK73: 44.76760575 | BL73: 41.367607 | BM73: 105.45 | BN73: 67.45957623 | BO73: 71.25 | BP73: 59.31580757 | BQ73: 191.5
G74: 6.8 | H74: 19 | I74: 19 | J74: 40 | K74: 36 | M74: 0 | O74: 0.2596161837 | Q74: 0 | S74: 1.099557429 | T74: 329.2 | U74: 329.2 | X74: 44.70361171 | Z74: 44.70361171 | AB74: 44.76760575 | BA74: 0 | BB74: 0 | BK74: 44.76760575 | BL74: 41.367607 | BM74: 105.45 | BN74: 67.45957623 | BO74: 71.25 | BP74: 59.31580757 | BQ74: 191.5
G75: 6.9 | H75: 19 | I75: 19 | J75: 40 | K75: 36 | M75: 0 | O75: 0.2596161837 | Q75: 0 | S75: 1.099557429 | T75: 331.1 | U75: 331.1 | X75: 45.19688246 | Z75: 45.19688246 | AB75: 44.76760575 | BA75: 0 | BB75: 0 | BK75: 44.76760575 | BL75: 41.367607 | BM75: 105.45 | BN75: 67.45957623 | BO75: 71.25 | BP75: 59.31580757 | BQ75: 191.5
G76: 7 | H76: 19 | I76: 19 | J76: 40 | K76: 36 | M76: 0 | O76: 0.2596161837 | Q76: 0 | S76: 1.099557429 | T76: 333 | U76: 333 | X76: 45.69015321 | Z76: 45.69015321 | AB76: 44.76760575 | BA76: 0 | BB76: 0 | BK76: 44.76760575 | BL76: 41.367607 | BM76: 105.45 | BN76: 67.45957623 | BO76: 71.25 | BP76: 59.31580757 | BQ76: 191.5
G77: 7.1 | H77: 19 | I77: 19 | J77: 40 | K77: 36 | M77: 0 | O77: 0.2596161837 | Q77: 0 | S77: 1.099557429 | T77: 334.9 | U77: 334.9 | X77: 46.18342396 | Z77: 46.18342396 | AB77: 44.76760575 | BA77: 0 | BB77: 0 | BK77: 44.76760575 | BL77: 41.367607 | BM77: 105.45 | BN77: 67.45957623 | BO77: 71.25 | BP77: 59.31580757 | BQ77: 191.5
G78: 7.2 | H78: 19 | I78: 19 | J78: 40 | K78: 36 | M78: 0 | O78: 0.2596161837 | Q78: 0 | S78: 1.099557429 | T78: 336.8 | U78: 336.8 | X78: 46.6766947 | Z78: 46.6766947 | AB78: 44.76760575 | BA78: 0 | BB78: 0 | BK78: 44.76760575 | BL78: 41.367607 | BM78: 105.45 | BN78: 67.45957623 | BO78: 71.25 | BP78: 59.31580757 | BQ78: 191.5
G79: 7.3 | H79: 19 | I79: 19 | J79: 40 | K79: 36 | M79: 0 | O79: 0.2596161837 | Q79: 0 | S79: 1.099557429 | T79: 338.7 | U79: 338.7 | X79: 47.16996545 | Z79: 47.16996545 | AB79: 44.76760575 | BA79: 0 | BB79: 0 | BK79: 44.76760575 | BL79: 41.367607 | BM79: 105.45 | BN79: 67.45957623 | BO79: 71.25 | BP79: 59.31580757 | BQ79: 191.5
G80: 7.4 | H80: 19 | I80: 19 | J80: 40 | K80: 36 | M80: 0 | O80: 0.2596161837 | Q80: 0 | S80: 1.099557429 | T80: 340.6 | U80: 340.6 | X80: 47.6632362 | Z80: 47.6632362 | AB80: 44.76760575 | BA80: 0 | BB80: 0 | BK80: 44.76760575 | BL80: 41.367607 | BM80: 105.45 | BN80: 67.45957623 | BO80: 71.25 | BP80: 59.31580757 | BQ80: 191.5
G81: 7.5 | H81: 19 | I81: 19 | J81: 40 | K81: 36 | M81: 0 | O81: 0.2596161837 | Q81: 0 | S81: 1.099557429 | T81: 342.5 | U81: 342.5 | X81: 48.15650695 | Z81: 48.15650695 | AB81: 44.76760575 | BA81: 0 | BB81: 0 | BK81: 44.76760575 | BL81: 41.367607 | BM81: 105.45 | BN81: 67.45957623 | BO81: 71.25 | BP81: 59.31580757 | BQ81: 191.5
G82: 7.6 | H82: 19 | I82: 19 | J82: 40 | K82: 36 | M82: 0 | O82: 0.2596161837 | Q82: 0 | S82: 1.099557429 | T82: 344.4 | U82: 344.4 | X82: 48.6497777 | Z82: 48.6497777 | AB82: 44.76760575 | BA82: 0 | BB82: 0 | BK82: 44.76760575 | BL82: 41.367607 | BM82: 105.45 | BN82: 67.45957623 | BO82: 71.25 | BP82: 59.31580757 | BQ82: 191.5
G83: 7.7 | H83: 19 | I83: 19 | J83: 40 | K83: 36 | M83: 0 | O83: 0.2596161837 | Q83: 0 | S83: 1.099557429 | T83: 346.3 | U83: 346.3 | X83: 49.14304845 | Z83: 49.14304845 | AB83: 44.76760575 | BA83: 0 | BB83: 0 | BK83: 44.76760575 | BL83: 41.367607 | BM83: 105.45 | BN83: 67.45957623 | BO83: 71.25 | BP83: 59.31580757 | BQ83: 191.5
G84: 7.8 | H84: 19 | I84: 19 | J84: 40 | K84: 36 | M84: 0 | O84: 0.2596161837 | Q84: 0 | S84: 1.099557429 | T84: 348.2 | U84: 348.2 | X84: 49.6363192 | Z84: 49.6363192 | AB84: 44.76760575 | BA84: 0 | BB84: 0 | BK84: 44.76760575 | BL84: 41.367607 | BM84: 105.45 | BN84: 67.45957623 | BO84: 71.25 | BP84: 59.31580757 | BQ84: 191.5
G85: 7.9 | H85: 19 | I85: 19 | J85: 40 | K85: 36 | M85: 0 | O85: 0.2596161837 | Q85: 0 | S85: 1.099557429 | T85: 350.1 | U85: 350.1 | X85: 50.12958995 | Z85: 50.12958995 | AB85: 44.76760575 | BA85: 0 | BB85: 0 | BK85: 44.76760575 | BL85: 41.367607 | BM85: 105.45 | BN85: 67.45957623 | BO85: 71.25 | BP85: 59.31580757 | BQ85: 191.5
G86: 8 | H86: 19 | I86: 19 | J86: 40 | K86: 36 | M86: 0 | O86: 0.2596161837 | Q86: 0 | S86: 1.099557429 | T86: 352 | U86: 352 | X86: 50.6228607 | Z86: 50.6228607 | AB86: 44.76760575 | BA86: 0 | BB86: 0 | BK86: 44.76760575 | BL86: 41.367607 | BM86: 105.45 | BN86: 67.45957623 | BO86: 71.25 | BP86: 59.31580757 | BQ86: 191.5
G87: 8.1 | H87: 19 | I87: 19 | J87: 40 | K87: 36 | M87: 0 | O87: 0.2596161837 | Q87: 0 | S87: 1.099557429 | T87: 353.9 | U87: 353.9 | X87: 51.11613145 | Z87: 51.11613145 | AB87: 44.76760575 | BA87: 0 | BB87: 0 | BK87: 44.76760575 | BL87: 96.31860735 | BM87: 105.45 | BN87: 157.0700581 | BO87: 71.25 | BP87: 59.31580757 | BQ87: 191.5
G88: 8.2 | H88: 19 | I88: 19 | J88: 40 | K88: 36 | M88: 0 | O88: 0.2596161837 | Q88: 0 | S88: 1.099557429 | T88: 355.8 | U88: 355.8 | X88: 51.60940219 | Z88: 51.60940219 | AB88: 44.76760575 | BA88: 0 | BB88: 0 | BK88: 44.76760575 | BL88: 95.39246689 | BM88: 105.45 | BN88: 155.5597691 | BO88: 71.25 | BP88: 59.31580757 | BQ88: 191.5
G89: 8.3 | H89: 19 | I89: 19 | J89: 40 | K89: 36 | M89: 0 | O89: 0.2596161837 | Q89: 0 | S89: 1.099557429 | T89: 357.7 | U89: 357.7 | X89: 52.10267294 | Z89: 52.10267294 | AB89: 44.76760575 | BA89: 0 | BB89: 0 | BK89: 44.76760575 | BL89: 94.46632644 | BM89: 105.45 | BN89: 154.04948 | BO89: 71.25 | BP89: 59.31580757 | BQ89: 191.5
G90: 8.4 | H90: 19 | I90: 19 | J90: 40 | K90: 36 | M90: 0 | O90: 0.2596161837 | Q90: 0 | S90: 1.099557429 | T90: 359.6 | U90: 359.6 | X90: 52.59594369 | Z90: 52.59594369 | AB90: 44.76760575 | BA90: 0 | BB90: 0 | BK90: 44.76760575 | BL90: 93.54018598 | BM90: 105.45 | BN90: 152.539191 | BO90: 71.25 | BP90: 59.31580757 | BQ90: 191.5
G91: 8.5 | H91: 19 | I91: 19 | J91: 40 | K91: 36 | M91: 0 | O91: 0.2596161837 | Q91: 0 | S91: 1.099557429 | T91: 361.5 | U91: 361.5 | X91: 53.08921444 | Z91: 53.08921444 | AB91: 44.76760575 | BA91: 0 | BB91: 0 | BK91: 44.76760575 | BL91: 92.61404553 | BM91: 105.45 | BN91: 151.028902 | BO91: 71.25 | BP91: 59.31580757 | BQ91: 191.5
G92: 8.6 | H92: 19 | I92: 19 | J92: 40 | K92: 36 | M92: 0 | O92: 0.2596161837 | Q92: 0 | S92: 1.099557429 | T92: 363.4 | U92: 363.4 | X92: 53.58248519 | Z92: 53.58248519 | AB92: 44.76760575 | BA92: 0 | BB92: 0 | BK92: 44.76760575 | BL92: 91.68790507 | BM92: 105.45 | BN92: 149.518613 | BO92: 71.25 | BP92: 59.31580757 | BQ92: 191.5
G93: 8.7 | H93: 19 | I93: 19 | J93: 40 | K93: 36 | M93: 0 | O93: 0.2596161837 | Q93: 0 | S93: 1.099557429 | T93: 365.3 | U93: 365.3 | X93: 54.07575594 | Z93: 54.07575594 | AB93: 44.76760575 | BA93: 0 | BB93: 0 | BK93: 44.76760575 | BL93: 90.76176462 | BM93: 105.45 | BN93: 148.008324 | BO93: 71.25 | BP93: 59.31580757 | BQ93: 191.5
G94: 8.8 | H94: 19 | I94: 19 | J94: 40 | K94: 36 | M94: 0 | O94: 0.2596161837 | Q94: 0 | S94: 1.099557429 | T94: 367.2 | U94: 367.2 | X94: 54.56902669 | Z94: 54.56902669 | AB94: 44.76760575 | BA94: 0 | BB94: 0 | BK94: 44.76760575 | BL94: 89.83562416 | BM94: 105.45 | BN94: 146.4980349 | BO94: 71.25 | BP94: 59.31580757 | BQ94: 191.5
G95: 8.9 | H95: 19 | I95: 19 | J95: 40 | K95: 36 | M95: 0 | O95: 0.2596161837 | Q95: 0 | S95: 1.099557429 | T95: 369.1 | U95: 369.1 | X95: 55.06229744 | Z95: 55.06229744 | AB95: 44.76760575 | BA95: 0 | BB95: 0 | BK95: 44.76760575 | BL95: 88.90948371 | BM95: 105.45 | BN95: 144.9877459 | BO95: 71.25 | BP95: 59.31580757 | BQ95: 191.5
G96: 9 | H96: 19 | I96: 19 | J96: 40 | K96: 36 | M96: 0 | O96: 0.2596161837 | Q96: 0 | S96: 1.099557429 | T96: 371 | U96: 371 | X96: 55.55556819 | Z96: 55.55556819 | AB96: 44.76760575 | BA96: 0 | BB96: 0 | BK96: 44.76760575 | BL96: 87.98334325 | BM96: 105.45 | BN96: 143.4774569 | BO96: 71.25 | BP96: 59.31580757 | BQ96: 191.5
G97: 9.1 | H97: 19 | I97: 19 | J97: 40 | K97: 36 | M97: 0 | O97: 0.2596161837 | Q97: 0 | S97: 1.099557429 | T97: 372.9 | U97: 372.9 | X97: 56.04883894 | Z97: 56.04883894 | AB97: 44.76760575 | BA97: 0 | BB97: 0 | BK97: 44.76760575 | BL97: 87.0572028 | BM97: 105.45 | BN97: 141.9671679 | BO97: 71.25 | BP97: 59.31580757 | BQ97: 191.5
G98: 9.2 | H98: 19 | I98: 19 | J98: 40 | K98: 36 | M98: 0 | O98: 0.2596161837 | Q98: 0 | S98: 1.099557429 | T98: 374.8 | U98: 374.8 | X98: 56.54210968 | Z98: 56.54210968 | AB98: 44.76760575 | BA98: 0 | BB98: 0 | BK98: 44.76760575 | BL98: 86.13106234 | BM98: 105.45 | BN98: 140.4568789 | BO98: 71.25 | BP98: 59.31580757 | BQ98: 191.5
G99: 9.3 | H99: 19 | I99: 19 | J99: 40 | K99: 36 | M99: 0 | O99: 0.2596161837 | Q99: 0 | S99: 1.099557429 | T99: 376.7 | U99: 376.7 | X99: 57.03538043 | Z99: 57.03538043 | AB99: 44.76760575 | BA99: 0 | BB99: 0 | BK99: 44.76760575 | BL99: 85.20492189 | BM99: 105.45 | BN99: 138.9465898 | BO99: 71.25 | BP99: 59.31580757 | BQ99: 191.5
G100: 9.4 | H100: 19 | I100: 19 | J100: 40 | K100: 36 | M100: 0 | O100: 0.2596161837 | Q100: 0 | S100: 1.099557429 | T100: 378.6 | U100: 378.6 | X100: 57.52865118 | Z100: 57.52865118 | AB100: 44.76760575 | BA100: 0 | BB100: 0 | BK100: 44.76760575 | BL100: 84.27878143 | BM100: 105.45 | BN100: 137.4363008 | BO100: 71.25 | BP100: 59.31580757 | BQ100: 191.5
G101: 9.5 | H101: 19 | I101: 19 | J101: 40 | K101: 36 | M101: 0 | O101: 0.2596161837 | Q101: 0 | S101: 1.099557429 | T101: 380.5 | U101: 380.5 | X101: 58.02192193 | Z101: 58.02192193 | AB101: 44.76760575 | BA101: 0 | BB101: 0 | BK101: 44.76760575 | BL101: 83.35264097 | BM101: 105.45 | BN101: 135.9260118 | BO101: 71.25 | BP101: 59.31580757 | BQ101: 191.5
G102: 9.6 | H102: 19 | I102: 19 | J102: 40 | K102: 36 | M102: 0 | O102: 0.2596161837 | Q102: 0 | S102: 1.099557429 | T102: 382.4 | U102: 382.4 | X102: 58.51519268 | Z102: 58.51519268 | AB102: 44.76760575 | BA102: 0 | BB102: 0 | BK102: 44.76760575 | BL102: 82.42650052 | BM102: 105.45 | BN102: 134.4157228 | BO102: 71.25 | BP102: 59.31580757 | BQ102: 191.5
G103: 9.7 | H103: 19 | I103: 19 | J103: 40 | K103: 36 | M103: 0 | O103: 0.2596161837 | Q103: 0 | S103: 1.099557429 | T103: 384.3 | U103: 384.3 | X103: 59.00846343 | Z103: 59.00846343 | AB103: 44.76760575 | BA103: 0 | BB103: 0 | BK103: 44.76760575 | BL103: 81.50036006 | BM103: 105.45 | BN103: 132.9054338 | BO103: 71.25 | BP103: 59.31580757 | BQ103: 191.5
G104: 9.8 | H104: 19 | I104: 19 | J104: 40 | K104: 36 | M104: 0 | O104: 0.2596161837 | Q104: 0 | S104: 1.099557429 | T104: 386.2 | U104: 386.2 | X104: 59.50173418 | Z104: 59.50173418 | AB104: 44.76760575 | BA104: 0 | BB104: 0 | BK104: 44.76760575 | BL104: 80.57421961 | BM104: 105.45 | BN104: 131.3951447 | BO104: 71.25 | BP104: 59.31580757 | BQ104: 191.5
G105: 9.9 | H105: 19 | I105: 19 | J105: 40 | K105: 36 | M105: 0 | O105: 0.2596161837 | Q105: 0 | S105: 1.099557429 | T105: 388.1 | U105: 388.1 | X105: 59.99500493 | Z105: 59.99500493 | AB105: 44.76760575 | BA105: 0 | BB105: 0 | BK105: 44.76760575 | BL105: 79.64807915 | BM105: 105.45 | BN105: 129.8848557 | BO105: 71.25 | BP105: 59.31580757 | BQ105: 191.5
G106: 10 | H106: 19 | I106: 19 | J106: 40 | K106: 36 | M106: 0 | O106: 0.2596161837 | Q106: 0 | S106: 1.099557429 | T106: 390 | U106: 390 | X106: 60.48827568 | Z106: 60.48827568 | AB106: 44.76760575 | BA106: 0 | BB106: 0 | BK106: 44.76760575 | BL106: 78.7219387 | BM106: 105.45 | BN106: 128.3745667 | BO106: 71.25 | BP106: 59.31580757 | BQ106: 191.5
G107: 10.1 | H107: 19 | I107: 19 | J107: 40 | K107: 36 | M107: 0 | O107: 0.2596161837 | Q107: 0 | S107: 1.099557429 | T107: 391.9 | U107: 391.9 | X107: 60.98154643 | Z107: 60.98154643 | AB107: 44.76760575 | BA107: 0 | BB107: 0 | BK107: 44.76760575 | BL107: 77.79579824 | BM107: 105.45 | BN107: 126.8642777 | BO107: 71.25 | BP107: 59.31580757 | BQ107: 191.5
G108: 10.2 | H108: 19 | I108: 19 | J108: 40 | K108: 36 | M108: 0 | O108: 0.2596161837 | Q108: 0 | S108: 1.099557429 | T108: 393.8 | U108: 393.8 | X108: 61.47481717 | Z108: 61.47481717 | AB108: 44.76760575 | BA108: 0 | BB108: 0 | BK108: 44.76760575 | BL108: 76.86965779 | BM108: 105.45 | BN108: 125.3539887 | BO108: 71.25 | BP108: 59.31580757 | BQ108: 191.5
G109: 10.3 | H109: 19 | I109: 19 | J109: 40 | K109: 36 | M109: 0 | O109: 0.2596161837 | Q109: 0 | S109: 1.099557429 | T109: 395.7 | U109: 395.7 | X109: 61.96808792 | Z109: 61.96808792 | AB109: 44.76760575 | BA109: 0 | BB109: 0 | BK109: 44.76760575 | BL109: 75.94351733 | BM109: 105.45 | BN109: 123.8436996 | BO109: 71.25 | BP109: 59.31580757 | BQ109: 191.5
G110: 10.4 | H110: 19 | I110: 19 | J110: 40 | K110: 36 | M110: 0 | O110: 0.2596161837 | Q110: 0 | S110: 1.099557429 | T110: 397.6 | U110: 397.6 | X110: 62.46135867 | Z110: 62.46135867 | AB110: 44.76760575 | BA110: 0 | BB110: 0 | BK110: 44.76760575 | BL110: 75.01737688 | BM110: 105.45 | BN110: 122.3334106 | BO110: 71.25 | BP110: 59.31580757 | BQ110: 191.5
G111: 10.5 | H111: 19 | I111: 19 | J111: 40 | K111: 36 | M111: 0 | O111: 0.2596161837 | Q111: 0 | S111: 1.099557429 | T111: 399.5 | U111: 399.5 | X111: 62.95462942 | Z111: 62.95462942 | AB111: 44.76760575 | BA111: 0 | BB111: 0 | BK111: 44.76760575 | BL111: 74.09123642 | BM111: 105.45 | BN111: 120.8231216 | BO111: 71.25 | BP111: 59.31580757 | BQ111: 191.5
G112: 10.6 | H112: 19 | I112: 19 | J112: 40 | K112: 36 | M112: 0 | O112: 0.2596161837 | Q112: 0 | S112: 1.099557429 | T112: 401.4 | U112: 401.4 | X112: 63.44790017 | Z112: 63.44790017 | AB112: 44.76760575 | BA112: 0 | BB112: 0 | BK112: 44.76760575 | BL112: 73.16509597 | BM112: 105.45 | BN112: 119.3128326 | BO112: 71.25 | BP112: 59.31580757 | BQ112: 191.5
G113: 10.7 | H113: 19 | I113: 19 | J113: 40 | K113: 36 | M113: 0 | O113: 0.2596161837 | Q113: 0 | S113: 1.099557429 | T113: 403.3 | U113: 403.3 | X113: 63.94117092 | Z113: 63.94117092 | AB113: 44.76760575 | BA113: 0 | BB113: 0 | BK113: 44.76760575 | BL113: 72.23895551 | BM113: 105.45 | BN113: 117.8025436 | BO113: 71.25 | BP113: 59.31580757 | BQ113: 191.5
G114: 10.8 | H114: 19 | I114: 19 | J114: 40 | K114: 36 | M114: 0 | O114: 0.2596161837 | Q114: 0 | S114: 1.099557429 | T114: 405.2 | U114: 405.2 | X114: 64.43444167 | Z114: 64.43444167 | AB114: 44.76760575 | BA114: 0 | BB114: 0 | BK114: 44.76760575 | BL114: 71.31281506 | BM114: 105.45 | BN114: 116.2922545 | BO114: 71.25 | BP114: 59.31580757 | BQ114: 191.5
G115: 10.9 | H115: 19 | I115: 19 | J115: 40 | K115: 36 | M115: 0 | O115: 0.2596161837 | Q115: 0 | S115: 1.099557429 | T115: 407.1 | U115: 407.1 | X115: 64.92771242 | Z115: 64.92771242 | AB115: 44.76760575 | BA115: 0 | BB115: 0 | BK115: 44.76760575 | BL115: 70.3866746 | BM115: 105.45 | BN115: 114.7819655 | BO115: 71.25 | BP115: 59.31580757 | BQ115: 191.5
G116: 11 | H116: 19 | I116: 19 | J116: 40 | K116: 36 | M116: 0 | O116: 0.2596161837 | Q116: 0 | S116: 1.099557429 | T116: 409 | U116: 409 | X116: 65.42098317 | Z116: 65.42098317 | AB116: 44.76760575 | BA116: 0 | BB116: 0 | BK116: 44.76760575 | BL116: 69.46053415 | BM116: 105.45 | BN116: 113.2716765 | BO116: 71.25 | BP116: 59.31580757 | BQ116: 191.5
G117: 11.1 | H117: 19 | I117: 19 | J117: 40 | K117: 36 | M117: 0 | O117: 0.2596161837 | Q117: 0 | S117: 1.099557429 | T117: 410.9 | U117: 410.9 | X117: 65.91425392 | Z117: 65.91425392 | AB117: 44.76760575 | BA117: 0 | BB117: 0 | BK117: 44.76760575 | BL117: 68.53439369 | BM117: 105.45 | BN117: 111.7613875 | BO117: 71.25 | BP117: 59.31580757 | BQ117: 191.5
G118: 11.2 | H118: 19 | I118: 19 | J118: 40 | K118: 36 | M118: 0 | O118: 0.2596161837 | Q118: 0 | S118: 1.099557429 | T118: 412.8 | U118: 412.8 | X118: 66.40752466 | Z118: 66.40752466 | AB118: 44.76760575 | BA118: 0 | BB118: 0 | BK118: 44.76760575 | BL118: 67.60825323 | BM118: 105.45 | BN118: 110.2510985 | BO118: 71.25 | BP118: 59.31580757 | BQ118: 191.5
G119: 11.3 | H119: 19 | I119: 19 | J119: 40 | K119: 36 | M119: 0 | O119: 0.2596161837 | Q119: 0 | S119: 1.099557429 | T119: 414.7 | U119: 414.7 | X119: 66.90079541 | Z119: 66.90079541 | AB119: 44.76760575 | BA119: 0 | BB119: 0 | BK119: 44.76760575 | BL119: 66.68211278 | BM119: 105.45 | BN119: 108.7408094 | BO119: 71.25 | BP119: 59.31580757 | BQ119: 191.5
G120: 11.4 | H120: 19 | I120: 19 | J120: 40 | K120: 36 | M120: 0 | O120: 0.2596161837 | Q120: 0 | S120: 1.099557429 | T120: 416.6 | U120: 416.6 | X120: 67.39406616 | Z120: 67.39406616 | AB120: 44.76760575 | BA120: 0 | BB120: 0 | BK120: 44.76760575 | BL120: 65.75597232 | BM120: 105.45 | BN120: 107.2305204 | BO120: 71.25 | BP120: 59.31580757 | BQ120: 191.5
G121: 11.5 | H121: 19 | I121: 19 | J121: 40 | K121: 36 | M121: 0 | O121: 0.2596161837 | Q121: 0 | S121: 1.099557429 | T121: 418.5 | U121: 418.5 | X121: 67.88733691 | Z121: 67.88733691 | AB121: 44.76760575 | BA121: 0 | BB121: 0 | BK121: 44.76760575 | BL121: 64.82983187 | BM121: 105.45 | BN121: 105.7202314 | BO121: 71.25 | BP121: 59.31580757 | BQ121: 191.5
G122: 11.6 | H122: 19 | I122: 19 | J122: 40 | K122: 36 | M122: 0 | O122: 0.2596161837 | Q122: 0 | S122: 1.099557429 | T122: 420.4 | U122: 420.4 | X122: 68.38060766 | Z122: 68.38060766 | AB122: 44.76760575 | BA122: 0 | BB122: 0 | BK122: 44.76760575 | BL122: 63.90369141 | BM122: 105.45 | BN122: 104.2099424 | BO122: 71.25 | BP122: 59.31580757 | BQ122: 191.5
G123: 11.7 | H123: 19 | I123: 19 | J123: 40 | K123: 36 | M123: 0 | O123: 0.2596161837 | Q123: 0 | S123: 1.099557429 | T123: 422.3 | U123: 422.3 | X123: 68.87387841 | Z123: 68.87387841 | AB123: 44.76760575 | BA123: 0 | BB123: 0 | BK123: 44.76760575 | BL123: 62.97755096 | BM123: 105.45 | BN123: 102.6996534 | BO123: 71.25 | BP123: 59.31580757 | BQ123: 191.5
G124: 11.8 | H124: 19 | I124: 19 | J124: 40 | K124: 36 | M124: 0 | O124: 0.2596161837 | Q124: 0 | S124: 1.099557429 | T124: 424.2 | U124: 424.2 | X124: 69.36714916 | Z124: 69.36714916 | AB124: 44.76760575 | BA124: 0 | BB124: 0 | BK124: 44.76760575 | BL124: 62.0514105 | BM124: 105.45 | BN124: 101.1893643 | BO124: 71.25 | BP124: 59.31580757 | BQ124: 191.5
G125: 11.9 | H125: 19 | I125: 19 | J125: 40 | K125: 36 | M125: 0 | O125: 0.2596161837 | Q125: 0 | S125: 1.099557429 | T125: 426.1 | U125: 426.1 | X125: 69.86041991 | Z125: 69.86041991 | AB125: 44.76760575 | BA125: 0 | BB125: 0 | BK125: 44.76760575 | BL125: 61.12527005 | BM125: 105.45 | BN125: 99.67907532 | BO125: 71.25 | BP125: 59.31580757 | BQ125: 191.5
G126: 12 | H126: 19 | I126: 19 | J126: 40 | K126: 36 | M126: 0 | O126: 0.2596161837 | Q126: 0 | S126: 1.099557429 | T126: 428 | U126: 428 | X126: 70.35369066 | Z126: 70.35369066 | AB126: 44.76760575 | BA126: 0 | BB126: 0 | BK126: 44.76760575 | BL126: 60.19912959 | BM126: 105.45 | BN126: 98.1687863 | BO126: 71.25 | BP126: 59.31580757 | BQ126: 191.5
G127: 12.1 | H127: 19 | I127: 19 | J127: 40 | K127: 36 | M127: 0 | O127: 0.2596161837 | Q127: 0 | S127: 1.099557429 | T127: 429.9 | U127: 429.9 | X127: 70.84696141 | Z127: 70.84696141 | AB127: 44.76760575 | BA127: 0 | BB127: 0 | BK127: 44.76760575 | BL127: 59.27298914 | BM127: 105.45 | BN127: 96.65849728 | BO127: 71.25 | BP127: 59.31580757 | BQ127: 191.5
G128: 12.2 | H128: 19 | I128: 19 | J128: 40 | K128: 36 | M128: 0 | O128: 0.2596161837 | Q128: 0 | S128: 1.099557429 | T128: 431.8 | U128: 431.8 | X128: 71.34023215 | Z128: 71.34023215 | AB128: 44.76760575 | BA128: 0 | BB128: 0 | BK128: 44.76760575 | BL128: 58.34684868 | BM128: 105.45 | BN128: 95.14820826 | BO128: 71.25 | BP128: 59.31580757 | BQ128: 191.5
G129: 12.3 | H129: 19 | I129: 19 | J129: 40 | K129: 36 | M129: 0 | O129: 0.2596161837 | Q129: 0 | S129: 1.099557429 | T129: 433.7 | U129: 433.7 | X129: 71.8335029 | Z129: 71.8335029 | AB129: 44.76760575 | BA129: 0 | BB129: 0 | BK129: 44.76760575 | BL129: 57.42070823 | BM129: 105.45 | BN129: 93.63791924 | BO129: 71.25 | BP129: 59.31580757 | BQ129: 191.5
G130: 12.4 | H130: 19 | I130: 19 | J130: 40 | K130: 36 | M130: 0 | O130: 0.2596161837 | Q130: 0 | S130: 1.099557429 | T130: 435.6 | U130: 435.6 | X130: 72.32677365 | Z130: 72.32677365 | AB130: 44.76760575 | BA130: 0 | BB130: 0 | BK130: 44.76760575 | BL130: 56.49456777 | BM130: 105.45 | BN130: 92.12763022 | BO130: 71.25 | BP130: 59.31580757 | BQ130: 191.5
G131: 12.5 | H131: 19 | I131: 19 | J131: 40 | K131: 36 | L131: 30 | M131: 0 | O131: 0.2596161837 | P131: 3 | Q131: 0 | R131: 0 | S131: 1.099557429 | T131: 437.5 | U131: 437.5 | V131: 0 | W131: 0 | X131: 72.8200444 | Y131: -138.5640646 | Z131: -65.7440202 | AB131: 44.76760575 | BA131: 0 | BB131: 0 | BK131: 44.76760575 | BL131: 55.56842732 | BM131: 105.45 | BN131: 90.6173412 | BO131: 71.25 | BP131: 59.31580757 | BQ131: 191.5
G132: 12.6 | H132: 19 | I132: 19 | J132: 40 | K132: 36 | L132: 30 | M132: 0 | O132: 0.2596161837 | P132: 3 | Q132: 0 | R132: 0 | S132: 1.099557429 | T132: 439.4 | U132: 439.4 | V132: 1.9 | W132: =IF(G132<h,(""),(IF(G132<h+dzd,(0),(IF(N132="",(W131+H132*(G132-G131)),(W131+(I132-9.81)*(G132-G131))))))) -> 1.9 | X132: 73.31331515 | Y132: -144.2640646 | Z132: =IF(Y132="",X132,X132+Y132) -> -70.95074945 | AA132: =IF(N132="",(""),IF(G132>h,AA131,((G132-nz)*9.81))) ->  | AB132: 44.76760575 | BA132: 0 | BB132: 0 | BK132: 44.76760575 | BL132: 54.64228686 | BM132: 105.45 | BN132: 89.10705218 | BO132: 71.25 | BP132: 59.31580757 | BQ132: 191.5
G133: 12.7 | H133: 19 | I133: 19 | J133: 40 | K133: 36 | L133: 30 | M133: 0 | O133: 0.2596161837 | P133: 3 | Q133: 0 | R133: 0 | S133: 1.099557429 | T133: 441.3 | U133: 441.3 | V133: 3.8 | W133: 3.8 | X133: 73.8065859 | Y133: -149.9640646 | Z133: -76.15747871 | AB133: 44.76760575 | BA133: 0 | BB133: 0 | BK133: 44.76760575 | BL133: 53.71614641 | BM133: 105.45 | BN133: 87.59676316 | BO133: 71.25 | BP133: 59.31580757 | BQ133: 191.5
G134: 12.8 | H134: 19 | I134: 19 | J134: 40 | K134: 36 | L134: 30 | M134: 0 | O134: 0.2596161837 | P134: 3 | Q134: 0 | R134: =IF(L134="","",(IF(G134="","",IF(G134=h,(R135),(IF(N134="",$E$11,($E$11*V134/W134))))))) -> 0 | S134: 1.099557429 | T134: 443.2 | U134: 443.2 | V134: =IF(G134<h,(""),(IF(G134<h+dzd,(0),(IF(N134="",(V133+H134*(G134-G133)),(V133+(I134)*(G134-G133))))))) -> 5.7 | W134: 5.7 | X134: 74.29985665 | Y134: =IF(G134<h,(""),((-P134*W134-2*J134*(P134^0.5))*COS(RADIANS(M134)))) -> -155.6640646 | Z134: -81.36420796 | AB134: =IF(G134="","",IF(G134>hd,0,IF($A$27=1,BK134,IF($A$27=2,BL134,IF($A$27=3,BM134,IF($A$27=4,BN134+ka*($E$4+$E$5),IF($A$27=5,BP134,IF($A$27=6,BO134,BQ134)))))))) -> 44.76760575 | BA134: 0 | BB134: 0 | BK134: =IF(G134="","",IF(G134>hd,0,(IF(G134<0.2*(hd),(1.6*($AH$20+$AH$21)/(hd)/0.2/(hd)*G134),(IF(G134<0.8*(hd),(1.6*($AH$20+$AH$21)/(hd)),(1.6*($AH$20+$AH$21)/(hd)-1.6*($AH$20+$AH$21)/(hd)/0.2/(hd)*(G134-0.8*(hd))))))))) -> 44.76760575 | BL134: =IF(G134="","",IF(G134>hd,0,(IF(G134<((2/3)*$AH$6),(1.3*($AH$20+$AH$21)/(hd-(1/3)*($AH$6+(hd-MAX($AP$6:$AP$15))))*G134/(2/3*$AH$6)),(IF(G134<(h-2/3*(hd-MAX($AP$6:$AP$15))),1.3*($AH$20+$AH$21)/(hd-1/3*($AH$6+(hd-MAX($AP$6:$AP$15)))),1.3*($AH$20+$AH$21)/(hd-1/3*($AH$6+(hd-MAX($AP$6:$AP$15))))*(1-(G134-(hd-2/3*(hd-MAX($AP$6:$AP$15))))/(2/3*(hd-MAX($AP$6:$AP$15)))))))))) -> 52.79000595 | BM134: =IF(G134="","",IF(G134>hd,0,(IF(G134<(0.6667*$AH$6),(0.3*g*hd*G134/(0.6667*$AH$6)),(IF(G134<(hd-0.6667*(hd-MAX($AP$6:$AP$15))),0.3*g*hd,0.3*g*hd*(1-(G134-(hd-0.6667*(hd-MAX($AP$6:$AP$15))))/(0.6667*(hd-MAX($AP$6:$AP$15)))))))))) -> 105.45 | BN134: =IF(G134="","",IF(G134>hd,0,(IF(G134<((2/3)*$AH$6),(0.65*ka*g*hd*hd/(hd-(1/3)*($AH$6+(hd-MAX($AP$6:$AP$15))))*G134/(2/3*$AH$6)),(IF(G134<(h-2/3*(hd-MAX($AP$6:$AP$15))),0.65*ka*g*hd*hd/(hd-1/3*($AH$6+(hd-MAX($AP$6:$AP$15)))),0.65*ka*g*hd*hd/(hd-1/3*($AH$6+(hd-MAX($AP$6:$AP$15))))*(1-(G134-(hd-2/3*(hd-MAX($AP$6:$AP$15))))/(2/3*(hd-MAX($AP$6:$AP$15)))))))))) -> 86.08647414 | BO134: =IF(G134="","",IF(G134>hd,0,(IF(G134<(0.25*hd),(0.3*g*h*G134/(0.25*hd)),(IF(G134<(0.75*hd),0.3*g*h,0.3*g*h*(1-(G134-0.75*hd)/0.25/hd))))))) -> 71.25 | BP134: =IF(G134>hd,0,IF(G134="","",0.65*ka*g*hd)) -> 59.31580757 | BQ134: =IF(G134="","",IF(G134>hd,0,(IF(G134<(0.25*hd),(1-4*ca/g/hd)*g*hd*G134/(0.25*hd),((1-4*ca/g/hd)*g*hd))))) -> 191.5
G135: 12.9 | H135: 19 | I135: 19 | J135: 40 | K135: 36 | L135: 30 | M135: 0 | O135: =IF(G135="",(""),((SIN(RADIANS($E$9+BA135-K135)))^2)*((SIN(RADIANS($E$9)))^-2)*((COS(RADIANS(BA135)))^-1)*((SIN((RADIANS($E$9+BA135+M135))))^-1)/(1+((SIN(RADIANS(K135+M135)))*(SIN((RADIANS(K135-$E$7-BA135))/(SIN(RADIANS($E$9-$E$7)))/(SIN((RADIANS($E$9+BA135+M135)))))))^0.5)^2) -> 0.2596161837 | P135: =IF(L135="",(""),((SIN(RADIANS($E$9-BB135+L135)))^2)*((SIN(RADIANS($E$9)))^-2)*((COS(RADIANS(BB135)))^-1)*((SIN((RADIANS($E$9-BB135-M135))))^-1)/(1-((SIN(RADIANS(L135+M135)))*(SIN((RADIANS(L135+$E$7-BB135))/(SIN(RADIANS($E$9-$E$7)))/(SIN((RADIANS($E$9-BB135-M135)))))))^0.5)^2) -> 3 | Q135: =IF(G135="","",(IF(N135="",$E$11,($E$11*T135/U135)))) -> 0 | R135: 0 | S135: =IF(G135="","",0.5*PI()-ATAN((-TAN(RADIANS(K135+M135+(90-$E$9)-$E$7)))+(1/(COS(RADIANS(K135+M135+(90-$E$9)-$E$7))))*((COS((RADIANS(90-$E$9+M135+BA135))))^0.5)*((SIN(RADIANS(K135+M135)))^0.5)*((COS(RADIANS(90-$E$9-$E$7)))^-0.5)*((SIN(RADIANS(K135-$E$7-BA135)))^-0.5)))+$E$7 -> 1.099557429 | T135: 445.1 | U135: 445.1 | V135: 7.6 | W135: 7.6 | X135: 74.7931274 | Y135: -161.3640646 | Z135: -86.57093721 | AB135: 44.76760575 | BA135: =ATAN(Q135)/0.017453 -> 0 | BB135: =ATAN(Q135)/0.017453 -> 0 | BK135: 44.76760575 | BL135: 51.8638655 | BM135: 105.45 | BN135: 84.57618512 | BO135: 71.25 | BP135: 59.31580757 | BQ135: 191.5
G136: 13 | H136: 19 | I136: 19 | J136: 40 | K136: 36 | L136: 30 | M136: 0 | O136: 0.2596161837 | P136: 3 | Q136: 0 | R136: 0 | S136: 1.099557429 | T136: =IF(G136="",(""),(IF(N136="",(T135+(G136-G135)*H135),(T135+(G136-G135)*(I135))))) -> 447 | U136: =IF(G136="",(""),(IF(N136="",(U135+(G136-G135)*H135),(U135+(G136-G135)*(I135-9.81))))) -> 447 | V136: 9.5 | W136: 9.5 | X136: =IF(G136="",(""),((O136*U136-2*J136*(O136)^0.5))*COS(RADIANS(M136))) -> 75.28639815 | Y136: -167.0640646 | Z136: -91.77766646 | AB136: 44.76760575 | BA136: 0 | BB136: 0 | BK136: 44.76760575 | BL136: 50.93772504 | BM136: 105.45 | BN136: 83.0658961 | BO136: 71.25 | BP136: 59.31580757 | BQ136: 191.5
G137: 13.1 | H137: 19 | I137: 19 | J137: 40 | K137: 36 | L137: 30 | M137: 0 | O137: 0.2596161837 | P137: 3 | Q137: 0 | R137: 0 | S137: 1.099557429 | T137: 448.9 | U137: 448.9 | V137: 11.4 | W137: 11.4 | X137: 75.7796689 | Y137: -172.7640646 | Z137: -96.98439571 | AB137: 44.76760575 | BA137: 0 | BB137: 0 | BK137: 44.76760575 | BL137: 50.01158458 | BM137: 105.45 | BN137: 81.55560708 | BO137: 71.25 | BP137: 59.31580757 | BQ137: 191.5
G138: 13.2 | H138: 19 | I138: 19 | J138: 40 | K138: 36 | L138: 30 | M138: 0 | O138: 0.2596161837 | P138: 3 | Q138: 0 | R138: 0 | S138: 1.099557429 | T138: 450.8 | U138: 450.8 | V138: 13.3 | W138: 13.3 | X138: 76.27293964 | Y138: -178.4640646 | Z138: -102.191125 | AB138: 44.76760575 | BA138: 0 | BB138: 0 | BK138: 44.76760575 | BL138: 49.08544413 | BM138: 105.45 | BN138: 80.04531806 | BO138: 71.25 | BP138: 59.31580757 | BQ138: 191.5
G139: 13.3 | H139: 19 | I139: 19 | J139: 40 | K139: 36 | L139: 30 | M139: 0 | O139: 0.2596161837 | P139: 3 | Q139: 0 | R139: 0 | S139: 1.099557429 | T139: 452.7 | U139: 452.7 | V139: 15.2 | W139: 15.2 | X139: 76.76621039 | Y139: -184.1640646 | Z139: -107.3978542 | AB139: 44.76760575 | BA139: 0 | BB139: 0 | BK139: 44.76760575 | BL139: 48.15930367 | BM139: 105.45 | BN139: 78.53502904 | BO139: 71.25 | BP139: 59.31580757 | BQ139: 191.5
G140: 13.4 | H140: 19 | I140: 19 | J140: 40 | K140: 36 | L140: 30 | M140: 0 | O140: 0.2596161837 | P140: 3 | Q140: 0 | R140: 0 | S140: 1.099557429 | T140: 454.6 | U140: 454.6 | V140: 17.1 | W140: 17.1 | X140: 77.25948114 | Y140: -189.8640646 | Z140: -112.6045835 | AB140: 44.76760575 | BA140: 0 | BB140: 0 | BK140: 44.76760575 | BL140: 47.23316322 | BM140: 105.45 | BN140: 77.02474002 | BO140: 71.25 | BP140: 59.31580757 | BQ140: 191.5
G141: 13.5 | H141: 19 | I141: 19 | J141: 40 | K141: 36 | L141: 30 | M141: 0 | O141: 0.2596161837 | P141: 3 | Q141: 0 | R141: 0 | S141: 1.099557429 | T141: 456.5 | U141: 456.5 | V141: 19 | W141: 19 | X141: 77.75275189 | Y141: -195.5640646 | Z141: -117.8113127 | AB141: 44.76760575 | BA141: 0 | BB141: 0 | BK141: 44.76760575 | BL141: 46.30702276 | BM141: 105.45 | BN141: 75.514451 | BO141: 71.25 | BP141: 59.31580757 | BQ141: 191.5
G142: 13.6 | H142: 19 | I142: 19 | J142: 40 | K142: 36 | L142: 30 | M142: 0 | O142: 0.2596161837 | P142: 3 | Q142: 0 | R142: 0 | S142: 1.099557429 | T142: 458.4 | U142: 458.4 | V142: 20.9 | W142: 20.9 | X142: 78.24602264 | Y142: -201.2640646 | Z142: -123.018042 | AB142: 44.76760575 | BA142: 0 | BB142: 0 | BK142: 44.76760575 | BL142: 45.38088231 | BM142: 105.45 | BN142: 74.00416198 | BO142: 71.25 | BP142: 59.31580757 | BQ142: 191.5
G143: 13.7 | H143: 19 | I143: 19 | J143: 40 | K143: 36 | L143: 30 | M143: 0 | O143: 0.2596161837 | P143: 3 | Q143: 0 | R143: 0 | S143: 1.099557429 | T143: 460.3 | U143: 460.3 | V143: 22.8 | W143: 22.8 | X143: 78.73929339 | Y143: -206.9640646 | Z143: -128.2247712 | AB143: 44.76760575 | BA143: 0 | BB143: 0 | BK143: 44.76760575 | BL143: 44.45474185 | BM143: 105.45 | BN143: 72.49387296 | BO143: 71.25 | BP143: 59.31580757 | BQ143: 191.5
G144: 13.8 | H144: 19 | I144: 19 | J144: 40 | K144: 36 | L144: 30 | M144: 0 | O144: 0.2596161837 | P144: 3 | Q144: 0 | R144: 0 | S144: 1.099557429 | T144: 462.2 | U144: 462.2 | V144: 24.7 | W144: 24.7 | X144: 79.23256414 | Y144: -212.6640646 | Z144: -133.4315005 | AB144: 44.76760575 | BA144: 0 | BB144: 0 | BK144: 44.76760575 | BL144: 43.5286014 | BM144: 105.45 | BN144: 70.98358394 | BO144: 71.25 | BP144: 59.31580757 | BQ144: 191.5
G145: 13.9 | H145: 19 | I145: 19 | J145: 40 | K145: 36 | L145: 30 | M145: 0 | O145: 0.2596161837 | P145: 3 | Q145: 0 | R145: 0 | S145: 1.099557429 | T145: 464.1 | U145: 464.1 | V145: 26.6 | W145: 26.6 | X145: 79.72583489 | Y145: -218.3640646 | Z145: -138.6382297 | AB145: 44.76760575 | BA145: 0 | BB145: 0 | BK145: 44.76760575 | BL145: 42.60246094 | BM145: 105.45 | BN145: 69.47329492 | BO145: 70.86486486 | BP145: 59.31580757 | BQ145: 191.5
G146: 14 | H146: 19 | I146: 19 | J146: 40 | K146: 36 | L146: 30 | M146: 0 | O146: 0.2596161837 | P146: 3 | Q146: 0 | R146: 0 | S146: 1.099557429 | T146: 466 | U146: 466 | V146: 28.5 | W146: 28.5 | X146: 80.21910564 | Y146: -224.0640646 | Z146: -143.844959 | AB146: 44.76760575 | BA146: 0 | BB146: 0 | BK146: 44.76760575 | BL146: 41.67632049 | BM146: 105.45 | BN146: 67.9630059 | BO146: 69.32432432 | BP146: 59.31580757 | BQ146: 191.5
G147: 14.1 | H147: 19 | I147: 19 | J147: 40 | K147: 36 | L147: 30 | M147: 0 | O147: 0.2596161837 | P147: 3 | Q147: 0 | R147: 0 | S147: 1.099557429 | T147: 467.9 | U147: 467.9 | V147: 30.4 | W147: 30.4 | X147: 80.71237639 | Y147: -229.7640646 | Z147: -149.0516882 | AB147: 44.76760575 | BA147: 0 | BB147: 0 | BK147: 44.76760575 | BL147: 40.75018003 | BM147: 103.8709259 | BN147: 66.45271688 | BO147: 67.78378378 | BP147: 59.31580757 | BQ147: 191.5
G148: 14.2 | H148: 19 | I148: 19 | J148: 40 | K148: 36 | L148: 30 | M148: 0 | O148: 0.2596161837 | P148: 3 | Q148: 0 | R148: 0 | S148: 1.099557429 | T148: 469.8 | U148: 469.8 | V148: 32.3 | W148: 32.3 | X148: 81.20564713 | Y148: -235.4640646 | Z148: -154.2584175 | AB148: 44.76760575 | BA148: 0 | BB148: 0 | BK148: 44.76760575 | BL148: 39.82403958 | BM148: 101.510223 | BN148: 64.94242786 | BO148: 66.24324324 | BP148: 59.31580757 | BQ148: 191.5
G149: 14.3 | H149: 19 | I149: 19 | J149: 40 | K149: 36 | L149: 30 | M149: 0 | O149: 0.2596161837 | P149: 3 | Q149: 0 | R149: 0 | S149: 1.099557429 | T149: 471.7 | U149: 471.7 | V149: 34.2 | W149: 34.2 | X149: 81.69891788 | Y149: -241.1640646 | Z149: -159.4651467 | AB149: 44.76760575 | BA149: 0 | BB149: 0 | BK149: 44.76760575 | BL149: 38.89789912 | BM149: 99.14952014 | BN149: 63.43213884 | BO149: 64.7027027 | BP149: 59.31580757 | BQ149: 191.5
G150: 14.4 | H150: 19 | I150: 19 | J150: 40 | K150: 36 | L150: 30 | M150: 0 | O150: 0.2596161837 | P150: 3 | Q150: 0 | R150: 0 | S150: 1.099557429 | T150: 473.6 | U150: 473.6 | V150: 36.1 | W150: 36.1 | X150: 82.19218863 | Y150: -246.8640646 | Z150: -164.671876 | AB150: 44.76760575 | BA150: 0 | BB150: 0 | BK150: 44.76760575 | BL150: 37.97175867 | BM150: 96.78881728 | BN150: 61.92184982 | BO150: 63.16216216 | BP150: 59.31580757 | BQ150: 191.5
G151: 14.5 | H151: 19 | I151: 19 | J151: 40 | K151: 36 | L151: 30 | M151: 0 | O151: 0.2596161837 | P151: 3 | Q151: 0 | R151: 0 | S151: 1.099557429 | T151: 475.5 | U151: 475.5 | V151: 38 | W151: 38 | X151: 82.68545938 | Y151: -252.5640646 | Z151: -169.8786052 | AB151: 44.76760575 | BA151: 0 | BB151: 0 | BK151: 44.76760575 | BL151: 37.04561821 | BM151: 94.42811442 | BN151: 60.4115608 | BO151: 61.62162162 | BP151: 59.31580757 | BQ151: 191.5
G152: 14.6 | H152: 19 | I152: 19 | J152: 40 | K152: 36 | L152: 30 | M152: 0 | O152: 0.2596161837 | P152: 3 | Q152: 0 | R152: 0 | S152: 1.099557429 | T152: 477.4 | U152: 477.4 | V152: 39.9 | W152: 39.9 | X152: 83.17873013 | Y152: -258.2640646 | Z152: -175.0853345 | AB152: 44.76760575 | BA152: 0 | BB152: 0 | BK152: 44.76760575 | BL152: 36.11947776 | BM152: 92.06741155 | BN152: 58.90127178 | BO152: 60.08108108 | BP152: 59.31580757 | BQ152: 191.5
G153: 14.7 | H153: 19 | I153: 19 | J153: 40 | K153: 36 | L153: 30 | M153: 0 | O153: 0.2596161837 | P153: 3 | Q153: 0 | R153: 0 | S153: 1.099557429 | T153: 479.3 | U153: 479.3 | V153: 41.8 | W153: 41.8 | X153: 83.67200088 | Y153: -263.9640646 | Z153: -180.2920637 | AB153: 44.76760575 | BA153: 0 | BB153: 0 | BK153: 44.76760575 | BL153: 35.1933373 | BM153: 89.70670869 | BN153: 57.39098276 | BO153: 58.54054054 | BP153: 59.31580757 | BQ153: 191.5
G154: 14.8 | H154: 19 | I154: 19 | J154: 40 | K154: 36 | L154: 30 | M154: 0 | O154: 0.2596161837 | P154: 3 | Q154: 0 | R154: 0 | S154: 1.099557429 | T154: 481.2 | U154: 481.2 | V154: 43.7 | W154: 43.7 | X154: 84.16527163 | Y154: -269.6640646 | Z154: -185.498793 | AB154: 44.76760575 | BA154: 0 | BB154: 0 | BK154: 44.76760575 | BL154: 34.26719685 | BM154: 87.34600583 | BN154: 55.88069374 | BO154: 57 | BP154: 59.31580757 | BQ154: 191.5
G155: 14.9 | H155: 19 | I155: 19 | J155: 40 | K155: 36 | L155: 30 | M155: 0 | O155: 0.2596161837 | P155: 3 | Q155: 0 | R155: 0 | S155: 1.099557429 | T155: 483.1 | U155: 483.1 | V155: 45.6 | W155: 45.6 | X155: 84.65854238 | Y155: -275.3640646 | Z155: -190.7055222 | AB155: 43.55767046 | BA155: 0 | BB155: 0 | BK155: 43.55767046 | BL155: 33.34105639 | BM155: 84.98530297 | BN155: 54.37040472 | BO155: 55.45945946 | BP155: 59.31580757 | BQ155: 191.5
G156: 15 | H156: 19 | I156: 19 | J156: 40 | K156: 36 | L156: 30 | M156: 0 | O156: 0.2596161837 | P156: 3 | Q156: 0 | R156: 0 | S156: 1.099557429 | T156: 485 | U156: 485 | V156: 47.5 | W156: 47.5 | X156: 85.15181313 | Y156: -281.0640646 | Z156: -195.9122515 | AB156: 42.34773517 | BA156: 0 | BB156: 0 | BK156: 42.34773517 | BL156: 32.41491593 | BM156: 82.62460011 | BN156: 52.8601157 | BO156: 53.91891892 | BP156: 59.31580757 | BQ156: 191.5
G157: 15.1 | H157: 19 | I157: 19 | J157: 40 | K157: 36 | L157: 30 | M157: 0 | O157: 0.2596161837 | P157: 3 | Q157: 0 | R157: 0 | S157: 1.099557429 | T157: 486.9 | U157: 486.9 | V157: 49.4 | W157: 49.4 | X157: 85.64508388 | Y157: -286.7640646 | Z157: -201.1189807 | AB157: 41.13779988 | BA157: 0 | BB157: 0 | BK157: 41.13779988 | BL157: 31.48877548 | BM157: 80.26389725 | BN157: 51.34982668 | BO157: 52.37837838 | BP157: 59.31580757 | BQ157: 191.5
G158: 15.2 | H158: 19 | I158: 19 | J158: 40 | K158: 36 | L158: 30 | M158: 0 | O158: 0.2596161837 | P158: 3 | Q158: 0 | R158: 0 | S158: 1.099557429 | T158: 488.8 | U158: 488.8 | V158: 51.3 | W158: 51.3 | X158: 86.13835462 | Y158: -292.4640646 | Z158: -206.32571 | AB158: 39.92786459 | BA158: 0 | BB158: 0 | BK158: 39.92786459 | BL158: 30.56263502 | BM158: 77.90319439 | BN158: 49.83953766 | BO158: 50.83783784 | BP158: 59.31580757 | BQ158: 191.5
G159: 15.3 | H159: 19 | I159: 19 | J159: 40 | K159: 36 | L159: 30 | M159: 0 | O159: 0.2596161837 | P159: 3 | Q159: 0 | R159: 0 | S159: 1.099557429 | T159: 490.7 | U159: 490.7 | V159: 53.2 | W159: 53.2 | X159: 86.63162537 | Y159: -298.1640646 | Z159: -211.5324392 | AB159: 38.7179293 | BA159: 0 | BB159: 0 | BK159: 38.7179293 | BL159: 29.63649457 | BM159: 75.54249153 | BN159: 48.32924864 | BO159: 49.2972973 | BP159: 59.31580757 | BQ159: 191.5
G160: 15.4 | H160: 19 | I160: 19 | J160: 40 | K160: 36 | L160: 30 | M160: 0 | O160: 0.2596161837 | P160: 3 | Q160: 0 | R160: 0 | S160: 1.099557429 | T160: 492.6 | U160: 492.6 | V160: 55.1 | W160: 55.1 | X160: 87.12489612 | Y160: -303.8640646 | Z160: -216.7391685 | AB160: 37.50799401 | BA160: 0 | BB160: 0 | BK160: 37.50799401 | BL160: 28.71035411 | BM160: 73.18178867 | BN160: 46.81895962 | BO160: 47.75675676 | BP160: 59.31580757 | BQ160: 191.5
G161: 15.5 | H161: 19 | I161: 19 | J161: 40 | K161: 36 | L161: 30 | M161: 0 | O161: 0.2596161837 | P161: 3 | Q161: 0 | R161: 0 | S161: 1.099557429 | T161: 494.5 | U161: 494.5 | V161: 57 | W161: 57 | X161: 87.61816687 | Y161: -309.5640646 | Z161: -221.9458977 | AB161: 36.29805871 | BA161: 0 | BB161: 0 | BK161: 36.29805871 | BL161: 27.78421366 | BM161: 70.82108581 | BN161: 45.3086706 | BO161: 46.21621622 | BP161: 59.31580757 | BQ161: 191.5
G162: 15.6 | H162: 19 | I162: 19 | J162: 40 | K162: 36 | L162: 30 | M162: 0 | O162: 0.2596161837 | P162: 3 | Q162: 0 | R162: 0 | S162: 1.099557429 | T162: 496.4 | U162: 496.4 | V162: 58.9 | W162: 58.9 | X162: 88.11143762 | Y162: -315.2640646 | Z162: -227.152627 | AB162: 35.08812342 | BA162: 0 | BB162: 0 | BK162: 35.08812342 | BL162: 26.8580732 | BM162: 68.46038295 | BN162: 43.79838158 | BO162: 44.67567568 | BP162: 59.31580757 | BQ162: 191.5
G163: 15.7 | H163: 19 | I163: 19 | J163: 40 | K163: 36 | L163: 30 | M163: 0 | O163: 0.2596161837 | P163: 3 | Q163: 0 | R163: 0 | S163: 1.099557429 | T163: 498.3 | U163: 498.3 | V163: 60.8 | W163: 60.8 | X163: 88.60470837 | Y163: -320.9640646 | Z163: -232.3593562 | AB163: 33.87818813 | BA163: 0 | BB163: 0 | BK163: 33.87818813 | BL163: 25.93193275 | BM163: 66.09968009 | BN163: 42.28809256 | BO163: 43.13513514 | BP163: 59.31580757 | BQ163: 191.5
G164: 15.8 | H164: 19 | I164: 19 | J164: 40 | K164: 36 | L164: 30 | M164: 0 | O164: 0.2596161837 | P164: 3 | Q164: 0 | R164: 0 | S164: 1.099557429 | T164: 500.2 | U164: 500.2 | V164: 62.7 | W164: 62.7 | X164: 89.09797912 | Y164: -326.6640646 | Z164: -237.5660855 | AB164: 32.66825284 | BA164: 0 | BB164: 0 | BK164: 32.66825284 | BL164: 25.00579229 | BM164: 63.73897723 | BN164: 40.77780354 | BO164: 41.59459459 | BP164: 59.31580757 | BQ164: 191.5
G165: 15.9 | H165: 19 | I165: 19 | J165: 40 | K165: 36 | L165: 30 | M165: 0 | O165: 0.2596161837 | P165: 3 | Q165: 0 | R165: 0 | S165: 1.099557429 | T165: 502.1 | U165: 502.1 | V165: 64.6 | W165: 64.6 | X165: 89.59124987 | Y165: -332.3640646 | Z165: -242.7728147 | AB165: 31.45831755 | BA165: 0 | BB165: 0 | BK165: 31.45831755 | BL165: 24.07965184 | BM165: 61.37827437 | BN165: 39.26751452 | BO165: 40.05405405 | BP165: 59.31580757 | BQ165: 191.5
G166: 16 | H166: 19 | I166: 19 | J166: 40 | K166: 36 | L166: 30 | M166: 0 | O166: 0.2596161837 | P166: 3 | Q166: 0 | R166: 0 | S166: 1.099557429 | T166: 504 | U166: 504 | V166: 66.5 | W166: 66.5 | X166: 90.08452062 | Y166: -338.0640646 | Z166: -247.979544 | AB166: 30.24838226 | BA166: 0 | BB166: 0 | BK166: 30.24838226 | BL166: 23.15351138 | BM166: 59.01757151 | BN166: 37.7572255 | BO166: 38.51351351 | BP166: 59.31580757 | BQ166: 191.5
G167: 16.1 | H167: 19 | I167: 19 | J167: 40 | K167: 36 | L167: 30 | M167: 0 | O167: 0.2596161837 | P167: 3 | Q167: 0 | R167: 0 | S167: 1.099557429 | T167: 505.9 | U167: 505.9 | V167: 68.4 | W167: 68.4 | X167: 90.57779137 | Y167: -343.7640646 | Z167: -253.1862732 | AB167: 29.03844697 | BA167: 0 | BB167: 0 | BK167: 29.03844697 | BL167: 22.22737093 | BM167: 56.65686865 | BN167: 36.24693648 | BO167: 36.97297297 | BP167: 59.31580757 | BQ167: 191.5
G168: 16.2 | H168: 19 | I168: 19 | J168: 40 | K168: 36 | L168: 30 | M168: 0 | O168: 0.2596161837 | P168: 3 | Q168: 0 | R168: 0 | S168: 1.099557429 | T168: 507.8 | U168: 507.8 | V168: 70.3 | W168: 70.3 | X168: 91.07106211 | Y168: -349.4640646 | Z168: -258.3930025 | AB168: 27.82851168 | BA168: 0 | BB168: 0 | BK168: 27.82851168 | BL168: 21.30123047 | BM168: 54.29616579 | BN168: 34.73664746 | BO168: 35.43243243 | BP168: 59.31580757 | BQ168: 191.5
G169: 16.3 | H169: 19 | I169: 19 | J169: 40 | K169: 36 | L169: 30 | M169: 0 | O169: 0.2596161837 | P169: 3 | Q169: 0 | R169: 0 | S169: 1.099557429 | T169: 509.7 | U169: 509.7 | V169: 72.2 | W169: 72.2 | X169: 91.56433286 | Y169: -355.1640646 | Z169: -263.5997317 | AB169: 26.61857639 | BA169: 0 | BB169: 0 | BK169: 26.61857639 | BL169: 20.37509002 | BM169: 51.93546293 | BN169: 33.22635844 | BO169: 33.89189189 | BP169: 59.31580757 | BQ169: 191.5
G170: 16.4 | H170: 19 | I170: 19 | J170: 40 | K170: 36 | L170: 30 | M170: 0 | O170: 0.2596161837 | P170: 3 | Q170: 0 | R170: 0 | S170: 1.099557429 | T170: 511.6 | U170: 511.6 | V170: 74.1 | W170: 74.1 | X170: 92.05760361 | Y170: -360.8640646 | Z170: -268.806461 | AB170: 25.4086411 | BA170: 0 | BB170: 0 | BK170: 25.4086411 | BL170: 19.44894956 | BM170: 49.57476007 | BN170: 31.71606942 | BO170: 32.35135135 | BP170: 59.31580757 | BQ170: 191.5
G171: 16.5 | H171: 19 | I171: 19 | J171: 40 | K171: 36 | L171: 30 | M171: 0 | O171: 0.2596161837 | P171: 3 | Q171: 0 | R171: 0 | S171: 1.099557429 | T171: 513.5 | U171: 513.5 | V171: 76 | W171: 76 | X171: 92.55087436 | Y171: -366.5640646 | Z171: -274.0131902 | AB171: 24.19870581 | BA171: 0 | BB171: 0 | BK171: 24.19870581 | BL171: 18.52280911 | BM171: 47.21405721 | BN171: 30.2057804 | BO171: 30.81081081 | BP171: 59.31580757 | BQ171: 191.5
G172: 16.6 | H172: 19 | I172: 19 | J172: 40 | K172: 36 | L172: 30 | M172: 0 | O172: 0.2596161837 | P172: 3 | Q172: 0 | R172: 0 | S172: 1.099557429 | T172: 515.4 | U172: 515.4 | V172: 77.9 | W172: 77.9 | X172: 93.04414511 | Y172: -372.2640646 | Z172: -279.2199195 | AB172: 22.98877052 | BA172: 0 | BB172: 0 | BK172: 22.98877052 | BL172: 17.59666865 | BM172: 44.85335435 | BN172: 28.69549138 | BO172: 29.27027027 | BP172: 59.31580757 | BQ172: 191.5
G173: 16.7 | H173: 19 | I173: 19 | J173: 40 | K173: 36 | L173: 30 | M173: 0 | O173: 0.2596161837 | P173: 3 | Q173: 0 | R173: 0 | S173: 1.099557429 | T173: 517.3 | U173: 517.3 | V173: 79.8 | W173: 79.8 | X173: 93.53741586 | Y173: -377.9640646 | Z173: -284.4266487 | AB173: 21.77883523 | BA173: 0 | BB173: 0 | BK173: 21.77883523 | BL173: 16.67052819 | BM173: 42.49265149 | BN173: 27.18520236 | BO173: 27.72972973 | BP173: 59.31580757 | BQ173: 191.5
G174: 16.8 | H174: 19 | I174: 19 | J174: 40 | K174: 36 | L174: 30 | M174: 0 | O174: 0.2596161837 | P174: 3 | Q174: 0 | R174: 0 | S174: 1.099557429 | T174: 519.2 | U174: 519.2 | V174: 81.7 | W174: 81.7 | X174: 94.03068661 | Y174: -383.6640646 | Z174: -289.633378 | AB174: 20.56889994 | BA174: 0 | BB174: 0 | BK174: 20.56889994 | BL174: 15.74438774 | BM174: 40.13194863 | BN174: 25.67491334 | BO174: 26.18918919 | BP174: 59.31580757 | BQ174: 191.5
G175: 16.9 | H175: 19 | I175: 19 | J175: 40 | K175: 36 | L175: 30 | M175: 0 | O175: 0.2596161837 | P175: 3 | Q175: 0 | R175: 0 | S175: 1.099557429 | T175: 521.1 | U175: 521.1 | V175: 83.6 | W175: 83.6 | X175: 94.52395736 | Y175: -389.3640646 | Z175: -294.8401072 | AB175: 19.35896465 | BA175: 0 | BB175: 0 | BK175: 19.35896465 | BL175: 14.81824728 | BM175: 37.77124577 | BN175: 24.16462432 | BO175: 24.64864865 | BP175: 59.31580757 | BQ175: 191.5
G176: 17 | H176: 19 | I176: 19 | J176: 40 | K176: 36 | L176: 30 | M176: 0 | O176: 0.2596161837 | P176: 3 | Q176: 0 | R176: 0 | S176: 1.099557429 | T176: 523 | U176: 523 | V176: 85.5 | W176: 85.5 | X176: 95.01722811 | Y176: -395.0640646 | Z176: -300.0468365 | AB176: 18.14902936 | BA176: 0 | BB176: 0 | BK176: 18.14902936 | BL176: 13.89210683 | BM176: 35.41054291 | BN176: 22.6543353 | BO176: 23.10810811 | BP176: 59.31580757 | BQ176: 191.5
G177: 17.1 | H177: 19 | I177: 19 | J177: 40 | K177: 36 | L177: 30 | M177: 0 | O177: 0.2596161837 | P177: 3 | Q177: 0 | R177: 0 | S177: 1.099557429 | T177: 524.9 | U177: 524.9 | V177: 87.4 | W177: 87.4 | X177: 95.51049886 | Y177: -400.7640646 | Z177: -305.2535658 | AB177: 16.93909407 | BA177: 0 | BB177: 0 | BK177: 16.93909407 | BL177: 12.96596637 | BM177: 33.04984005 | BN177: 21.14404628 | BO177: 21.56756757 | BP177: 59.31580757 | BQ177: 191.5
G178: 17.2 | H178: 19 | I178: 19 | J178: 40 | K178: 36 | L178: 30 | M178: 0 | O178: 0.2596161837 | P178: 3 | Q178: 0 | R178: 0 | S178: 1.099557429 | T178: 526.8 | U178: 526.8 | V178: 89.3 | W178: 89.3 | X178: 96.0037696 | Y178: -406.4640646 | Z178: -310.460295 | AB178: 15.72915878 | BA178: 0 | BB178: 0 | BK178: 15.72915878 | BL178: 12.03982592 | BM178: 30.68913718 | BN178: 19.63375726 | BO178: 20.02702703 | BP178: 59.31580757 | BQ178: 191.5
G179: 17.3 | H179: 19 | I179: 19 | J179: 40 | K179: 36 | L179: 30 | M179: 0 | O179: 0.2596161837 | P179: 3 | Q179: 0 | R179: 0 | S179: 1.099557429 | T179: 528.7 | U179: 528.7 | V179: 91.2 | W179: 91.2 | X179: 96.49704035 | Y179: -412.1640646 | Z179: -315.6670243 | AB179: 14.51922349 | BA179: 0 | BB179: 0 | BK179: 14.51922349 | BL179: 11.11368546 | BM179: 28.32843432 | BN179: 18.12346824 | BO179: 18.48648649 | BP179: 59.31580757 | BQ179: 191.5
G180: 17.4 | H180: 19 | I180: 19 | J180: 40 | K180: 36 | L180: 30 | M180: 0 | O180: 0.2596161837 | P180: 3 | Q180: 0 | R180: 0 | S180: 1.099557429 | T180: 530.6 | U180: 530.6 | V180: 93.1 | W180: 93.1 | X180: 96.9903111 | Y180: -417.8640646 | Z180: -320.8737535 | AB180: 13.3092882 | BA180: 0 | BB180: 0 | BK180: 13.3092882 | BL180: 10.18754501 | BM180: 25.96773146 | BN180: 16.61317922 | BO180: 16.94594595 | BP180: 59.31580757 | BQ180: 191.5
G181: 17.5 | H181: 19 | I181: 19 | J181: 40 | K181: 36 | L181: 30 | M181: 0 | O181: 0.2596161837 | P181: 3 | Q181: 0 | R181: 0 | S181: 1.099557429 | T181: 532.5 | U181: 532.5 | V181: 95 | W181: 95 | X181: 97.48358185 | Y181: -423.5640646 | Z181: -326.0804828 | AB181: 12.0993529 | BA181: 0 | BB181: 0 | BK181: 12.0993529 | BL181: 9.261404553 | BM181: 23.6070286 | BN181: 15.1028902 | BO181: 15.40540541 | BP181: 59.31580757 | BQ181: 191.5
G182: 17.6 | H182: 19 | I182: 19 | J182: 40 | K182: 36 | L182: 30 | M182: 0 | O182: 0.2596161837 | P182: 3 | Q182: 0 | R182: 0 | S182: 1.099557429 | T182: 534.4 | U182: 534.4 | V182: 96.9 | W182: 96.9 | X182: 97.9768526 | Y182: -429.2640646 | Z182: -331.287212 | AB182: 10.88941761 | BA182: 0 | BB182: 0 | BK182: 10.88941761 | BL182: 8.335264097 | BM182: 21.24632574 | BN182: 13.59260118 | BO182: 13.86486486 | BP182: 59.31580757 | BQ182: 191.5
G183: 17.7 | H183: 19 | I183: 19 | J183: 40 | K183: 36 | L183: 30 | M183: 0 | O183: 0.2596161837 | P183: 3 | Q183: 0 | R183: 0 | S183: 1.099557429 | T183: 536.3 | U183: 536.3 | V183: 98.8 | W183: 98.8 | X183: 98.47012335 | Y183: -434.9640646 | Z183: -336.4939413 | AB183: 9.679482324 | BA183: 0 | BB183: 0 | BK183: 9.679482324 | BL183: 7.409123642 | BM183: 18.88562288 | BN183: 12.08231216 | BO183: 12.32432432 | BP183: 59.31580757 | BQ183: 191.5
G184: 17.8 | H184: 19 | I184: 19 | J184: 40 | K184: 36 | L184: 30 | M184: 0 | O184: 0.2596161837 | P184: 3 | Q184: 0 | R184: 0 | S184: 1.099557429 | T184: 538.2 | U184: 538.2 | V184: 100.7 | W184: 100.7 | X184: 98.9633941 | Y184: -440.6640646 | Z184: -341.7006705 | AB184: 8.469547033 | BA184: 0 | BB184: 0 | BK184: 8.469547033 | BL184: 6.482983187 | BM184: 16.52492002 | BN184: 10.57202314 | BO184: 10.78378378 | BP184: 59.31580757 | BQ184: 191.5
G185: 17.9 | H185: 19 | I185: 19 | J185: 40 | K185: 36 | L185: 30 | M185: 0 | O185: 0.2596161837 | P185: 3 | Q185: 0 | R185: 0 | S185: 1.099557429 | T185: 540.1 | U185: 540.1 | V185: 102.6 | W185: 102.6 | X185: 99.45666485 | Y185: -446.3640646 | Z185: -346.9073998 | AB185: 7.259611743 | BA185: 0 | BB185: 0 | BK185: 7.259611743 | BL185: 5.556842732 | BM185: 14.16421716 | BN185: 9.06173412 | BO185: 9.243243243 | BP185: 59.31580757 | BQ185: 191.5
G186: 18 | H186: 19 | I186: 19 | J186: 40 | K186: 36 | L186: 30 | M186: 0 | O186: 0.2596161837 | P186: 3 | Q186: 0 | R186: 0 | S186: 1.099557429 | T186: 542 | U186: 542 | V186: 104.5 | W186: 104.5 | X186: 99.9499356 | Y186: -452.0640646 | Z186: -352.114129 | AB186: 6.049676452 | BA186: 0 | BB186: 0 | BK186: 6.049676452 | BL186: 4.630702276 | BM186: 11.8035143 | BN186: 7.5514451 | BO186: 7.702702703 | BP186: 59.31580757 | BQ186: 191.5
G187: 18.1 | H187: 19 | I187: 19 | J187: 40 | K187: 36 | L187: 30 | M187: 0 | O187: 0.2596161837 | P187: 3 | Q187: 0 | R187: 0 | S187: 1.099557429 | T187: 543.9 | U187: 543.9 | V187: 106.4 | W187: 106.4 | X187: 100.4432063 | Y187: -457.7640646 | Z187: -357.3208583 | AB187: 4.839741162 | BA187: 0 | BB187: 0 | BK187: 4.839741162 | BL187: 3.704561821 | BM187: 9.442811442 | BN187: 6.04115608 | BO187: 6.162162162 | BP187: 59.31580757 | BQ187: 191.5
G188: 18.2 | H188: 19 | I188: 19 | J188: 40 | K188: 36 | L188: 30 | M188: 0 | O188: 0.2596161837 | P188: 3 | Q188: 0 | R188: 0 | S188: 1.099557429 | T188: 545.8 | U188: 545.8 | V188: 108.3 | W188: 108.3 | X188: 100.9364771 | Y188: -463.4640646 | Z188: -362.5275875 | AB188: 3.629805871 | BA188: 0 | BB188: 0 | BK188: 3.629805871 | BL188: 2.778421366 | BM188: 7.082108581 | BN188: 4.53086706 | BO188: 4.621621622 | BP188: 59.31580757 | BQ188: 191.5
G189: 18.3 | H189: 19 | I189: 19 | J189: 40 | K189: 36 | L189: 30 | M189: 0 | O189: 0.2596161837 | P189: 3 | Q189: 0 | R189: 0 | S189: 1.099557429 | T189: 547.7 | U189: 547.7 | V189: 110.2 | W189: 110.2 | X189: 101.4297478 | Y189: -469.1640646 | Z189: -367.7343168 | AB189: 2.419870581 | BA189: 0 | BB189: 0 | BK189: 2.419870581 | BL189: 1.852280911 | BM189: 4.721405721 | BN189: 3.02057804 | BO189: 3.081081081 | BP189: 59.31580757 | BQ189: 191.5
G190: 18.4 | H190: 19 | I190: 19 | J190: 40 | K190: 36 | L190: 30 | M190: 0 | O190: 0.2596161837 | P190: 3 | Q190: 0 | R190: 0 | S190: 1.099557429 | T190: 549.6 | U190: 549.6 | V190: 112.1 | W190: 112.1 | X190: 101.9230186 | Y190: -474.8640646 | Z190: -372.941046 | AB190: 1.20993529 | BA190: 0 | BB190: 0 | BK190: 1.20993529 | BL190: 0.9261404553 | BM190: 2.36070286 | BN190: 1.51028902 | BO190: 1.540540541 | BP190: 59.31580757 | BQ190: 191.5
G191: 18.5 | H191: 19 | I191: 19 | J191: 40 | K191: 36 | L191: 30 | M191: 0 | O191: 0.2596161837 | P191: 3 | Q191: 0 | R191: 0 | S191: 1.099557429 | T191: 551.5 | U191: 551.5 | V191: 114 | W191: 114 | X191: 102.4162893 | Y191: -480.5640646 | Z191: -378.1477753 | AB191: 7.105427358e-15 | BA191: 0 | BB191: 0 | BK191: 7.105427358e-15 | BL191: 9.185453953e-15 | BM191: 0 | BN191: 1.497903495e-14 | BO191: 0 | BP191: 59.31580757 | BQ191: 191.5
W196: =IF(G196<h,(""),(IF(G196<h+dzd,(0),(IF(N196="",(W195+H196*(G196-G195)),(W195+(I196-9.81)*(G196-G195))))))) ->  | Z196: =IF(Y196="",X196,X196+Y196) ->  | AA196: =IF(N196="",(""),IF(G196>h,AA195,((G196-nz)*9.81))) -> 
R198: =IF(L198="","",(IF(G198="","",IF(G198=h,(R199),(IF(N198="",$E$11,($E$11*V198/W198))))))) ->  | V198: =IF(G198<h,(""),(IF(G198<h+dzd,(0),(IF(N198="",(V197+H198*(G198-G197)),(V197+(I198)*(G198-G197))))))) ->  | Y198: =IF(G198<h,(""),((-P198*W198-2*J198*(P198^0.5))*COS(RADIANS(M198)))) ->  | AB198: =IF(G198="","",IF(G198>hd,0,IF($A$27=1,BK198,IF($A$27=2,BL198,IF($A$27=3,BM198,IF($A$27=4,BN198+ka*($E$4+$E$5),IF($A$27=5,BP198,IF($A$27=6,BO198,BQ198)))))))) ->  | BK198: =IF(G198="","",IF(G198>hd,0,(IF(G198<0.2*(hd),(1.6*($AH$20+$AH$21)/(hd)/0.2/(hd)*G198),(IF(G198<0.8*(hd),(1.6*($AH$20+$AH$21)/(hd)),(1.6*($AH$20+$AH$21)/(hd)-1.6*($AH$20+$AH$21)/(hd)/0.2/(hd)*(G198-0.8*(hd))))))))) ->  | BL198: =IF(G198="","",IF(G198>hd,0,(IF(G198<((2/3)*$AH$6),(1.3*($AH$20+$AH$21)/(hd-(1/3)*($AH$6+(hd-MAX($AP$6:$AP$15))))*G198/(2/3*$AH$6)),(IF(G198<(h-2/3*(hd-MAX($AP$6:$AP$15))),1.3*($AH$20+$AH$21)/(hd-1/3*($AH$6+(hd-MAX($AP$6:$AP$15)))),1.3*($AH$20+$AH$21)/(hd-1/3*($AH$6+(hd-MAX($AP$6:$AP$15))))*(1-(G198-(hd-2/3*(hd-MAX($AP$6:$AP$15))))/(2/3*(hd-MAX($AP$6:$AP$15)))))))))) ->  | BM198: =IF(G198="","",IF(G198>hd,0,(IF(G198<(0.6667*$AH$6),(0.3*g*hd*G198/(0.6667*$AH$6)),(IF(G198<(hd-0.6667*(hd-MAX($AP$6:$AP$15))),0.3*g*hd,0.3*g*hd*(1-(G198-(hd-0.6667*(hd-MAX($AP$6:$AP$15))))/(0.6667*(hd-MAX($AP$6:$AP$15)))))))))) ->  | BN198: =IF(G198="","",IF(G198>hd,0,(IF(G198<((2/3)*$AH$6),(0.65*ka*g*hd*hd/(hd-(1/3)*($AH$6+(hd-MAX($AP$6:$AP$15))))*G198/(2/3*$AH$6)),(IF(G198<(h-2/3*(hd-MAX($AP$6:$AP$15))),0.65*ka*g*hd*hd/(hd-1/3*($AH$6+(hd-MAX($AP$6:$AP$15)))),0.65*ka*g*hd*hd/(hd-1/3*($AH$6+(hd-MAX($AP$6:$AP$15))))*(1-(G198-(hd-2/3*(hd-MAX($AP$6:$AP$15))))/(2/3*(hd-MAX($AP$6:$AP$15)))))))))) ->  | BO198: =IF(G198="","",IF(G198>hd,0,(IF(G198<(0.25*hd),(0.3*g*h*G198/(0.25*hd)),(IF(G198<(0.75*hd),0.3*g*h,0.3*g*h*(1-(G198-0.75*hd)/0.25/hd))))))) ->  | BP198: =IF(G198>hd,0,IF(G198="","",0.65*ka*g*hd)) ->  | BQ198: =IF(G198="","",IF(G198>hd,0,(IF(G198<(0.25*hd),(1-4*ca/g/hd)*g*hd*G198/(0.25*hd),((1-4*ca/g/hd)*g*hd))))) -> 
O199: =IF(G199="",(""),((SIN(RADIANS($E$9+BA199-K199)))^2)*((SIN(RADIANS($E$9)))^-2)*((COS(RADIANS(BA199)))^-1)*((SIN((RADIANS($E$9+BA199+M199))))^-1)/(1+((SIN(RADIANS(K199+M199)))*(SIN((RADIANS(K199-$E$7-BA199))/(SIN(RADIANS($E$9-$E$7)))/(SIN((RADIANS($E$9+BA199+M199)))))))^0.5)^2) ->  | P199: =IF(L199="",(""),((SIN(RADIANS($E$9-BB199+L199)))^2)*((SIN(RADIANS($E$9)))^-2)*((COS(RADIANS(BB199)))^-1)*((SIN((RADIANS($E$9-BB199-M199))))^-1)/(1-((SIN(RADIANS(L199+M199)))*(SIN((RADIANS(L199+$E$7-BB199))/(SIN(RADIANS($E$9-$E$7)))/(SIN((RADIANS($E$9-BB199-M199)))))))^0.5)^2) ->  | Q199: =IF(G199="","",(IF(N199="",$E$11,($E$11*T199/U199)))) ->  | S199: =IF(G199="","",0.5*PI()-ATAN((-TAN(RADIANS(K199+M199+(90-$E$9)-$E$7)))+(1/(COS(RADIANS(K199+M199+(90-$E$9)-$E$7))))*((COS((RADIANS(90-$E$9+M199+BA199))))^0.5)*((SIN(RADIANS(K199+M199)))^0.5)*((COS(RADIANS(90-$E$9-$E$7)))^-0.5)*((SIN(RADIANS(K199-$E$7-BA199)))^-0.5)))+$E$7 ->  | BA199: =ATAN(Q199)/0.017453 ->  | BB199: =ATAN(Q199)/0.017453 -> 
T200: =IF(G200="",(""),(IF(N200="",(T199+(G200-G199)*H199),(T199+(G200-G199)*(I199))))) ->  | U200: =IF(G200="",(""),(IF(N200="",(U199+(G200-G199)*H199),(U199+(G200-G199)*(I199-9.81))))) ->  | X200: =IF(G200="",(""),((O200*U200-2*J200*(O200)^0.5))*COS(RADIANS(M200))) -> 
W260: =IF(G260<h,(""),(IF(G260<h+dzd,(0),(IF(N260="",(W259+H260*(G260-G259)),(W259+(I260-9.81)*(G260-G259))))))) ->  | Z260: =IF(Y260="",X260,X260+Y260) ->  | AA260: =IF(N260="",(""),IF(G260>h,AA259,((G260-nz)*9.81))) -> 
R262: =IF(L262="","",(IF(G262="","",IF(G262=h,(R263),(IF(N262="",$E$11,($E$11*V262/W262))))))) ->  | V262: =IF(G262<h,(""),(IF(G262<h+dzd,(0),(IF(N262="",(V261+H262*(G262-G261)),(V261+(I262)*(G262-G261))))))) ->  | Y262: =IF(G262<h,(""),((-P262*W262-2*J262*(P262^0.5))*COS(RADIANS(M262)))) ->  | AB262: =IF(G262="","",IF(G262>hd,0,IF($A$27=1,BK262,IF($A$27=2,BL262,IF($A$27=3,BM262,IF($A$27=4,BN262+ka*($E$4+$E$5),IF($A$27=5,BP262,IF($A$27=6,BO262,BQ262)))))))) ->  | BK262: =IF(G262="","",IF(G262>hd,0,(IF(G262<0.2*(hd),(1.6*($AH$20+$AH$21)/(hd)/0.2/(hd)*G262),(IF(G262<0.8*(hd),(1.6*($AH$20+$AH$21)/(hd)),(1.6*($AH$20+$AH$21)/(hd)-1.6*($AH$20+$AH$21)/(hd)/0.2/(hd)*(G262-0.8*(hd))))))))) ->  | BL262: =IF(G262="","",IF(G262>hd,0,(IF(G262<((2/3)*$AH$6),(1.3*($AH$20+$AH$21)/(hd-(1/3)*($AH$6+(hd-MAX($AP$6:$AP$15))))*G262/(2/3*$AH$6)),(IF(G262<(h-2/3*(hd-MAX($AP$6:$AP$15))),1.3*($AH$20+$AH$21)/(hd-1/3*($AH$6+(hd-MAX($AP$6:$AP$15)))),1.3*($AH$20+$AH$21)/(hd-1/3*($AH$6+(hd-MAX($AP$6:$AP$15))))*(1-(G262-(hd-2/3*(hd-MAX($AP$6:$AP$15))))/(2/3*(hd-MAX($AP$6:$AP$15)))))))))) ->  | BM262: =IF(G262="","",IF(G262>hd,0,(IF(G262<(0.6667*$AH$6),(0.3*g*hd*G262/(0.6667*$AH$6)),(IF(G262<(hd-0.6667*(hd-MAX($AP$6:$AP$15))),0.3*g*hd,0.3*g*hd*(1-(G262-(hd-0.6667*(hd-MAX($AP$6:$AP$15))))/(0.6667*(hd-MAX($AP$6:$AP$15)))))))))) ->  | BN262: =IF(G262="","",IF(G262>hd,0,(IF(G262<((2/3)*$AH$6),(0.65*ka*g*hd*hd/(hd-(1/3)*($AH$6+(hd-MAX($AP$6:$AP$15))))*G262/(2/3*$AH$6)),(IF(G262<(h-2/3*(hd-MAX($AP$6:$AP$15))),0.65*ka*g*hd*hd/(hd-1/3*($AH$6+(hd-MAX($AP$6:$AP$15)))),0.65*ka*g*hd*hd/(hd-1/3*($AH$6+(hd-MAX($AP$6:$AP$15))))*(1-(G262-(hd-2/3*(hd-MAX($AP$6:$AP$15))))/(2/3*(hd-MAX($AP$6:$AP$15)))))))))) ->  | BO262: =IF(G262="","",IF(G262>hd,0,(IF(G262<(0.25*hd),(0.3*g*h*G262/(0.25*hd)),(IF(G262<(0.75*hd),0.3*g*h,0.3*g*h*(1-(G262-0.75*hd)/0.25/hd))))))) ->  | BP262: =IF(G262>hd,0,IF(G262="","",0.65*ka*g*hd)) ->  | BQ262: =IF(G262="","",IF(G262>hd,0,(IF(G262<(0.25*hd),(1-4*ca/g/hd)*g*hd*G262/(0.25*hd),((1-4*ca/g/hd)*g*hd))))) -> 
O263: =IF(G263="",(""),((SIN(RADIANS($E$9+BA263-K263)))^2)*((SIN(RADIANS($E$9)))^-2)*((COS(RADIANS(BA263)))^-1)*((SIN((RADIANS($E$9+BA263+M263))))^-1)/(1+((SIN(RADIANS(K263+M263)))*(SIN((RADIANS(K263-$E$7-BA263))/(SIN(RADIANS($E$9-$E$7)))/(SIN((RADIANS($E$9+BA263+M263)))))))^0.5)^2) ->  | P263: =IF(L263="",(""),((SIN(RADIANS($E$9-BB263+L263)))^2)*((SIN(RADIANS($E$9)))^-2)*((COS(RADIANS(BB263)))^-1)*((SIN((RADIANS($E$9-BB263-M263))))^-1)/(1-((SIN(RADIANS(L263+M263)))*(SIN((RADIANS(L263+$E$7-BB263))/(SIN(RADIANS($E$9-$E$7)))/(SIN((RADIANS($E$9-BB263-M263)))))))^0.5)^2) ->  | Q263: =IF(G263="","",(IF(N263="",$E$11,($E$11*T263/U263)))) ->  | S263: =IF(G263="","",0.5*PI()-ATAN((-TAN(RADIANS(K263+M263+(90-$E$9)-$E$7)))+(1/(COS(RADIANS(K263+M263+(90-$E$9)-$E$7))))*((COS((RADIANS(90-$E$9+M263+BA263))))^0.5)*((SIN(RADIANS(K263+M263)))^0.5)*((COS(RADIANS(90-$E$9-$E$7)))^-0.5)*((SIN(RADIANS(K263-$E$7-BA263)))^-0.5)))+$E$7 ->  | BA263: =ATAN(Q263)/0.017453 ->  | BB263: =ATAN(Q263)/0.017453 -> 
T264: =IF(G264="",(""),(IF(N264="",(T263+(G264-G263)*H263),(T263+(G264-G263)*(I263))))) ->  | U264: =IF(G264="",(""),(IF(N264="",(U263+(G264-G263)*H263),(U263+(G264-G263)*(I263-9.81))))) ->  | X264: =IF(G264="",(""),((O264*U264-2*J264*(O264)^0.5))*COS(RADIANS(M264))) -> 
W324: =IF(G324<h,(""),(IF(G324<h+dzd,(0),(IF(N324="",(W323+H324*(G324-G323)),(W323+(I324-9.81)*(G324-G323))))))) ->  | Z324: =IF(Y324="",X324,X324+Y324) ->  | AA324: =IF(N324="",(""),IF(G324>h,AA323,((G324-nz)*9.81))) -> 
... 47 more rows

Sheet Draw
A1: =Analyze!A1 -> 1 | B1: nlayer
A2: =h -> 12.5 | B2: h | D2: β (Degrees): | E2: =Analyze!E7 -> 0 | G2: Z (Poin OfStart) | H2: 5.99 | K2: 185
A3: =d -> 6 | B3: d
A4: =Analyze!A4 -> 1 | B4: dz | D4: α (Degrees): | E4: =Analyze!E9 -> 90 | G4: χ (m) | H4: =MAX(1.5,0.1*A2) -> 1.5 | Q4: Wall | S4: Embankment | U4: Excavation | W4: Failure Wedge | Y4: Failure Wedge2 | AA4: Strut 1 | AC4: Strut 2 | AE4: Strut 3 | AG4: Strut 4 | AI4: Strut 5 | AK4: Strut 6 | AM4: Strut 7 | AO4: Strut 8 | AQ4: Strut 9 | AS4: Strut 10 | AX4: Strut 1 | AZ4: Strut 2 | BB4: Strut 3 | BD4: Strut 4 | BF4: Strut 5 | BH4: Strut 6 | BJ4: Strut 7 | BL4: Strut 8 | BN4: Strut 9 | BP4: Strut 10
A5: =Analyze!A5 -> 0 | B5: wt | O5: Depth (m) | P5: ξ (Radians) | Q5: X | R5: Y | S5: X | T5: Y | U5: X | V5: Y | W5: X | X5: Y | Y5: X | Z5: Y | AA5: X | AB5: Y | AC5: X | AD5: Y | AE5: X | AF5: Y | AG5: X | AH5: Y | AI5: X | AJ5: Y | AK5: X | AL5: Y | AM5: X | AN5: Y | AO5: X | AP5: Y | AQ5: X | AR5: Y | AS5: X | AT5: Y | AX5: X | AY5: Y | AZ5: X | BA5: Y | BB5: X | BC5: Y | BD5: X | BE5: Y | BF5: X | BG5: Y | BH5: X | BI5: Y | BJ5: X | BK5: Y | BL5: X | BM5: Y | BN5: X | BO5: Y | BP5: X | BQ5: Y
A6: =Analyze!A6 -> 19 | E6: Depth (m) | F6: Angle (degrees) | G6: Strut Force (kN) | H6: Unbounded Length (m) | I6: Grouting strength (kPa) | J6: Borehole Diameter (mm) | K6: bounded Length (m) | O6: =IF(Analyze!G6="","",Analyze!G6) -> 0 | P6: =IF(Analyze!S6="","",Analyze!S6) -> 1.099557429 | Q6: =-R6/TAN(RADIANS(E4)) -> -7.657177843e-16 | R6: =$A$2 -> 12.5 | S6: =$Q$6 -> -7.657177843e-16 | T6: =$R$6 -> 12.5 | U6: 0 | V6: 0 | W6: 9.377016599 | X6: =IF(O6="","",IF(O6>h+$H$2,(""),(h-O6))) -> 12.5 | Y6: =IF(W7="","",W6+$H$4*COS(ATAN((X7-X6)/(W7-W6)))) -> 10.05800235 | Z6: =IF(W7="","",X6-$H$4*SIN(ATAN((X7-X6)/(W7-W6)))) -> 11.16349021 | AA6: =-AB6/TAN(RADIANS(E4)) -> -7.657177843e-16 | AB6: =$A$2-$E$7 -> 12.5 | AC6: =-AD6/TAN(RADIANS(E4)) -> -5.329395779e-16 | AD6: =$A$2-$E$8 -> 8.7 | AE6: =-AF6/TAN(RADIANS(E4)) -> -2.879098869e-16 | AF6: =$A$2-$E$9 -> 4.7 | AG6: =-AH6/TAN(RADIANS(E4)) -> -4.288019592e-17 | AH6: =$A$2-$E$10 -> 0.7 | AI6: =-AJ6/TAN(RADIANS(E4)) ->  | AJ6: =$A$2-$E$11 ->  | AK6: =-AL6/TAN(RADIANS(E4)) ->  | AL6: =$A$2-$E$12 ->  | AM6: =-AN6/TAN(RADIANS(E4)) ->  | AN6: =$A$2-$E$13 ->  | AO6: =-AP6/TAN(RADIANS(E4)) ->  | AP6: =$A$2-$E$14 ->  | AQ6: =-AR6/TAN(RADIANS(E4)) ->  | AR6: =$A$2-E15 ->  | AS6: =-AT6/TAN(RADIANS(E4)) ->  | AT6: =$A$2-$E$16 ->  | AX6: =AA6 -> -7.657177843e-16 | AY6: =AB6 -> 12.5 | AZ6: -5.329395779e-16 | BA6: 8.7 | BB6: -2.879098869e-16 | BC6: =AF6 -> 4.7 | BD6: =AG6 -> -4.288019592e-17 | BE6: =AH6 -> 0.7 | BF6: =AI6 ->  | BG6: =AJ6 ->  | BH6: =AK6 ->  | BI6: =AL6 ->  | BK6: =AN6 ->  | BL6: =AO6 ->  | BM6: =AP6 ->  | BO6: =AR6 ->  | BP6: =AS6 ->  | BQ6: =AT6 -> 
A7: =Analyze!A7 -> 185 | B7: nz | C7: 4.5 | D7: Strut 1 | E7: =IF(Analyze!AI6="","",Analyze!AH6) -> 0 | F7: =IF(Analyze!AI6="","",Analyze!AI6) -> 35 | G7: =IF(Analyze!AN6="","",Analyze!AN6*Analyze!AJ6) -> 159.5094219 | H7: =IF(E7="","",MAX(C7,((AX6-AX7)^2+(AY7-AY6)^2)^0.5)) -> 9.76619671 | I7: 200 | J7: 120 | K7: =IF(E7="","",G7/(PI()*0.001*J7*I7)) -> 2.115559413 | O7: =IF(Analyze!G7="","",Analyze!G7) -> 0.1 | P7: =IF(Analyze!S7="","",Analyze!S7) -> 1.099557429 | Q7: =-R7/TAN(RADIANS(E4)) -> 3.675445365e-16 | R7: =-$A$3 -> -6 | S7: =W6*2 -> 18.7540332 | T7: =T6-(S7-S6)/(TAN(RADIANS(E4))) -> 12.5 | U7: =-0.6*$A$2 -> -7.5 | V7: 0 | W7: 9.326064054 | X7: 12.4 | Y7: =IF(W8="","",W7+$H$4*COS(ATAN((X8-X7)/(W8-W7)))) -> 10.0070498 | Z7: =IF(W8="","",X7-$H$4*SIN(ATAN((X8-X7)/(W8-W7)))) -> 11.06349021 | AA7: =AA6+0.1 -> 0.1 | AB7: =AB6-0.1*TAN(RADIANS($F$7)) -> 12.42997925 | AC7: =AC6+0.1 -> 0.1 | AD7: =AD6-0.1*TAN(RADIANS($F$8)) -> 8.673205081 | AE7: =AE6+0.1 -> 0.1 | AF7: =AF6-0.1*TAN(RADIANS($F$9)) -> 4.673205081 | AG7: =AG6+0.1 -> 0.1 | AH7: =AH6-0.1*TAN(RADIANS($F$10)) -> 0.6732050808 | AI7: =AI6+0.1 ->  | AJ7: =AJ6-0.1*TAN(RADIANS($F$11)) ->  | AK7: =AK6+0.1 ->  | AL7: =AL6-0.1*TAN(RADIANS($F$12)) ->  | AM7: =AM6+0.1 ->  | AN7: =AN6-0.1*TAN(RADIANS($F$13)) ->  | AO7: =AO6+0.1 ->  | AP7: =AP6-0.1*TAN(RADIANS($F$14)) ->  | AQ7: =AQ6+0.1 ->  | AR7: =AR6-0.1*TAN(RADIANS($F$15)) ->  | AS7: =AS6+0.1 ->  | AT7: =AT6-0.1*TAN(RADIANS($F$16)) ->  | AX7: 8 | AY7: 6.898339694 | AZ7: 7.8 | BA7: 6.609996299 | BB7: 6 | BC7: 3.092304845 | BD7: 4.2 | BE7: -0.4253866082
C8: 4.5 | D8: Strut 2 | E8: =IF(Analyze!AH7="","",Analyze!AH7) -> 3.8 | F8: =IF(Analyze!AI7="","",Analyze!AI7) -> 15 | G8: =IF(Analyze!AN7="","",Analyze!AN7*Analyze!AJ7) -> 495.2782818 | H8: =IF(E8="","",MAX(C8,((AZ6-AZ7)^2+(BA7-BA6)^2)^0.5)) -> 8.075154207 | I8: 200 | J8: 120 | K8: =IF(E8="","",G8/(PI()*0.001*J8*I8)) -> 6.568832229 | O8: =IF(Analyze!G8="","",Analyze!G8) -> 0.2 | P8: =IF(Analyze!S8="","",Analyze!S8) -> 1.099557429 | W8: 9.275111509 | X8: 12.3 | Y8: 9.956097259 | Z8: 10.96349021 | AA8: =AA7+0.1 -> 0.2 | AB8: =AB7-0.1*TAN(RADIANS($F$7)) -> 12.35995849 | AC8: =AC7+0.1 -> 0.2 | AD8: =AD7-0.1*TAN(RADIANS($F$8)) -> 8.646410162 | AE8: =AE7+0.1 -> 0.2 | AF8: =AF7-0.1*TAN(RADIANS($F$9)) -> 4.646410162 | AG8: =AG7+0.1 -> 0.2 | AH8: =AH7-0.1*TAN(RADIANS($F$10)) -> 0.6464101615 | AI8: =AI7+0.1 ->  | AJ8: =AJ7-0.1*TAN(RADIANS($F$11)) ->  | AK8: =AK7+0.1 ->  | AL8: =AL7-0.1*TAN(RADIANS($F$12)) ->  | AM8: =AM7+0.1 ->  | AN8: =AN7-0.1*TAN(RADIANS($F$13)) ->  | AO8: =AO7+0.1 ->  | AP8: =AP7-0.1*TAN(RADIANS($F$14)) ->  | AQ8: =AQ7+0.1 ->  | AR8: =AR7-0.1*TAN(RADIANS($F$15)) ->  | AS8: =AS7+0.1 ->  | AT8: =AT7-0.1*TAN(RADIANS($F$16)) ->  | AX8: =AX7+K7*COS(RADIANS(F7)) -> 9.732964818 | AY8: =AY7-K7*SIN(RADIANS(F7)) -> 5.684904665 | AZ8: =AZ7+K8*COS(RADIANS(F8)) -> 14.1450047 | BA8: =BA7-K8*SIN(RADIANS(F8)) -> 4.909857414 | BB8: =BB7+K9*COS(RADIANS(F9)) -> 13.12489147 | BC8: =BC7-K9*SIN(RADIANS(F9)) -> 1.183195931 | BD8: =BD7+K10*COS(RADIANS(F10)) -> 11.68113604 | BE8: =BE7-K10*SIN(RADIANS(F10)) -> -2.429950969 | BF8: =BF7+K11*COS(RADIANS(F11)) ->  | BG8: =BG7-K11*SIN(RADIANS(F11)) ->  | BH8: =BH7+K12*COS(RADIANS(F12)) ->  | BI8: =BI7-K12*SIN(RADIANS(F12)) ->  | BJ8: =BJ7+K13*COS(RADIANS(F13)) ->  | BK8: =BK7-K13*SIN(RADIANS(F13)) ->  | BL8: =BL7+K14*COS(RADIANS(F14)) ->  | BM8: =BM7-K14*SIN(RADIANS(F14)) ->  | BN8: =BN7+K15*COS(RADIANS(F15)) ->  | BO8: =BO7-K15*SIN(RADIANS(F15)) ->  | BP8: =BP7+K16*COS(RADIANS(F16)) ->  | BQ8: =BQ7-K16*SIN(RADIANS(F16)) -> 
A9: =Analyze!A9 -> 4 | B9: nstrut | C9: 4.5 | D9: Strut 3 | E9: =IF(Analyze!AH8="","",Analyze!AH8) -> 7.8 | F9: =IF(Analyze!AI8="","",Analyze!AI8) -> 15 | G9: =IF(Analyze!AN8="","",Analyze!AN8*Analyze!AJ8) -> 556.1546715 | H9: =IF(E9="","",MAX(C9,((BB6-BB7)^2+(BC7-BC6)^2)^0.5)) -> 6.211657082 | I9: 200 | J9: 120 | K9: 7.376230424 | O9: =IF(Analyze!G9="","",Analyze!G9) -> 0.3 | P9: =IF(Analyze!S9="","",Analyze!S9) -> 1.099557429 | W9: 9.224158964 | X9: 12.2 | Y9: 9.905144714 | Z9: 10.86349021 | AA9: 0.3 | AB9: 12.28993774 | AC9: 0.3 | AD9: 8.619615242 | AE9: 0.3 | AF9: 4.619615242 | AG9: 0.3 | AH9: 0.6196152423
A10: =Analyze!A10 -> 1 | B10: sdd | C10: 4.5 | D10: Strut 4 | E10: =IF(Analyze!AH9="","",Analyze!AH9) -> 11.8 | F10: =IF(Analyze!AI9="","",Analyze!AI9) -> 15 | G10: =IF(Analyze!AN9="","",Analyze!AN9*Analyze!AJ9) -> 583.962405 | H10: =IF(E10="","",MAX(C10,((BD6-BD7)^2+(BE7-BE6)^2)^0.5)) -> 4.5 | I10: 200 | J10: 120 | K10: 7.745041945 | O10: =IF(Analyze!G10="","",Analyze!G10) -> 0.4 | P10: =IF(Analyze!S10="","",Analyze!S10) -> 1.099557429 | W10: 9.173206419 | X10: 12.1 | Y10: 9.854192169 | Z10: 10.76349021 | AA10: 0.4 | AB10: 12.21991698 | AC10: 0.4 | AD10: 8.592820323 | AE10: 0.4 | AF10: 4.592820323 | AG10: 0.4 | AH10: 0.592820323
D11: Strut 5 | E11: =IF(Analyze!AH10="","",Analyze!AH10) ->  | F11: =IF(Analyze!AI10="","",Analyze!AI10) ->  | G11: =IF(Analyze!AN10="","",Analyze!AN10*Analyze!AJ10) ->  | H11: =IF(E11="","",MAX(C11,((AX10-AX11)^2+(AY11-AY10)^2)^0.5)) ->  | O11: =IF(Analyze!G11="","",Analyze!G11) -> 0.5 | P11: =IF(Analyze!S11="","",Analyze!S11) -> 1.099557429 | W11: 9.122253874 | X11: 12 | Y11: 9.803239624 | Z11: 10.66349021 | AA11: 0.5 | AB11: 12.14989623 | AC11: 0.5 | AD11: 8.566025404 | AE11: 0.5 | AF11: 4.566025404 | AG11: 0.5 | AH11: 0.5660254038
A12: =Analyze!A12 -> 28 | B12: Z1 | D12: Strut 6 | E12: =IF(Analyze!AH11="","",Analyze!AH11) ->  | F12: =IF(Analyze!AI11="","",Analyze!AI11) ->  | G12: =IF(Analyze!AN11="","",Analyze!AN11*Analyze!AJ11) ->  | O12: =IF(Analyze!G12="","",Analyze!G12) -> 0.6 | P12: =IF(Analyze!S12="","",Analyze!S12) -> 1.099557429 | W12: 9.071301329 | X12: 11.9 | Y12: 9.752287079 | Z12: 10.56349021 | AA12: 0.6 | AB12: 12.07987548 | AC12: 0.6 | AD12: 8.539230485 | AE12: 0.6 | AF12: 4.539230485 | AG12: 0.6 | AH12: 0.5392304845
A13: =Analyze!A13 -> 28 | B13: Z2 | D13: Strut 7 | E13: =IF(Analyze!AH12="","",Analyze!AH12) ->  | F13: =IF(Analyze!AI12="","",Analyze!AI12) ->  | G13: =IF(Analyze!AN12="","",Analyze!AN12*Analyze!AJ12) ->  | O13: =IF(Analyze!G13="","",Analyze!G13) -> 0.7 | P13: =IF(Analyze!S13="","",Analyze!S13) -> 1.099557429 | W13: 9.020348784 | X13: 11.8 | Y13: 9.701334534 | Z13: 10.46349021 | AA13: 0.7 | AB13: 12.00985472 | AC13: 0.7 | AD13: 8.512435565 | AE13: 0.7 | AF13: 4.512435565 | AG13: 0.7 | AH13: 0.5124355653
D14: Strut 8 | E14: =IF(Analyze!AH13="","",Analyze!AH13) ->  | F14: =IF(Analyze!AI13="","",Analyze!AI13) ->  | G14: =IF(Analyze!AN13="","",Analyze!AN13*Analyze!AJ13) ->  | O14: =IF(Analyze!G14="","",Analyze!G14) -> 0.8 | P14: =IF(Analyze!S14="","",Analyze!S14) -> 1.099557429 | W14: 8.969396239 | X14: 11.7 | Y14: 9.650381989 | Z14: 10.36349021 | AA14: 0.8 | AB14: 11.93983397 | AC14: 0.8 | AD14: 8.485640646 | AE14: 0.8 | AF14: 4.485640646 | AG14: 0.8 | AH14: 0.4856406461
A15: =Analyze!A15 -> 125 | B15: nzh | D15: Strut 9 | E15: =IF(Analyze!AH14="","",Analyze!AH14) ->  | F15: =IF(Analyze!AI14="","",Analyze!AI14) ->  | G15: =IF(Analyze!AN14="","",Analyze!AN14*Analyze!AJ14) ->  | O15: =IF(Analyze!G15="","",Analyze!G15) -> 0.9 | P15: =IF(Analyze!S15="","",Analyze!S15) -> 1.099557429 | W15: 8.918443694 | X15: 11.6 | Y15: 9.599429444 | Z15: 10.26349021 | AA15: 0.9 | AB15: 11.86981322 | AC15: 0.9 | AD15: 8.458845727 | AE15: 0.9 | AF15: 4.458845727 | AG15: 0.9 | AH15: 0.4588457268
A16: =Analyze!A16 -> 60 | B16: nzd | D16: Strut 10 | E16: =IF(Analyze!AH15="","",Analyze!AH15) ->  | F16: =IF(Analyze!AI15="","",Analyze!AI15) ->  | G16: =IF(Analyze!AN15="","",Analyze!AN15*Analyze!AJ15) ->  | O16: =IF(Analyze!G16="","",Analyze!G16) -> 1 | P16: =IF(Analyze!S16="","",Analyze!S16) -> 1.099557429 | W16: 8.867491149 | X16: 11.5 | Y16: 9.548476899 | Z16: 10.16349021 | AA16: 1 | AB16: 11.79979246 | AC16: 1 | AD16: 8.432050808 | AE16: 1 | AF16: 4.432050808 | AG16: 1 | AH16: 0.4320508076
A17: =Analyze!A17 -> 0.1 | B17: dzh | O17: =IF(Analyze!G17="","",Analyze!G17) -> 1.1 | P17: =IF(Analyze!S17="","",Analyze!S17) -> 1.099557429 | W17: 8.816538604 | X17: 11.4 | Y17: 9.497524354 | Z17: 10.06349021 | AA17: 1.1 | AB17: 11.72977171 | AC17: 1.1 | AD17: 8.405255888 | AE17: 1.1 | AF17: 4.405255888 | AG17: 1.1 | AH17: 0.4052558883
A18: =Analyze!A18 -> 0.1 | B18: dzd | O18: =IF(Analyze!G18="","",Analyze!G18) -> 1.2 | P18: =IF(Analyze!S18="","",Analyze!S18) -> 1.099557429 | W18: 8.765586059 | X18: 11.3 | Y18: 9.446571809 | Z18: 9.963490214 | AA18: 1.2 | AB18: 11.65975095 | AC18: 1.2 | AD18: 8.378460969 | AE18: 1.2 | AF18: 4.378460969 | AG18: 1.2 | AH18: 0.3784609691
E19: Thickness (m) | F19: g (kN/m3) | G19: gsat (kN/m3) | H19: C (kPa) | I19: ф | J19: δ | K19: Fs фa | L19: Fs фp | M19: Fs C | O19: =IF(Analyze!G19="","",Analyze!G19) -> 1.3 | P19: =IF(Analyze!S19="","",Analyze!S19) -> 1.099557429 | W19: 8.714633514 | X19: 11.2 | Y19: 9.395619264 | Z19: 9.863490214 | AA19: 1.3 | AB19: 11.5897302 | AC19: 1.3 | AD19: 8.35166605 | AE19: 1.3 | AF19: 4.35166605 | AG19: 1.3 | AH19: 0.3516660498
A20: =Analyze!A20 -> 1 | B20: γ(kN/m3) | D20: Soil 1 | E20: =IF(Analyze!AH24="","",Analyze!AH24) -> 28 | F20: =IF(Analyze!AI24="","",Analyze!AI24) -> 19 | G20: =IF(Analyze!AJ24="","",Analyze!AJ24) -> 19 | H20: =IF(Analyze!AK24="","",Analyze!AK24) -> 40 | I20: =IF(Analyze!AL24="","",Analyze!AL24) -> 36 | J20: =IF(Analyze!AM24="","",Analyze!AM24) -> 0 | K20: =IF(Analyze!AN24="","",Analyze!AN24) -> 1 | L20: =IF(Analyze!AO24="","",Analyze!AO24) -> 1.2 | M20: =IF(Analyze!AP24="","",Analyze!AP24) -> 1 | O20: =IF(Analyze!G20="","",Analyze!G20) -> 1.4 | P20: =IF(Analyze!S20="","",Analyze!S20) -> 1.099557429 | W20: 8.66368097 | X20: 11.1 | Y20: 9.344666719 | Z20: 9.763490214 | AA20: 1.4 | AB20: 11.51970945 | AC20: 1.4 | AD20: 8.324871131 | AE20: 1.4 | AF20: 4.324871131 | AG20: 1.4 | AH20: 0.3248711306
A21: =Analyze!A21 -> 1 | B21: C(kPa) | D21: Soil 2 | E21: =IF(Analyze!AH25="","",Analyze!AH25) ->  | F21: =IF(Analyze!AI25="","",Analyze!AI25) ->  | G21: =IF(Analyze!AJ25="","",Analyze!AJ25) ->  | H21: =IF(Analyze!AK25="","",Analyze!AK25) ->  | I21: =IF(Analyze!AL25="","",Analyze!AL25) ->  | J21: =IF(Analyze!AM25="","",Analyze!AM25) ->  | K21: =IF(Analyze!AN25="","",Analyze!AN25) ->  | L21: =IF(Analyze!AO25="","",Analyze!AO25) ->  | M21: =IF(Analyze!AP25="","",Analyze!AP25) ->  | O21: =IF(Analyze!G21="","",Analyze!G21) -> 1.5 | P21: =IF(Analyze!S21="","",Analyze!S21) -> 1.099557429 | W21: 8.612728425 | X21: 11 | Y21: 9.293714174 | Z21: 9.663490214 | AA21: 1.5 | AB21: 11.44968869 | AC21: 1.5 | AD21: 8.298076211 | AE21: 1.5 | AF21: 4.298076211 | AG21: 1.5 | AH21: 0.2980762114
A22: =Analyze!A22 -> 1 | B22: ф | D22: Soil 3 | E22: =IF(Analyze!AH26="","",Analyze!AH26) ->  | F22: =IF(Analyze!AI26="","",Analyze!AI26) ->  | G22: =IF(Analyze!AJ26="","",Analyze!AJ26) ->  | H22: =IF(Analyze!AK26="","",Analyze!AK26) ->  | I22: =IF(Analyze!AL26="","",Analyze!AL26) ->  | J22: =IF(Analyze!AM26="","",Analyze!AM26) ->  | K22: =IF(Analyze!AN26="","",Analyze!AN26) ->  | L22: =IF(Analyze!AO26="","",Analyze!AO26) ->  | M22: =IF(Analyze!AP26="","",Analyze!AP26) ->  | O22: =IF(Analyze!G22="","",Analyze!G22) -> 1.6 | P22: =IF(Analyze!S22="","",Analyze!S22) -> 1.099557429 | W22: 8.56177588 | X22: 10.9 | Y22: 9.242761629 | Z22: 9.563490214 | AA22: 1.6 | AB22: 11.37966794 | AC22: 1.6 | AD22: 8.271281292 | AE22: 1.6 | AF22: 4.271281292 | AG22: 1.6 | AH22: 0.2712812921
A23: =Analyze!A23 -> 1 | B23: th | D23: Soil 4 | E23: =IF(Analyze!AH27="","",Analyze!AH27) ->  | F23: =IF(Analyze!AI27="","",Analyze!AI27) ->  | G23: =IF(Analyze!AJ27="","",Analyze!AJ27) ->  | H23: =IF(Analyze!AK27="","",Analyze!AK27) ->  | I23: =IF(Analyze!AL27="","",Analyze!AL27) ->  | J23: =IF(Analyze!AM27="","",Analyze!AM27) ->  | K23: =IF(Analyze!AN27="","",Analyze!AN27) ->  | L23: =IF(Analyze!AO27="","",Analyze!AO27) ->  | M23: =IF(Analyze!AP27="","",Analyze!AP27) ->  | O23: =IF(Analyze!G23="","",Analyze!G23) -> 1.7 | P23: =IF(Analyze!S23="","",Analyze!S23) -> 1.099557429 | W23: 8.510823335 | X23: 10.8 | Y23: 9.191809084 | Z23: 9.463490214 | AA23: 1.7 | AB23: 11.30964719 | AC23: 1.7 | AD23: 8.244486373 | AE23: 1.7 | AF23: 4.244486373 | AG23: 1.7 | AH23: 0.2444863729
D24: Soil 5 | E24: =IF(Analyze!AH28="","",Analyze!AH28) ->  | F24: =IF(Analyze!AI28="","",Analyze!AI28) ->  | G24: =IF(Analyze!AJ28="","",Analyze!AJ28) ->  | H24: =IF(Analyze!AK28="","",Analyze!AK28) ->  | I24: =IF(Analyze!AL28="","",Analyze!AL28) ->  | J24: =IF(Analyze!AM28="","",Analyze!AM28) ->  | K24: =IF(Analyze!AN28="","",Analyze!AN28) ->  | L24: =IF(Analyze!AO28="","",Analyze!AO28) ->  | M24: =IF(Analyze!AP28="","",Analyze!AP28) ->  | O24: =IF(Analyze!G24="","",Analyze!G24) -> 1.8 | P24: =IF(Analyze!S24="","",Analyze!S24) -> 1.099557429 | W24: 8.45987079 | X24: 10.7 | Y24: 9.140856539 | Z24: 9.363490214 | AA24: 1.8 | AB24: 11.23962643 | AC24: 1.8 | AD24: 8.217691454 | AE24: 1.8 | AF24: 4.217691454 | AG24: 1.8 | AH24: 0.2176914536
A25: =Analyze!A25 -> 0 | B25: cf | D25: Soil 6 | E25: =IF(Analyze!AH29="","",Analyze!AH29) ->  | F25: =IF(Analyze!AI29="","",Analyze!AI29) ->  | G25: =IF(Analyze!AJ29="","",Analyze!AJ29) ->  | H25: =IF(Analyze!AK29="","",Analyze!AK29) ->  | I25: =IF(Analyze!AL29="","",Analyze!AL29) ->  | J25: =IF(Analyze!AM29="","",Analyze!AM29) ->  | K25: =IF(Analyze!AN29="","",Analyze!AN29) ->  | L25: =IF(Analyze!AO29="","",Analyze!AO29) ->  | M25: =IF(Analyze!AP29="","",Analyze!AP29) ->  | O25: =IF(Analyze!G25="","",Analyze!G25) -> 1.9 | P25: =IF(Analyze!S25="","",Analyze!S25) -> 1.099557429 | W25: 8.408918245 | X25: 10.6 | Y25: 9.089903994 | Z25: 9.263490214 | AA25: 1.9 | AB25: 11.16960568 | AC25: 1.9 | AD25: 8.190896534 | AE25: 1.9 | AF25: 4.190896534 | AG25: 1.9 | AH25: 0.1908965344
D26: Soil 7 | E26: =IF(Analyze!AH30="","",Analyze!AH30) ->  | F26: =IF(Analyze!AI30="","",Analyze!AI30) ->  | G26: =IF(Analyze!AJ30="","",Analyze!AJ30) ->  | H26: =IF(Analyze!AK30="","",Analyze!AK30) ->  | I26: =IF(Analyze!AL30="","",Analyze!AL30) ->  | J26: =IF(Analyze!AM30="","",Analyze!AM30) ->  | K26: =IF(Analyze!AN30="","",Analyze!AN30) ->  | L26: =IF(Analyze!AO30="","",Analyze!AO30) ->  | M26: =IF(Analyze!AP30="","",Analyze!AP30) ->  | O26: =IF(Analyze!G26="","",Analyze!G26) -> 2 | P26: =IF(Analyze!S26="","",Analyze!S26) -> 1.099557429 | W26: 8.3579657 | X26: 10.5 | Y26: 9.038951449 | Z26: 9.163490214 | AA26: 2 | AB26: 11.09958492 | AC26: 2 | AD26: 8.164101615 | AE26: 2 | AF26: 4.164101615 | AG26: 2 | AH26: 0.1641016151
D27: Soil 8 | E27: =IF(Analyze!AH31="","",Analyze!AH31) ->  | F27: =IF(Analyze!AI31="","",Analyze!AI31) ->  | G27: =IF(Analyze!AJ31="","",Analyze!AJ31) ->  | H27: =IF(Analyze!AK31="","",Analyze!AK31) ->  | I27: =IF(Analyze!AL31="","",Analyze!AL31) ->  | J27: =IF(Analyze!AM31="","",Analyze!AM31) ->  | K27: =IF(Analyze!AN31="","",Analyze!AN31) ->  | L27: =IF(Analyze!AO31="","",Analyze!AO31) ->  | M27: =IF(Analyze!AP31="","",Analyze!AP31) ->  | O27: =IF(Analyze!G27="","",Analyze!G27) -> 2.1 | P27: =IF(Analyze!S27="","",Analyze!S27) -> 1.099557429 | W27: 8.307013155 | X27: 10.4 | Y27: 8.987998905 | Z27: 9.063490214 | AA27: 2.1 | AB27: 11.02956417 | AC27: 2.1 | AD27: 8.137306696 | AE27: 2.1 | AF27: 4.137306696 | AG27: 2.1 | AH27: 0.1373066959
D28: Soil 9 | E28: =IF(Analyze!AH32="","",Analyze!AH32) ->  | F28: =IF(Analyze!AI32="","",Analyze!AI32) ->  | G28: =IF(Analyze!AJ32="","",Analyze!AJ32) ->  | H28: =IF(Analyze!AK32="","",Analyze!AK32) ->  | I28: =IF(Analyze!AL32="","",Analyze!AL32) ->  | J28: =IF(Analyze!AM32="","",Analyze!AM32) ->  | K28: =IF(Analyze!AN32="","",Analyze!AN32) ->  | L28: =IF(Analyze!AO32="","",Analyze!AO32) ->  | M28: =IF(Analyze!AP32="","",Analyze!AP32) ->  | O28: =IF(Analyze!G28="","",Analyze!G28) -> 2.2 | P28: =IF(Analyze!S28="","",Analyze!S28) -> 1.099557429 | W28: 8.25606061 | X28: 10.3 | Y28: 8.93704636 | Z28: 8.963490214 | AA28: 2.2 | AB28: 10.95954342 | AC28: 2.2 | AD28: 8.110511777 | AE28: 2.2 | AF28: 4.110511777 | AG28: 2.2 | AH28: 0.1105117767
D29: Soil 10 | E29: =IF(Analyze!AH33="","",Analyze!AH33) ->  | F29: =IF(Analyze!AI33="","",Analyze!AI33) ->  | G29: =IF(Analyze!AJ33="","",Analyze!AJ33) ->  | H29: =IF(Analyze!AK33="","",Analyze!AK33) ->  | I29: =IF(Analyze!AL33="","",Analyze!AL33) ->  | J29: =IF(Analyze!AM33="","",Analyze!AM33) ->  | K29: =IF(Analyze!AN33="","",Analyze!AN33) ->  | L29: =IF(Analyze!AO33="","",Analyze!AO33) ->  | M29: =IF(Analyze!AP33="","",Analyze!AP33) ->  | O29: =IF(Analyze!G29="","",Analyze!G29) -> 2.3 | P29: =IF(Analyze!S29="","",Analyze!S29) -> 1.099557429 | W29: 8.205108065 | X29: 10.2 | Y29: 8.886093815 | Z29: 8.863490214 | AA29: 2.3 | AB29: 10.88952266 | AC29: 2.3 | AD29: 8.083716857 | AE29: 2.3 | AF29: 4.083716857 | AG29: 2.3 | AH29: 0.08371685741
O30: =IF(Analyze!G30="","",Analyze!G30) -> 2.4 | P30: =IF(Analyze!S30="","",Analyze!S30) -> 1.099557429 | W30: 8.15415552 | X30: 10.1 | Y30: 8.83514127 | Z30: 8.763490214 | AA30: 2.4 | AB30: 10.81950191 | AC30: 2.4 | AD30: 8.056921938 | AE30: 2.4 | AF30: 4.056921938 | AG30: 2.4 | AH30: 0.05692193817
O31: =IF(Analyze!G31="","",Analyze!G31) -> 2.5 | P31: =IF(Analyze!S31="","",Analyze!S31) -> 1.099557429 | W31: 8.103202975 | X31: 10 | Y31: 8.784188725 | Z31: 8.663490214 | AA31: 2.5 | AB31: 10.74948115 | AC31: 2.5 | AD31: 8.030127019 | AE31: 2.5 | AF31: 4.030127019 | AG31: 2.5 | AH31: 0.03012701892
O32: =IF(Analyze!G32="","",Analyze!G32) -> 2.6 | P32: =IF(Analyze!S32="","",Analyze!S32) -> 1.099557429 | W32: 8.05225043 | X32: 9.9 | Y32: 8.73323618 | Z32: 8.563490214 | AA32: 2.6 | AB32: 10.6794604 | AC32: 2.6 | AD32: 8.0033321 | AE32: 2.6 | AF32: 4.0033321 | AG32: 2.6 | AH32: 0.003332099679
O33: =IF(Analyze!G33="","",Analyze!G33) -> 2.7 | P33: =IF(Analyze!S33="","",Analyze!S33) -> 1.099557429 | W33: 8.001297885 | X33: 9.8 | Y33: 8.682283635 | Z33: 8.463490214 | AA33: 2.7 | AB33: 10.60943965 | AC33: 2.7 | AD33: 7.97653718 | AE33: 2.7 | AF33: 3.97653718 | AG33: 2.7 | AH33: -0.02346281956
O34: =IF(Analyze!G34="","",Analyze!G34) -> 2.8 | P34: =IF(Analyze!S34="","",Analyze!S34) -> 1.099557429 | W34: 7.95034534 | X34: 9.7 | Y34: 8.63133109 | Z34: 8.363490214 | AA34: 2.8 | AB34: 10.53941889 | AC34: 2.8 | AD34: 7.949742261 | AE34: 2.8 | AF34: 3.949742261 | AG34: 2.8 | AH34: -0.05025773881
O35: =IF(Analyze!G35="","",Analyze!G35) -> 2.9 | P35: =IF(Analyze!S35="","",Analyze!S35) -> 1.099557429 | W35: 7.899392795 | X35: 9.6 | Y35: 8.580378545 | Z35: 8.263490214 | AA35: 2.9 | AB35: 10.46939814 | AC35: 2.9 | AD35: 7.922947342 | AE35: 2.9 | AF35: 3.922947342 | AG35: 2.9 | AH35: -0.07705265805
O36: =IF(Analyze!G36="","",Analyze!G36) -> 3 | P36: =IF(Analyze!S36="","",Analyze!S36) -> 1.099557429 | W36: 7.84844025 | X36: 9.5 | Y36: 8.529426 | Z36: 8.163490214 | AA36: 3 | AB36: 10.39937739 | AC36: 3 | AD36: 7.896152423 | AE36: 3 | AF36: 3.896152423 | AG36: 3 | AH36: -0.1038475773
O37: =IF(Analyze!G37="","",Analyze!G37) -> 3.1 | P37: =IF(Analyze!S37="","",Analyze!S37) -> 1.099557429 | W37: 7.797487705 | X37: 9.4 | Y37: 8.478473455 | Z37: 8.063490214 | AA37: 3.1 | AB37: 10.32935663 | AC37: 3.1 | AD37: 7.869357503 | AE37: 3.1 | AF37: 3.869357503 | AG37: 3.1 | AH37: -0.1306424965
O38: =IF(Analyze!G38="","",Analyze!G38) -> 3.2 | P38: =IF(Analyze!S38="","",Analyze!S38) -> 1.099557429 | W38: 7.74653516 | X38: 9.3 | Y38: 8.42752091 | Z38: 7.963490214 | AA38: 3.2 | AB38: 10.25933588 | AC38: 3.2 | AD38: 7.842562584 | AE38: 3.2 | AF38: 3.842562584 | AG38: 3.2 | AH38: -0.1574374158
O39: =IF(Analyze!G39="","",Analyze!G39) -> 3.3 | P39: =IF(Analyze!S39="","",Analyze!S39) -> 1.099557429 | W39: 7.695582616 | X39: 9.2 | Y39: 8.376568365 | Z39: 7.863490214 | AA39: 3.3 | AB39: 10.18931512 | AC39: 3.3 | AD39: 7.815767665 | AE39: 3.3 | AF39: 3.815767665 | AG39: 3.3 | AH39: -0.184232335
O40: =IF(Analyze!G40="","",Analyze!G40) -> 3.4 | P40: =IF(Analyze!S40="","",Analyze!S40) -> 1.099557429 | W40: 7.644630071 | X40: 9.1 | Y40: 8.32561582 | Z40: 7.763490214 | AA40: 3.4 | AB40: 10.11929437 | AC40: 3.4 | AD40: 7.788972746 | AE40: 3.4 | AF40: 3.788972746 | AG40: 3.4 | AH40: -0.2110272543
O41: =IF(Analyze!G41="","",Analyze!G41) -> 3.5 | P41: =IF(Analyze!S41="","",Analyze!S41) -> 1.099557429 | W41: 7.593677526 | X41: 9 | Y41: 8.274663275 | Z41: 7.663490214 | AA41: 3.5 | AB41: 10.04927362 | AC41: 3.5 | AD41: 7.762177826 | AE41: 3.5 | AF41: 3.762177826 | AG41: 3.5 | AH41: -0.2378221735
O42: =IF(Analyze!G42="","",Analyze!G42) -> 3.6 | P42: =IF(Analyze!S42="","",Analyze!S42) -> 1.099557429 | W42: 7.542724981 | X42: 8.9 | Y42: 8.22371073 | Z42: 7.563490214 | AA42: 3.6 | AB42: 9.979252862 | AC42: 3.6 | AD42: 7.735382907 | AE42: 3.6 | AF42: 3.735382907 | AG42: 3.6 | AH42: -0.2646170928
O43: =IF(Analyze!G43="","",Analyze!G43) -> 3.7 | P43: =IF(Analyze!S43="","",Analyze!S43) -> 1.099557429 | W43: 7.491772436 | X43: 8.8 | Y43: 8.172758185 | Z43: 7.463490214 | AA43: 3.7 | AB43: 9.909232109 | AC43: 3.7 | AD43: 7.708587988 | AE43: 3.7 | AF43: 3.708587988 | AG43: 3.7 | AH43: -0.291412012
O44: =IF(Analyze!G44="","",Analyze!G44) -> 3.8 | P44: =IF(Analyze!S44="","",Analyze!S44) -> 1.099557429 | W44: 7.440819891 | X44: 8.7 | Y44: 8.12180564 | Z44: 7.363490214 | AA44: 3.8 | AB44: 9.839211355 | AC44: 3.8 | AD44: 7.681793069 | AE44: 3.8 | AF44: 3.681793069 | AG44: 3.8 | AH44: -0.3182069312
O45: =IF(Analyze!G45="","",Analyze!G45) -> 3.9 | P45: =IF(Analyze!S45="","",Analyze!S45) -> 1.099557429 | W45: 7.389867346 | X45: 8.6 | Y45: 8.070853095 | Z45: 7.263490214 | AA45: 3.9 | AB45: 9.769190601 | AC45: 3.9 | AD45: 7.65499815 | AE45: 3.9 | AF45: 3.65499815 | AG45: 3.9 | AH45: -0.3450018505
O46: =IF(Analyze!G46="","",Analyze!G46) -> 4 | P46: =IF(Analyze!S46="","",Analyze!S46) -> 1.099557429 | W46: 7.338914801 | X46: 8.5 | Y46: 8.01990055 | Z46: 7.163490214 | AA46: 4 | AB46: 9.699169847 | AC46: 4 | AD46: 7.62820323 | AE46: 4 | AF46: 3.62820323 | AG46: 4 | AH46: -0.3717967697
O47: =IF(Analyze!G47="","",Analyze!G47) -> 4.1 | P47: =IF(Analyze!S47="","",Analyze!S47) -> 1.099557429 | W47: 7.287962256 | X47: 8.4 | Y47: 7.968948006 | Z47: 7.063490214 | AA47: 4.1 | AB47: 9.629149093 | AC47: 4.1 | AD47: 7.601408311 | AE47: 4.1 | AF47: 3.601408311 | AG47: 4.1 | AH47: -0.398591689
O48: =IF(Analyze!G48="","",Analyze!G48) -> 4.2 | P48: =IF(Analyze!S48="","",Analyze!S48) -> 1.099557429 | W48: 7.237009711 | X48: 8.3 | Y48: 7.917995461 | Z48: 6.963490214 | AA48: 4.2 | AB48: 9.55912834 | AC48: 4.2 | AD48: 7.574613392 | AE48: 4.2 | AF48: 3.574613392 | AG48: 4.2 | AH48: -0.4253866082
O49: =IF(Analyze!G49="","",Analyze!G49) -> 4.3 | P49: =IF(Analyze!S49="","",Analyze!S49) -> 1.099557429 | W49: 7.186057166 | X49: 8.2 | Y49: 7.867042916 | Z49: 6.863490214 | AA49: 4.3 | AB49: 9.489107586 | AC49: 4.3 | AD49: 7.547818473 | AE49: 4.3 | AF49: 3.547818473 | AG49: 4.3 | AH49: -0.4521815275
O50: =IF(Analyze!G50="","",Analyze!G50) -> 4.4 | P50: =IF(Analyze!S50="","",Analyze!S50) -> 1.099557429 | W50: 7.135104621 | X50: 8.1 | Y50: 7.816090371 | Z50: 6.763490214 | AA50: 4.4 | AB50: 9.419086832 | AC50: 4.4 | AD50: 7.521023553 | AE50: 4.4 | AF50: 3.521023553 | AG50: 4.4 | AH50: -0.4789764467
O51: =IF(Analyze!G51="","",Analyze!G51) -> 4.5 | P51: =IF(Analyze!S51="","",Analyze!S51) -> 1.099557429 | W51: 7.084152076 | X51: 8 | Y51: 7.765137826 | Z51: 6.663490214 | AA51: 4.5 | AB51: 9.349066078 | AC51: 4.5 | AD51: 7.494228634 | AE51: 4.5 | AF51: 3.494228634 | AG51: 4.5 | AH51: -0.5057713659
O52: =IF(Analyze!G52="","",Analyze!G52) -> 4.6 | P52: =IF(Analyze!S52="","",Analyze!S52) -> 1.099557429 | W52: 7.033199531 | X52: 7.9 | Y52: 7.714185281 | Z52: 6.563490214 | AA52: 4.6 | AB52: 9.279045324 | AC52: 4.6 | AD52: 7.467433715 | AE52: 4.6 | AF52: 3.467433715 | AG52: 4.6 | AH52: -0.5325662852
O53: =IF(Analyze!G53="","",Analyze!G53) -> 4.7 | P53: =IF(Analyze!S53="","",Analyze!S53) -> 1.099557429 | W53: 6.982246986 | X53: 7.8 | Y53: 7.663232736 | Z53: 6.463490214 | AA53: 4.7 | AB53: 9.20902457 | AC53: 4.7 | AD53: 7.440638796 | AE53: 4.7 | AF53: 3.440638796 | AG53: 4.7 | AH53: -0.5593612044
O54: =IF(Analyze!G54="","",Analyze!G54) -> 4.8 | P54: =IF(Analyze!S54="","",Analyze!S54) -> 1.099557429 | W54: 6.931294441 | X54: 7.7 | Y54: 7.612280191 | Z54: 6.363490214 | AA54: 4.8 | AB54: 9.139003817 | AC54: 4.8 | AD54: 7.413843876 | AE54: 4.8 | AF54: 3.413843876 | AG54: 4.8 | AH54: -0.5861561237
O55: =IF(Analyze!G55="","",Analyze!G55) -> 4.9 | P55: =IF(Analyze!S55="","",Analyze!S55) -> 1.099557429 | W55: 6.880341896 | X55: 7.6 | Y55: 7.561327646 | Z55: 6.263490214 | AA55: 4.9 | AB55: 9.068983063 | AC55: 4.9 | AD55: 7.387048957 | AE55: 4.9 | AF55: 3.387048957 | AG55: 4.9 | AH55: -0.6129510429
O56: =IF(Analyze!G56="","",Analyze!G56) -> 5 | P56: =IF(Analyze!S56="","",Analyze!S56) -> 1.099557429 | W56: 6.829389351 | X56: 7.5 | Y56: 7.510375101 | Z56: 6.163490214 | AA56: 5 | AB56: 8.998962309 | AC56: 5 | AD56: 7.360254038 | AE56: 5 | AF56: 3.360254038 | AG56: 5 | AH56: -0.6397459622
O57: =IF(Analyze!G57="","",Analyze!G57) -> 5.1 | P57: =IF(Analyze!S57="","",Analyze!S57) -> 1.099557429 | W57: 6.778436806 | X57: 7.4 | Y57: 7.459422556 | Z57: 6.063490214 | AA57: 5.1 | AB57: 8.928941555 | AC57: 5.1 | AD57: 7.333459119 | AE57: 5.1 | AF57: 3.333459119 | AG57: 5.1 | AH57: -0.6665408814
O58: =IF(Analyze!G58="","",Analyze!G58) -> 5.2 | P58: =IF(Analyze!S58="","",Analyze!S58) -> 1.099557429 | W58: 6.727484261 | X58: 7.3 | Y58: 7.408470011 | Z58: 5.963490214 | AA58: 5.2 | AB58: 8.858920801 | AC58: 5.2 | AD58: 7.306664199 | AE58: 5.2 | AF58: 3.306664199 | AG58: 5.2 | AH58: -0.6933358006
O59: =IF(Analyze!G59="","",Analyze!G59) -> 5.3 | P59: =IF(Analyze!S59="","",Analyze!S59) -> 1.099557429 | W59: 6.676531717 | X59: 7.2 | Y59: 7.357517466 | Z59: 5.863490214 | AA59: 5.3 | AB59: 8.788900047 | AC59: 5.3 | AD59: 7.27986928 | AE59: 5.3 | AF59: 3.27986928 | AG59: 5.3 | AH59: -0.7201307199
O60: =IF(Analyze!G60="","",Analyze!G60) -> 5.4 | P60: =IF(Analyze!S60="","",Analyze!S60) -> 1.099557429 | W60: 6.625579172 | X60: 7.1 | Y60: 7.306564921 | Z60: 5.763490214 | AA60: 5.4 | AB60: 8.718879294 | AC60: 5.4 | AD60: 7.253074361 | AE60: 5.4 | AF60: 3.253074361 | AG60: 5.4 | AH60: -0.7469256391
O61: =IF(Analyze!G61="","",Analyze!G61) -> 5.5 | P61: =IF(Analyze!S61="","",Analyze!S61) -> 1.099557429 | W61: 6.574626627 | X61: 7 | Y61: 7.255612376 | Z61: 5.663490214 | AA61: 5.5 | AB61: 8.64885854 | AC61: 5.5 | AD61: 7.226279442 | AE61: 5.5 | AF61: 3.226279442 | AG61: 5.5 | AH61: -0.7737205584
O62: =IF(Analyze!G62="","",Analyze!G62) -> 5.6 | P62: =IF(Analyze!S62="","",Analyze!S62) -> 1.099557429 | W62: 6.523674082 | X62: 6.9 | Y62: 7.204659831 | Z62: 5.563490214 | AA62: 5.6 | AB62: 8.578837786 | AC62: 5.6 | AD62: 7.199484522 | AE62: 5.6 | AF62: 3.199484522 | AG62: 5.6 | AH62: -0.8005154776
O63: =IF(Analyze!G63="","",Analyze!G63) -> 5.7 | P63: =IF(Analyze!S63="","",Analyze!S63) -> 1.099557429 | W63: 6.472721537 | X63: 6.8 | Y63: 7.153707286 | Z63: 5.463490214 | AA63: 5.7 | AB63: 8.508817032 | AC63: 5.7 | AD63: 7.172689603 | AE63: 5.7 | AF63: 3.172689603 | AG63: 5.7 | AH63: -0.8273103969
O64: =IF(Analyze!G64="","",Analyze!G64) -> 5.8 | P64: =IF(Analyze!S64="","",Analyze!S64) -> 1.099557429 | W64: 6.421768992 | X64: 6.7 | Y64: 7.102754741 | Z64: 5.363490214 | AA64: 5.8 | AB64: 8.438796278 | AC64: 5.8 | AD64: 7.145894684 | AE64: 5.8 | AF64: 3.145894684 | AG64: 5.8 | AH64: -0.8541053161
O65: =IF(Analyze!G65="","",Analyze!G65) -> 5.9 | P65: =IF(Analyze!S65="","",Analyze!S65) -> 1.099557429 | W65: 6.370816447 | X65: 6.6 | Y65: 7.051802196 | Z65: 5.263490214 | AA65: 5.9 | AB65: 8.368775525 | AC65: 5.9 | AD65: 7.119099765 | AE65: 5.9 | AF65: 3.119099765 | AG65: 5.9 | AH65: -0.8809002353
O66: =IF(Analyze!G66="","",Analyze!G66) -> 6 | P66: =IF(Analyze!S66="","",Analyze!S66) -> 1.099557429 | W66: 6.319863902 | X66: 6.5 | Y66: 7.000849651 | Z66: 5.163490214 | AA66: 6 | AB66: 8.298754771 | AC66: 6 | AD66: 7.092304845 | AE66: 6 | AF66: 3.092304845 | AG66: 6 | AH66: -0.9076951546
O67: =IF(Analyze!G67="","",Analyze!G67) -> 6.1 | P67: =IF(Analyze!S67="","",Analyze!S67) -> 1.099557429 | W67: 6.268911357 | X67: 6.4 | Y67: 6.949897107 | Z67: 5.063490214 | AA67: 6.1 | AB67: 8.228734017 | AC67: 6.1 | AD67: 7.065509926 | AE67: 6.1 | AF67: 3.065509926 | AG67: 6.1 | AH67: -0.9344900738
O68: =IF(Analyze!G68="","",Analyze!G68) -> 6.2 | P68: =IF(Analyze!S68="","",Analyze!S68) -> 1.099557429 | W68: 6.217958812 | X68: 6.3 | Y68: 6.898944562 | Z68: 4.963490214 | AA68: 6.2 | AB68: 8.158713263 | AC68: 6.2 | AD68: 7.038715007 | AE68: 6.2 | AF68: 3.038715007 | AG68: 6.2 | AH68: -0.9612849931
O69: =IF(Analyze!G69="","",Analyze!G69) -> 6.3 | P69: =IF(Analyze!S69="","",Analyze!S69) -> 1.099557429 | W69: 6.167006267 | X69: 6.2 | Y69: 6.847992017 | Z69: 4.863490214 | AA69: 6.3 | AB69: 8.088692509 | AC69: 6.3 | AD69: 7.011920088 | AE69: 6.3 | AF69: 3.011920088 | AG69: 6.3 | AH69: -0.9880799123
O70: =IF(Analyze!G70="","",Analyze!G70) -> 6.4 | P70: =IF(Analyze!S70="","",Analyze!S70) -> 1.099557429 | W70: 6.116053722 | X70: =IF(O70="","",IF(O70>h+$H$2,(""),(h-O70))) -> 6.1 | Y70: 6.797039472 | Z70: 4.763490214 | AA70: 6.4 | AB70: 8.018671755 | AC70: 6.4 | AD70: 6.985125168 | AE70: 6.4 | AF70: 2.985125168 | AG70: 6.4 | AH70: -1.014874832
O71: =IF(Analyze!G71="","",Analyze!G71) -> 6.5 | P71: =IF(Analyze!S71="","",Analyze!S71) -> 1.099557429 | W71: 6.065101177 | X71: 6 | Y71: =IF(W72="","",W71+$H$4*COS(ATAN((X72-X71)/(W72-W71)))) -> 6.746086927 | Z71: =IF(W72="","",X71-$H$4*SIN(ATAN((X72-X71)/(W72-W71)))) -> 4.663490214 | AA71: 6.5 | AB71: 7.948651002 | AC71: 6.5 | AD71: 6.958330249 | AE71: 6.5 | AF71: 2.958330249 | AG71: 6.5 | AH71: -1.041669751
O72: =IF(Analyze!G72="","",Analyze!G72) -> 6.6 | P72: =IF(Analyze!S72="","",Analyze!S72) -> 1.099557429 | W72: 6.014148632 | X72: 5.9 | Y72: 6.695134382 | Z72: 4.563490214 | AA72: =AA71+0.1 -> 6.6 | AB72: =AB71-0.1*TAN(RADIANS($F$7)) -> 7.878630248 | AC72: =AC71+0.1 -> 6.6 | AD72: =AD71-0.1*TAN(RADIANS($F$8)) -> 6.93153533 | AE72: =AE71+0.1 -> 6.6 | AF72: =AF71-0.1*TAN(RADIANS($F$9)) -> 2.93153533 | AG72: =AG71+0.1 -> 6.6 | AH72: =AH71-0.1*TAN(RADIANS($F$10)) -> -1.06846467 | AI72: =AI71+0.1 ->  | AJ72: =AJ71-0.1*TAN(RADIANS($F$11)) ->  | AK72: =AK71+0.1 ->  | AL72: =AL71-0.1*TAN(RADIANS($F$12)) ->  | AM72: =AM71+0.1 ->  | AN72: =AN71-0.1*TAN(RADIANS($F$13)) ->  | AO72: =AO71+0.1 ->  | AP72: =AP71-0.1*TAN(RADIANS($F$14)) ->  | AQ72: =AQ71+0.1 ->  | AR72: =AR71-0.1*TAN(RADIANS($F$15)) ->  | AS72: =AS71+0.1 ->  | AT72: =AT71-0.1*TAN(RADIANS($F$16)) -> 
O73: =IF(Analyze!G73="","",Analyze!G73) -> 6.7 | P73: =IF(Analyze!S73="","",Analyze!S73) -> 1.099557429 | W73: 5.963196087 | X73: 5.8 | Y73: 6.644181837 | Z73: 4.463490214 | AA73: 6.7 | AB73: 7.808609494 | AC73: 6.7 | AD73: 6.904740411 | AE73: 6.7 | AF73: 2.904740411 | AG73: 6.7 | AH73: -1.095259589
O74: =IF(Analyze!G74="","",Analyze!G74) -> 6.8 | P74: =IF(Analyze!S74="","",Analyze!S74) -> 1.099557429 | W74: 5.912243542 | X74: 5.7 | Y74: 6.593229292 | Z74: 4.363490214 | AA74: 6.8 | AB74: 7.73858874 | AC74: 6.8 | AD74: 6.877945491 | AE74: 6.8 | AF74: 2.877945491 | AG74: 6.8 | AH74: -1.122054509
O75: =IF(Analyze!G75="","",Analyze!G75) -> 6.9 | P75: =IF(Analyze!S75="","",Analyze!S75) -> 1.099557429 | W75: 5.861290997 | X75: 5.6 | Y75: 6.542276747 | Z75: 4.263490214 | AA75: 6.9 | AB75: 7.668567986 | AC75: 6.9 | AD75: 6.851150572 | AE75: 6.9 | AF75: 2.851150572 | AG75: 6.9 | AH75: -1.148849428
O76: =IF(Analyze!G76="","",Analyze!G76) -> 7 | P76: =IF(Analyze!S76="","",Analyze!S76) -> 1.099557429 | W76: 5.810338452 | X76: 5.5 | Y76: 6.491324202 | Z76: 4.163490214 | AA76: 7 | AB76: 7.598547233 | AC76: 7 | AD76: 6.824355653 | AE76: 7 | AF76: 2.824355653 | AG76: 7 | AH76: -1.175644347
O77: =IF(Analyze!G77="","",Analyze!G77) -> 7.1 | P77: =IF(Analyze!S77="","",Analyze!S77) -> 1.099557429 | W77: 5.759385907 | X77: 5.4 | Y77: 6.440371657 | Z77: 4.063490214 | AA77: 7.1 | AB77: 7.528526479 | AC77: 7.1 | AD77: 6.797560734 | AE77: 7.1 | AF77: 2.797560734 | AG77: 7.1 | AH77: -1.202439266
O78: =IF(Analyze!G78="","",Analyze!G78) -> 7.2 | P78: =IF(Analyze!S78="","",Analyze!S78) -> 1.099557429 | W78: 5.708433362 | X78: 5.3 | Y78: 6.389419112 | Z78: 3.963490214 | AA78: 7.2 | AB78: 7.458505725 | AC78: 7.2 | AD78: 6.770765814 | AE78: 7.2 | AF78: 2.770765814 | AG78: 7.2 | AH78: -1.229234186
O79: =IF(Analyze!G79="","",Analyze!G79) -> 7.3 | P79: =IF(Analyze!S79="","",Analyze!S79) -> 1.099557429 | W79: 5.657480818 | X79: 5.2 | Y79: 6.338466567 | Z79: 3.863490214 | AA79: 7.3 | AB79: 7.388484971 | AC79: 7.3 | AD79: 6.743970895 | AE79: 7.3 | AF79: 2.743970895 | AG79: 7.3 | AH79: -1.256029105
O80: =IF(Analyze!G80="","",Analyze!G80) -> 7.4 | P80: =IF(Analyze!S80="","",Analyze!S80) -> 1.099557429 | W80: 5.606528273 | X80: 5.1 | Y80: 6.287514022 | Z80: 3.763490214 | AA80: 7.4 | AB80: 7.318464217 | AC80: 7.4 | AD80: 6.717175976 | AE80: 7.4 | AF80: 2.717175976 | AG80: 7.4 | AH80: -1.282824024
O81: =IF(Analyze!G81="","",Analyze!G81) -> 7.5 | P81: =IF(Analyze!S81="","",Analyze!S81) -> 1.099557429 | W81: 5.555575728 | X81: 5 | Y81: 6.236561477 | Z81: 3.663490214 | AA81: 7.5 | AB81: 7.248443463 | AC81: 7.5 | AD81: 6.690381057 | AE81: 7.5 | AF81: 2.690381057 | AG81: 7.5 | AH81: -1.309618943
O82: =IF(Analyze!G82="","",Analyze!G82) -> 7.6 | P82: =IF(Analyze!S82="","",Analyze!S82) -> 1.099557429 | W82: 5.504623183 | X82: 4.9 | Y82: 6.185608932 | Z82: 3.563490214 | AA82: 7.6 | AB82: 7.17842271 | AC82: 7.6 | AD82: 6.663586138 | AE82: 7.6 | AF82: 2.663586138 | AG82: 7.6 | AH82: -1.336413862
O83: =IF(Analyze!G83="","",Analyze!G83) -> 7.7 | P83: =IF(Analyze!S83="","",Analyze!S83) -> 1.099557429 | W83: 5.453670638 | X83: 4.8 | Y83: 6.134656387 | Z83: 3.463490214 | AA83: 7.7 | AB83: 7.108401956 | AC83: 7.7 | AD83: 6.636791218 | AE83: 7.7 | AF83: 2.636791218 | AG83: 7.7 | AH83: -1.363208782
O84: =IF(Analyze!G84="","",Analyze!G84) -> 7.8 | P84: =IF(Analyze!S84="","",Analyze!S84) -> 1.099557429 | W84: 5.402718093 | X84: 4.7 | Y84: 6.083703842 | Z84: 3.363490214 | AA84: 7.8 | AB84: 7.038381202 | AC84: 7.8 | AD84: 6.609996299 | AE84: 7.8 | AF84: 2.609996299 | AG84: 7.8 | AH84: -1.390003701
O85: =IF(Analyze!G85="","",Analyze!G85) -> 7.9 | P85: =IF(Analyze!S85="","",Analyze!S85) -> 1.099557429 | W85: 5.351765548 | X85: 4.6 | Y85: 6.032751297 | Z85: 3.263490214 | AA85: 7.9 | AB85: 6.968360448 | AC85: 7.9 | AD85: 6.58320138 | AE85: 7.9 | AF85: 2.58320138 | AG85: 7.9 | AH85: -1.41679862
O86: =IF(Analyze!G86="","",Analyze!G86) -> 8 | P86: =IF(Analyze!S86="","",Analyze!S86) -> 1.099557429 | W86: 5.300813003 | X86: 4.5 | Y86: 5.981798752 | Z86: 3.163490214 | AA86: 8 | AB86: 6.898339694 | AC86: 8 | AD86: 6.556406461 | AE86: 8 | AF86: 2.556406461 | AG86: 8 | AH86: -1.443593539
O87: =IF(Analyze!G87="","",Analyze!G87) -> 8.1 | P87: =IF(Analyze!S87="","",Analyze!S87) -> 1.099557429 | W87: 5.249860458 | X87: 4.4 | Y87: 5.930846208 | Z87: 3.063490214 | AA87: 8.1 | AB87: 6.828318941 | AC87: 8.1 | AD87: 6.529611541 | AE87: 8.1 | AF87: 2.529611541 | AG87: 8.1 | AH87: -1.470388459
O88: =IF(Analyze!G88="","",Analyze!G88) -> 8.2 | P88: =IF(Analyze!S88="","",Analyze!S88) -> 1.099557429 | W88: 5.198907913 | X88: 4.3 | Y88: 5.879893663 | Z88: 2.963490214 | AA88: 8.2 | AB88: 6.758298187 | AC88: 8.2 | AD88: 6.502816622 | AE88: 8.2 | AF88: 2.502816622 | AG88: 8.2 | AH88: -1.497183378
O89: =IF(Analyze!G89="","",Analyze!G89) -> 8.3 | P89: =IF(Analyze!S89="","",Analyze!S89) -> 1.099557429 | W89: 5.147955368 | X89: 4.2 | Y89: 5.828941118 | Z89: 2.863490214 | AA89: 8.3 | AB89: 6.688277433 | AC89: 8.3 | AD89: 6.476021703 | AE89: 8.3 | AF89: 2.476021703 | AG89: 8.3 | AH89: -1.523978297
O90: =IF(Analyze!G90="","",Analyze!G90) -> 8.4 | P90: =IF(Analyze!S90="","",Analyze!S90) -> 1.099557429 | W90: 5.097002823 | X90: 4.1 | Y90: 5.777988573 | Z90: 2.763490214 | AA90: 8.4 | AB90: 6.618256679 | AC90: 8.4 | AD90: 6.449226784 | AE90: 8.4 | AF90: 2.449226784 | AG90: 8.4 | AH90: -1.550773216
O91: =IF(Analyze!G91="","",Analyze!G91) -> 8.5 | P91: =IF(Analyze!S91="","",Analyze!S91) -> 1.099557429 | W91: 5.046050278 | X91: 4 | Y91: 5.727036028 | Z91: 2.663490214 | AA91: 8.5 | AB91: 6.548235925 | AC91: 8.5 | AD91: 6.422431864 | AE91: 8.5 | AF91: 2.422431864 | AG91: 8.5 | AH91: -1.577568136
O92: =IF(Analyze!G92="","",Analyze!G92) -> 8.6 | P92: =IF(Analyze!S92="","",Analyze!S92) -> 1.099557429 | W92: 4.995097733 | X92: 3.9 | Y92: 5.676083483 | Z92: 2.563490214 | AA92: 8.6 | AB92: 6.478215171 | AC92: 8.6 | AD92: 6.395636945 | AE92: 8.6 | AF92: 2.395636945 | AG92: 8.6 | AH92: -1.604363055
O93: =IF(Analyze!G93="","",Analyze!G93) -> 8.7 | P93: =IF(Analyze!S93="","",Analyze!S93) -> 1.099557429 | W93: 4.944145188 | X93: 3.8 | Y93: 5.625130938 | Z93: 2.463490214 | AA93: 8.7 | AB93: 6.408194418 | AC93: 8.7 | AD93: 6.368842026 | AE93: 8.7 | AF93: 2.368842026 | AG93: 8.7 | AH93: -1.631157974
O94: =IF(Analyze!G94="","",Analyze!G94) -> 8.8 | P94: =IF(Analyze!S94="","",Analyze!S94) -> 1.099557429 | W94: 4.893192643 | X94: 3.7 | Y94: 5.574178393 | Z94: 2.363490214 | AA94: 8.8 | AB94: 6.338173664 | AC94: 8.8 | AD94: 6.342047107 | AE94: 8.8 | AF94: 2.342047107 | AG94: 8.8 | AH94: -1.657952893
O95: =IF(Analyze!G95="","",Analyze!G95) -> 8.9 | P95: =IF(Analyze!S95="","",Analyze!S95) -> 1.099557429 | W95: 4.842240098 | X95: 3.6 | Y95: 5.523225848 | Z95: 2.263490214 | AA95: 8.9 | AB95: 6.26815291 | AC95: 8.9 | AD95: 6.315252187 | AE95: 8.9 | AF95: 2.315252187 | AG95: 8.9 | AH95: -1.684747813
O96: =IF(Analyze!G96="","",Analyze!G96) -> 9 | P96: =IF(Analyze!S96="","",Analyze!S96) -> 1.099557429 | W96: 4.791287553 | X96: 3.5 | Y96: 5.472273303 | Z96: 2.163490214 | AA96: 9 | AB96: 6.198132156 | AC96: 9 | AD96: 6.288457268 | AE96: 9 | AF96: 2.288457268 | AG96: 9 | AH96: -1.711542732
O97: =IF(Analyze!G97="","",Analyze!G97) -> 9.1 | P97: =IF(Analyze!S97="","",Analyze!S97) -> 1.099557429 | W97: 4.740335008 | X97: 3.4 | Y97: 5.421320758 | Z97: 2.063490214 | AA97: 9.1 | AB97: 6.128111402 | AC97: 9.1 | AD97: 6.261662349 | AE97: 9.1 | AF97: 2.261662349 | AG97: 9.1 | AH97: -1.738337651
O98: =IF(Analyze!G98="","",Analyze!G98) -> 9.2 | P98: =IF(Analyze!S98="","",Analyze!S98) -> 1.099557429 | W98: 4.689382463 | X98: 3.3 | Y98: 5.370368213 | Z98: 1.963490214 | AA98: 9.2 | AB98: 6.058090648 | AC98: 9.2 | AD98: 6.23486743 | AE98: 9.2 | AF98: 2.23486743 | AG98: 9.2 | AH98: -1.76513257
O99: =IF(Analyze!G99="","",Analyze!G99) -> 9.3 | P99: =IF(Analyze!S99="","",Analyze!S99) -> 1.099557429 | W99: 4.638429919 | X99: 3.2 | Y99: 5.319415668 | Z99: 1.863490214 | AA99: 9.3 | AB99: 5.988069895 | AC99: 9.3 | AD99: 6.20807251 | AE99: 9.3 | AF99: 2.20807251 | AG99: 9.3 | AH99: -1.79192749
O100: =IF(Analyze!G100="","",Analyze!G100) -> 9.4 | P100: =IF(Analyze!S100="","",Analyze!S100) -> 1.099557429 | W100: 4.587477374 | X100: 3.1 | Y100: 5.268463123 | Z100: 1.763490214 | AA100: 9.4 | AB100: 5.918049141 | AC100: 9.4 | AD100: 6.181277591 | AE100: 9.4 | AF100: 2.181277591 | AG100: 9.4 | AH100: -1.818722409
O101: =IF(Analyze!G101="","",Analyze!G101) -> 9.5 | P101: =IF(Analyze!S101="","",Analyze!S101) -> 1.099557429 | W101: 4.536524829 | X101: 3 | Y101: 5.217510578 | Z101: 1.663490214 | AA101: 9.5 | AB101: 5.848028387 | AC101: 9.5 | AD101: 6.154482672 | AE101: 9.5 | AF101: 2.154482672 | AG101: 9.5 | AH101: -1.845517328
O102: =IF(Analyze!G102="","",Analyze!G102) -> 9.6 | P102: =IF(Analyze!S102="","",Analyze!S102) -> 1.099557429 | W102: 4.485572284 | X102: 2.9 | Y102: 5.166558033 | Z102: 1.563490214 | AA102: 9.6 | AB102: 5.778007633 | AC102: 9.6 | AD102: 6.127687753 | AE102: 9.6 | AF102: 2.127687753 | AG102: 9.6 | AH102: -1.872312247
O103: =IF(Analyze!G103="","",Analyze!G103) -> 9.7 | P103: =IF(Analyze!S103="","",Analyze!S103) -> 1.099557429 | W103: 4.434619739 | X103: 2.8 | Y103: 5.115605488 | Z103: 1.463490214 | AA103: 9.7 | AB103: 5.707986879 | AC103: 9.7 | AD103: 6.100892833 | AE103: 9.7 | AF103: 2.100892833 | AG103: 9.7 | AH103: -1.899107167
O104: =IF(Analyze!G104="","",Analyze!G104) -> 9.8 | P104: =IF(Analyze!S104="","",Analyze!S104) -> 1.099557429 | W104: 4.383667194 | X104: 2.7 | Y104: 5.064652943 | Z104: 1.363490214 | AA104: 9.8 | AB104: 5.637966126 | AC104: 9.8 | AD104: 6.074097914 | AE104: 9.8 | AF104: 2.074097914 | AG104: 9.8 | AH104: -1.925902086
O105: =IF(Analyze!G105="","",Analyze!G105) -> 9.9 | P105: =IF(Analyze!S105="","",Analyze!S105) -> 1.099557429 | W105: 4.332714649 | X105: 2.6 | Y105: 5.013700398 | Z105: 1.263490214 | AA105: 9.9 | AB105: 5.567945372 | AC105: 9.9 | AD105: 6.047302995 | AE105: 9.9 | AF105: 2.047302995 | AG105: 9.9 | AH105: -1.952697005
O106: =IF(Analyze!G106="","",Analyze!G106) -> 10 | P106: =IF(Analyze!S106="","",Analyze!S106) -> 1.099557429 | W106: 4.281762104 | X106: 2.5 | Y106: 4.962747854 | Z106: 1.163490214 | AA106: 10 | AB106: 5.497924618 | AC106: 10 | AD106: 6.020508076 | AE106: 10 | AF106: 2.020508076 | AG106: 10 | AH106: -1.979491924
O107: =IF(Analyze!G107="","",Analyze!G107) -> 10.1 | P107: =IF(Analyze!S107="","",Analyze!S107) -> 1.099557429 | W107: 4.230809559 | X107: 2.4 | Y107: 4.911795309 | Z107: 1.063490214 | AA107: 10.1 | AB107: 5.427903864 | AC107: 10.1 | AD107: 5.993713156 | AE107: 10.1 | AF107: 1.993713156 | AG107: 10.1 | AH107: -2.006286844
O108: =IF(Analyze!G108="","",Analyze!G108) -> 10.2 | P108: =IF(Analyze!S108="","",Analyze!S108) -> 1.099557429 | W108: 4.179857014 | X108: 2.3 | Y108: 4.860842764 | Z108: 0.9634902137 | AA108: 10.2 | AB108: 5.35788311 | AC108: 10.2 | AD108: 5.966918237 | AE108: 10.2 | AF108: 1.966918237 | AG108: 10.2 | AH108: -2.033081763
O109: =IF(Analyze!G109="","",Analyze!G109) -> 10.3 | P109: =IF(Analyze!S109="","",Analyze!S109) -> 1.099557429 | W109: 4.128904469 | X109: 2.2 | Y109: 4.809890219 | Z109: 0.8634902137 | AA109: 10.3 | AB109: 5.287862356 | AC109: 10.3 | AD109: 5.940123318 | AE109: 10.3 | AF109: 1.940123318 | AG109: 10.3 | AH109: -2.059876682
O110: =IF(Analyze!G110="","",Analyze!G110) -> 10.4 | P110: =IF(Analyze!S110="","",Analyze!S110) -> 1.099557429 | W110: 4.077951924 | X110: 2.1 | Y110: 4.758937674 | Z110: 0.7634902137 | AA110: 10.4 | AB110: 5.217841603 | AC110: 10.4 | AD110: 5.913328399 | AE110: 10.4 | AF110: 1.913328399 | AG110: 10.4 | AH110: -2.086671601
O111: =IF(Analyze!G111="","",Analyze!G111) -> 10.5 | P111: =IF(Analyze!S111="","",Analyze!S111) -> 1.099557429 | W111: 4.026999379 | X111: 2 | Y111: 4.707985129 | Z111: 0.6634902137 | AA111: 10.5 | AB111: 5.147820849 | AC111: 10.5 | AD111: 5.886533479 | AE111: 10.5 | AF111: 1.886533479 | AG111: 10.5 | AH111: -2.113466521
O112: =IF(Analyze!G112="","",Analyze!G112) -> 10.6 | P112: =IF(Analyze!S112="","",Analyze!S112) -> 1.099557429 | W112: 3.976046834 | X112: 1.9 | Y112: 4.657032584 | Z112: 0.5634902137 | AA112: 10.6 | AB112: 5.077800095 | AC112: 10.6 | AD112: 5.85973856 | AE112: 10.6 | AF112: 1.85973856 | AG112: 10.6 | AH112: -2.14026144
O113: =IF(Analyze!G113="","",Analyze!G113) -> 10.7 | P113: =IF(Analyze!S113="","",Analyze!S113) -> 1.099557429 | W113: 3.925094289 | X113: 1.8 | Y113: 4.606080039 | Z113: 0.4634902137 | AA113: 10.7 | AB113: 5.007779341 | AC113: 10.7 | AD113: 5.832943641 | AE113: 10.7 | AF113: 1.832943641 | AG113: 10.7 | AH113: -2.167056359
O114: =IF(Analyze!G114="","",Analyze!G114) -> 10.8 | P114: =IF(Analyze!S114="","",Analyze!S114) -> 1.099557429 | W114: 3.874141744 | X114: 1.7 | Y114: 4.555127494 | Z114: 0.3634902137 | AA114: 10.8 | AB114: 4.937758587 | AC114: 10.8 | AD114: 5.806148722 | AE114: 10.8 | AF114: 1.806148722 | AG114: 10.8 | AH114: -2.193851278
O115: =IF(Analyze!G115="","",Analyze!G115) -> 10.9 | P115: =IF(Analyze!S115="","",Analyze!S115) -> 1.099557429 | W115: 3.823189199 | X115: 1.6 | Y115: 4.504174949 | Z115: 0.2634902137 | AA115: 10.9 | AB115: 4.867737834 | AC115: 10.9 | AD115: 5.779353803 | AE115: 10.9 | AF115: 1.779353803 | AG115: 10.9 | AH115: -2.220646197
O116: =IF(Analyze!G116="","",Analyze!G116) -> 11 | P116: =IF(Analyze!S116="","",Analyze!S116) -> 1.099557429 | W116: 3.772236654 | X116: 1.5 | Y116: 4.453222404 | Z116: 0.1634902137 | AA116: 11 | AB116: 4.79771708 | AC116: 11 | AD116: 5.752558883 | AE116: 11 | AF116: 1.752558883 | AG116: 11 | AH116: -2.247441117
O117: =IF(Analyze!G117="","",Analyze!G117) -> 11.1 | P117: =IF(Analyze!S117="","",Analyze!S117) -> 1.099557429 | W117: 3.721284109 | X117: 1.4 | Y117: 4.402269859 | Z117: 0.06349021372 | AA117: 11.1 | AB117: 4.727696326 | AC117: 11.1 | AD117: 5.725763964 | AE117: 11.1 | AF117: 1.725763964 | AG117: 11.1 | AH117: -2.274236036
O118: =IF(Analyze!G118="","",Analyze!G118) -> 11.2 | P118: =IF(Analyze!S118="","",Analyze!S118) -> 1.099557429 | W118: 3.670331565 | X118: 1.3 | Y118: 4.351317314 | Z118: -0.03650978628 | AA118: 11.2 | AB118: 4.657675572 | AC118: 11.2 | AD118: 5.698969045 | AE118: 11.2 | AF118: 1.698969045 | AG118: 11.2 | AH118: -2.301030955
O119: =IF(Analyze!G119="","",Analyze!G119) -> 11.3 | P119: =IF(Analyze!S119="","",Analyze!S119) -> 1.099557429 | W119: 3.61937902 | X119: 1.2 | Y119: 4.300364769 | Z119: -0.1365097863 | AA119: 11.3 | AB119: 4.587654818 | AC119: 11.3 | AD119: 5.672174126 | AE119: 11.3 | AF119: 1.672174126 | AG119: 11.3 | AH119: -2.327825874
O120: =IF(Analyze!G120="","",Analyze!G120) -> 11.4 | P120: =IF(Analyze!S120="","",Analyze!S120) -> 1.099557429 | W120: 3.568426475 | X120: 1.1 | Y120: 4.249412224 | Z120: -0.2365097863 | AA120: 11.4 | AB120: 4.517634064 | AC120: 11.4 | AD120: 5.645379206 | AE120: 11.4 | AF120: 1.645379206 | AG120: 11.4 | AH120: -2.354620794
O121: =IF(Analyze!G121="","",Analyze!G121) -> 11.5 | P121: =IF(Analyze!S121="","",Analyze!S121) -> 1.099557429 | W121: 3.51747393 | X121: 1 | Y121: 4.198459679 | Z121: -0.3365097863 | AA121: 11.5 | AB121: 4.447613311 | AC121: 11.5 | AD121: 5.618584287 | AE121: 11.5 | AF121: 1.618584287 | AG121: 11.5 | AH121: -2.381415713
O122: =IF(Analyze!G122="","",Analyze!G122) -> 11.6 | P122: =IF(Analyze!S122="","",Analyze!S122) -> 1.099557429 | W122: 3.466521385 | X122: 0.9 | Y122: 4.147507134 | Z122: -0.4365097863 | AA122: 11.6 | AB122: 4.377592557 | AC122: 11.6 | AD122: 5.591789368 | AE122: 11.6 | AF122: 1.591789368 | AG122: 11.6 | AH122: -2.408210632
O123: =IF(Analyze!G123="","",Analyze!G123) -> 11.7 | P123: =IF(Analyze!S123="","",Analyze!S123) -> 1.099557429 | W123: 3.41556884 | X123: 0.8 | Y123: 4.096554589 | Z123: -0.5365097863 | AA123: 11.7 | AB123: 4.307571803 | AC123: 11.7 | AD123: 5.564994449 | AE123: 11.7 | AF123: 1.564994449 | AG123: 11.7 | AH123: -2.435005551
O124: =IF(Analyze!G124="","",Analyze!G124) -> 11.8 | P124: =IF(Analyze!S124="","",Analyze!S124) -> 1.099557429 | W124: 3.364616295 | X124: 0.7 | Y124: 4.045602044 | Z124: -0.6365097863 | AA124: 11.8 | AB124: 4.237551049 | AC124: 11.8 | AD124: 5.538199529 | AE124: 11.8 | AF124: 1.538199529 | AG124: 11.8 | AH124: -2.461800471
O125: =IF(Analyze!G125="","",Analyze!G125) -> 11.9 | P125: =IF(Analyze!S125="","",Analyze!S125) -> 1.099557429 | W125: 3.31366375 | X125: 0.6 | Y125: 3.994649499 | Z125: -0.7365097863 | AA125: 11.9 | AB125: 4.167530295 | AC125: 11.9 | AD125: 5.51140461 | AE125: 11.9 | AF125: 1.51140461 | AG125: 11.9 | AH125: -2.48859539
O126: =IF(Analyze!G126="","",Analyze!G126) -> 12 | P126: =IF(Analyze!S126="","",Analyze!S126) -> 1.099557429 | W126: 3.262711205 | X126: 0.5 | Y126: 3.943696955 | Z126: -0.8365097863 | AA126: 12 | AB126: 4.097509541 | AC126: 12 | AD126: 5.484609691 | AE126: 12 | AF126: 1.484609691 | AG126: 12 | AH126: -2.515390309
O127: =IF(Analyze!G127="","",Analyze!G127) -> 12.1 | P127: =IF(Analyze!S127="","",Analyze!S127) -> 1.099557429 | W127: 3.21175866 | X127: 0.4 | Y127: 3.89274441 | Z127: -0.9365097863 | AA127: 12.1 | AB127: 4.027488788 | AC127: 12.1 | AD127: 5.457814772 | AE127: 12.1 | AF127: 1.457814772 | AG127: 12.1 | AH127: -2.542185228
O128: =IF(Analyze!G128="","",Analyze!G128) -> 12.2 | P128: =IF(Analyze!S128="","",Analyze!S128) -> 1.099557429 | W128: 3.160806115 | X128: 0.3 | Y128: 3.841791865 | Z128: -1.036509786 | AA128: 12.2 | AB128: 3.957468034 | AC128: 12.2 | AD128: 5.431019852 | AE128: 12.2 | AF128: 1.431019852 | AG128: 12.2 | AH128: -2.568980148
O129: =IF(Analyze!G129="","",Analyze!G129) -> 12.3 | P129: =IF(Analyze!S129="","",Analyze!S129) -> 1.099557429 | W129: 3.10985357 | X129: 0.2 | Y129: 3.79083932 | Z129: -1.136509786 | AA129: 12.3 | AB129: 3.88744728 | AC129: 12.3 | AD129: 5.404224933 | AE129: 12.3 | AF129: 1.404224933 | AG129: 12.3 | AH129: -2.595775067
O130: =IF(Analyze!G130="","",Analyze!G130) -> 12.4 | P130: =IF(Analyze!S130="","",Analyze!S130) -> 1.099557429 | W130: 3.058901025 | X130: 0.1 | Y130: 3.739886775 | Z130: -1.236509786 | AA130: 12.4 | AB130: 3.817426526 | AC130: 12.4 | AD130: 5.377430014 | AE130: 12.4 | AF130: 1.377430014 | AG130: 12.4 | AH130: -2.622569986
O131: =IF(Analyze!G131="","",Analyze!G131) -> 12.5 | P131: =IF(Analyze!S131="","",Analyze!S131) -> 1.099557429 | W131: 3.00794848 | X131: 0 | Y131: 3.68893423 | Z131: -1.336509786 | AA131: 12.5 | AB131: 3.747405772 | AC131: 12.5 | AD131: 5.350635095 | AE131: 12.5 | AF131: 1.350635095 | AG131: 12.5 | AH131: -2.649364905
O132: =IF(Analyze!G132="","",Analyze!G132) -> 12.6 | P132: =IF(Analyze!S132="","",Analyze!S132) -> 1.099557429 | W132: 2.956995935 | X132: -0.1 | Y132: 3.637981685 | Z132: -1.436509786 | AA132: 12.6 | AB132: 3.677385019 | AC132: 12.6 | AD132: 5.323840175 | AE132: 12.6 | AF132: 1.323840175 | AG132: 12.6 | AH132: -2.676159825
O133: =IF(Analyze!G133="","",Analyze!G133) -> 12.7 | P133: =IF(Analyze!S133="","",Analyze!S133) -> 1.099557429 | W133: 2.90604339 | X133: -0.2 | Y133: 3.58702914 | Z133: -1.536509786 | AA133: 12.7 | AB133: 3.607364265 | AC133: 12.7 | AD133: 5.297045256 | AE133: 12.7 | AF133: 1.297045256 | AG133: 12.7 | AH133: -2.702954744
O134: =IF(Analyze!G134="","",Analyze!G134) -> 12.8 | P134: =IF(Analyze!S134="","",Analyze!S134) -> 1.099557429 | W134: 2.855090845 | X134: =IF(O134="","",IF(O134>h+$H$2,(""),(h-O134))) -> -0.3 | Y134: 3.536076595 | Z134: -1.636509786 | AA134: 12.8 | AB134: 3.537343511 | AC134: 12.8 | AD134: 5.270250337 | AE134: 12.8 | AF134: 1.270250337 | AG134: 12.8 | AH134: -2.729749663
O135: =IF(Analyze!G135="","",Analyze!G135) -> 12.9 | P135: =IF(Analyze!S135="","",Analyze!S135) -> 1.099557429 | W135: 2.8041383 | X135: -0.4 | Y135: =IF(W136="","",W135+$H$4*COS(ATAN((X136-X135)/(W136-W135)))) -> 3.48512405 | Z135: =IF(W136="","",X135-$H$4*SIN(ATAN((X136-X135)/(W136-W135)))) -> -1.736509786 | AA135: 12.9 | AB135: 3.467322757 | AC135: 12.9 | AD135: 5.243455418 | AE135: 12.9 | AF135: 1.243455418 | AG135: 12.9 | AH135: -2.756544582
O136: =IF(Analyze!G136="","",Analyze!G136) -> 13 | P136: =IF(Analyze!S136="","",Analyze!S136) -> 1.099557429 | W136: 2.753185755 | X136: -0.5 | Y136: 3.434171505 | Z136: -1.836509786 | AA136: =AA135+0.1 -> 13 | AB136: =AB135-0.1*TAN(RADIANS($F$7)) -> 3.397302003 | AC136: =AC135+0.1 -> 13 | AD136: =AD135-0.1*TAN(RADIANS($F$8)) -> 5.216660498 | AE136: =AE135+0.1 -> 13 | AF136: =AF135-0.1*TAN(RADIANS($F$9)) -> 1.216660498 | AG136: =AG135+0.1 -> 13 | AH136: =AH135-0.1*TAN(RADIANS($F$10)) -> -2.783339502 | AI136: =AI135+0.1 ->  | AJ136: =AJ135-0.1*TAN(RADIANS($F$11)) ->  | AK136: =AK135+0.1 ->  | AL136: =AL135-0.1*TAN(RADIANS($F$12)) ->  | AM136: =AM135+0.1 ->  | AN136: =AN135-0.1*TAN(RADIANS($F$13)) ->  | AO136: =AO135+0.1 ->  | AP136: =AP135-0.1*TAN(RADIANS($F$14)) ->  | AQ136: =AQ135+0.1 ->  | AR136: =AR135-0.1*TAN(RADIANS($F$15)) ->  | AS136: =AS135+0.1 ->  | AT136: =AT135-0.1*TAN(RADIANS($F$16)) -> 
O137: =IF(Analyze!G137="","",Analyze!G137) -> 13.1 | P137: =IF(Analyze!S137="","",Analyze!S137) -> 1.099557429 | W137: 2.70223321 | X137: -0.6 | Y137: 3.38321896 | Z137: -1.936509786 | AA137: 13.1 | AB137: 3.327281249 | AC137: 13.1 | AD137: 5.189865579 | AE137: 13.1 | AF137: 1.189865579 | AG137: 13.1 | AH137: -2.810134421
O138: =IF(Analyze!G138="","",Analyze!G138) -> 13.2 | P138: =IF(Analyze!S138="","",Analyze!S138) -> 1.099557429 | W138: 2.651280666 | X138: -0.7 | Y138: 3.332266415 | Z138: -2.036509786 | AA138: 13.2 | AB138: 3.257260496 | AC138: 13.2 | AD138: 5.16307066 | AE138: 13.2 | AF138: 1.16307066 | AG138: 13.2 | AH138: -2.83692934
O139: =IF(Analyze!G139="","",Analyze!G139) -> 13.3 | P139: =IF(Analyze!S139="","",Analyze!S139) -> 1.099557429 | W139: 2.600328121 | X139: -0.8 | Y139: 3.28131387 | Z139: -2.136509786 | AA139: 13.3 | AB139: 3.187239742 | AC139: 13.3 | AD139: 5.136275741 | AE139: 13.3 | AF139: 1.136275741 | AG139: 13.3 | AH139: -2.863724259
O140: =IF(Analyze!G140="","",Analyze!G140) -> 13.4 | P140: =IF(Analyze!S140="","",Analyze!S140) -> 1.099557429 | W140: 2.549375576 | X140: -0.9 | Y140: 3.230361325 | Z140: -2.236509786 | AA140: 13.4 | AB140: 3.117218988 | AC140: 13.4 | AD140: 5.109480821 | AE140: 13.4 | AF140: 1.109480821 | AG140: 13.4 | AH140: -2.890519179
O141: =IF(Analyze!G141="","",Analyze!G141) -> 13.5 | P141: =IF(Analyze!S141="","",Analyze!S141) -> 1.099557429 | W141: 2.498423031 | X141: -1 | Y141: 3.17940878 | Z141: -2.336509786 | AA141: 13.5 | AB141: 3.047198234 | AC141: 13.5 | AD141: 5.082685902 | AE141: 13.5 | AF141: 1.082685902 | AG141: 13.5 | AH141: -2.917314098
O142: =IF(Analyze!G142="","",Analyze!G142) -> 13.6 | P142: =IF(Analyze!S142="","",Analyze!S142) -> 1.099557429 | W142: 2.447470486 | X142: -1.1 | Y142: 3.128456235 | Z142: -2.436509786 | AA142: 13.6 | AB142: 2.97717748 | AC142: 13.6 | AD142: 5.055890983 | AE142: 13.6 | AF142: 1.055890983 | AG142: 13.6 | AH142: -2.944109017
O143: =IF(Analyze!G143="","",Analyze!G143) -> 13.7 | P143: =IF(Analyze!S143="","",Analyze!S143) -> 1.099557429 | W143: 2.396517941 | X143: -1.2 | Y143: 3.07750369 | Z143: -2.536509786 | AA143: 13.7 | AB143: 2.907156727 | AC143: 13.7 | AD143: 5.029096064 | AE143: 13.7 | AF143: 1.029096064 | AG143: 13.7 | AH143: -2.970903936
O144: =IF(Analyze!G144="","",Analyze!G144) -> 13.8 | P144: =IF(Analyze!S144="","",Analyze!S144) -> 1.099557429 | W144: 2.345565396 | X144: -1.3 | Y144: 3.026551145 | Z144: -2.636509786 | AA144: 13.8 | AB144: 2.837135973 | AC144: 13.8 | AD144: 5.002301144 | AE144: 13.8 | AF144: 1.002301144 | AG144: 13.8 | AH144: -2.997698856
O145: =IF(Analyze!G145="","",Analyze!G145) -> 13.9 | P145: =IF(Analyze!S145="","",Analyze!S145) -> 1.099557429 | W145: 2.294612851 | X145: -1.4 | Y145: 2.9755986 | Z145: -2.736509786 | AA145: 13.9 | AB145: 2.767115219 | AC145: 13.9 | AD145: 4.975506225 | AE145: 13.9 | AF145: 0.9755062252 | AG145: 13.9 | AH145: -3.024493775
O146: =IF(Analyze!G146="","",Analyze!G146) -> 14 | P146: =IF(Analyze!S146="","",Analyze!S146) -> 1.099557429 | W146: 2.243660306 | X146: -1.5 | Y146: 2.924646056 | Z146: -2.836509786 | AA146: 14 | AB146: 2.697094465 | AC146: 14 | AD146: 4.948711306 | AE146: 14 | AF146: 0.948711306 | AG146: 14 | AH146: -3.051288694
O147: =IF(Analyze!G147="","",Analyze!G147) -> 14.1 | P147: =IF(Analyze!S147="","",Analyze!S147) -> 1.099557429 | W147: 2.192707761 | X147: -1.6 | Y147: 2.873693511 | Z147: -2.936509786 | AA147: 14.1 | AB147: 2.627073711 | AC147: 14.1 | AD147: 4.921916387 | AE147: 14.1 | AF147: 0.9219163867 | AG147: 14.1 | AH147: -3.078083613
O148: =IF(Analyze!G148="","",Analyze!G148) -> 14.2 | P148: =IF(Analyze!S148="","",Analyze!S148) -> 1.099557429 | W148: 2.141755216 | X148: -1.7 | Y148: 2.822740966 | Z148: -3.036509786 | AA148: 14.2 | AB148: 2.557052957 | AC148: 14.2 | AD148: 4.895121467 | AE148: 14.2 | AF148: 0.8951214675 | AG148: 14.2 | AH148: -3.104878533
O149: =IF(Analyze!G149="","",Analyze!G149) -> 14.3 | P149: =IF(Analyze!S149="","",Analyze!S149) -> 1.099557429 | W149: 2.090802671 | X149: -1.8 | Y149: 2.771788421 | Z149: -3.136509786 | AA149: 14.3 | AB149: 2.487032204 | AC149: 14.3 | AD149: 4.868326548 | AE149: 14.3 | AF149: 0.8683265482 | AG149: 14.3 | AH149: -3.131673452
O150: =IF(Analyze!G150="","",Analyze!G150) -> 14.4 | P150: =IF(Analyze!S150="","",Analyze!S150) -> 1.099557429 | W150: 2.039850126 | X150: -1.9 | Y150: 2.720835876 | Z150: -3.236509786 | AA150: 14.4 | AB150: 2.41701145 | AC150: 14.4 | AD150: 4.841531629 | AE150: 14.4 | AF150: 0.841531629 | AG150: 14.4 | AH150: -3.158468371
O151: =IF(Analyze!G151="","",Analyze!G151) -> 14.5 | P151: =IF(Analyze!S151="","",Analyze!S151) -> 1.099557429 | W151: 1.988897581 | X151: -2 | Y151: 2.669883331 | Z151: -3.336509786 | AA151: 14.5 | AB151: 2.346990696 | AC151: 14.5 | AD151: 4.81473671 | AE151: 14.5 | AF151: 0.8147367097 | AG151: 14.5 | AH151: -3.18526329
O152: =IF(Analyze!G152="","",Analyze!G152) -> 14.6 | P152: =IF(Analyze!S152="","",Analyze!S152) -> 1.099557429 | W152: 1.937945036 | X152: -2.1 | Y152: 2.618930786 | Z152: -3.436509786 | AA152: 14.6 | AB152: 2.276969942 | AC152: 14.6 | AD152: 4.787941791 | AE152: 14.6 | AF152: 0.7879417905 | AG152: 14.6 | AH152: -3.212058209
O153: =IF(Analyze!G153="","",Analyze!G153) -> 14.7 | P153: =IF(Analyze!S153="","",Analyze!S153) -> 1.099557429 | W153: 1.886992491 | X153: -2.2 | Y153: 2.567978241 | Z153: -3.536509786 | AA153: 14.7 | AB153: 2.206949188 | AC153: 14.7 | AD153: 4.761146871 | AE153: 14.7 | AF153: 0.7611468713 | AG153: 14.7 | AH153: -3.238853129
O154: =IF(Analyze!G154="","",Analyze!G154) -> 14.8 | P154: =IF(Analyze!S154="","",Analyze!S154) -> 1.099557429 | W154: 1.836039946 | X154: -2.3 | Y154: 2.517025696 | Z154: -3.636509786 | AA154: 14.8 | AB154: 2.136928434 | AC154: 14.8 | AD154: 4.734351952 | AE154: 14.8 | AF154: 0.734351952 | AG154: 14.8 | AH154: -3.265648048
O155: =IF(Analyze!G155="","",Analyze!G155) -> 14.9 | P155: =IF(Analyze!S155="","",Analyze!S155) -> 1.099557429 | W155: 1.785087401 | X155: -2.4 | Y155: 2.466073151 | Z155: -3.736509786 | AA155: 14.9 | AB155: 2.066907681 | AC155: 14.9 | AD155: 4.707557033 | AE155: 14.9 | AF155: 0.7075570328 | AG155: 14.9 | AH155: -3.292442967
O156: =IF(Analyze!G156="","",Analyze!G156) -> 15 | P156: =IF(Analyze!S156="","",Analyze!S156) -> 1.099557429 | W156: 1.734134856 | X156: -2.5 | Y156: 2.415120606 | Z156: -3.836509786 | AA156: 15 | AB156: 1.996886927 | AC156: 15 | AD156: 4.680762114 | AE156: 15 | AF156: 0.6807621135 | AG156: 15 | AH156: -3.319237886
O157: =IF(Analyze!G157="","",Analyze!G157) -> 15.1 | P157: =IF(Analyze!S157="","",Analyze!S157) -> 1.099557429 | W157: 1.683182311 | X157: -2.6 | Y157: 2.364168061 | Z157: -3.936509786 | AA157: 15.1 | AB157: 1.926866173 | AC157: 15.1 | AD157: 4.653967194 | AE157: 15.1 | AF157: 0.6539671943 | AG157: 15.1 | AH157: -3.346032806
O158: =IF(Analyze!G158="","",Analyze!G158) -> 15.2 | P158: =IF(Analyze!S158="","",Analyze!S158) -> 1.099557429 | W158: 1.632229767 | X158: -2.7 | Y158: 2.313215516 | Z158: -4.036509786 | AA158: 15.2 | AB158: 1.856845419 | AC158: 15.2 | AD158: 4.627172275 | AE158: 15.2 | AF158: 0.627172275 | AG158: 15.2 | AH158: -3.372827725
O159: =IF(Analyze!G159="","",Analyze!G159) -> 15.3 | P159: =IF(Analyze!S159="","",Analyze!S159) -> 1.099557429 | W159: 1.581277222 | X159: -2.8 | Y159: 2.262262971 | Z159: -4.136509786 | AA159: 15.3 | AB159: 1.786824665 | AC159: 15.3 | AD159: 4.600377356 | AE159: 15.3 | AF159: 0.6003773558 | AG159: 15.3 | AH159: -3.399622644
O160: =IF(Analyze!G160="","",Analyze!G160) -> 15.4 | P160: =IF(Analyze!S160="","",Analyze!S160) -> 1.099557429 | W160: 1.530324677 | X160: -2.9 | Y160: 2.211310426 | Z160: -4.236509786 | AA160: 15.4 | AB160: 1.716803912 | AC160: 15.4 | AD160: 4.573582437 | AE160: 15.4 | AF160: 0.5735824366 | AG160: 15.4 | AH160: -3.426417563
O161: =IF(Analyze!G161="","",Analyze!G161) -> 15.5 | P161: =IF(Analyze!S161="","",Analyze!S161) -> 1.099557429 | W161: 1.479372132 | X161: -3 | Y161: 2.160357881 | Z161: -4.336509786 | AA161: 15.5 | AB161: 1.646783158 | AC161: 15.5 | AD161: 4.546787517 | AE161: 15.5 | AF161: 0.5467875173 | AG161: 15.5 | AH161: -3.453212483
O162: =IF(Analyze!G162="","",Analyze!G162) -> 15.6 | P162: =IF(Analyze!S162="","",Analyze!S162) -> 1.099557429 | W162: 1.428419587 | X162: -3.1 | Y162: 2.109405336 | Z162: -4.436509786 | AA162: 15.6 | AB162: 1.576762404 | AC162: 15.6 | AD162: 4.519992598 | AE162: 15.6 | AF162: 0.5199925981 | AG162: 15.6 | AH162: -3.480007402
O163: =IF(Analyze!G163="","",Analyze!G163) -> 15.7 | P163: =IF(Analyze!S163="","",Analyze!S163) -> 1.099557429 | W163: 1.377467042 | X163: -3.2 | Y163: 2.058452791 | Z163: -4.536509786 | AA163: 15.7 | AB163: 1.50674165 | AC163: 15.7 | AD163: 4.493197679 | AE163: 15.7 | AF163: 0.4931976788 | AG163: 15.7 | AH163: -3.506802321
O164: =IF(Analyze!G164="","",Analyze!G164) -> 15.8 | P164: =IF(Analyze!S164="","",Analyze!S164) -> 1.099557429 | W164: 1.326514497 | X164: -3.3 | Y164: 2.007500246 | Z164: -4.636509786 | AA164: 15.8 | AB164: 1.436720896 | AC164: 15.8 | AD164: 4.46640276 | AE164: 15.8 | AF164: 0.4664027596 | AG164: 15.8 | AH164: -3.53359724
O165: =IF(Analyze!G165="","",Analyze!G165) -> 15.9 | P165: =IF(Analyze!S165="","",Analyze!S165) -> 1.099557429 | W165: 1.275561952 | X165: -3.4 | Y165: 1.956547701 | Z165: -4.736509786 | AA165: 15.9 | AB165: 1.366700142 | AC165: 15.9 | AD165: 4.43960784 | AE165: 15.9 | AF165: 0.4396078403 | AG165: 15.9 | AH165: -3.56039216
O166: =IF(Analyze!G166="","",Analyze!G166) -> 16 | P166: =IF(Analyze!S166="","",Analyze!S166) -> 1.099557429 | W166: 1.224609407 | X166: -3.5 | Y166: 1.905595157 | Z166: -4.836509786 | AA166: 16 | AB166: 1.296679389 | AC166: 16 | AD166: 4.412812921 | AE166: 16 | AF166: 0.4128129211 | AG166: 16 | AH166: -3.587187079
O167: =IF(Analyze!G167="","",Analyze!G167) -> 16.1 | P167: =IF(Analyze!S167="","",Analyze!S167) -> 1.099557429 | W167: 1.173656862 | X167: -3.6 | Y167: 1.854642612 | Z167: -4.936509786 | AA167: 16.1 | AB167: 1.226658635 | AC167: 16.1 | AD167: 4.386018002 | AE167: 16.1 | AF167: 0.3860180019 | AG167: 16.1 | AH167: -3.613981998
O168: =IF(Analyze!G168="","",Analyze!G168) -> 16.2 | P168: =IF(Analyze!S168="","",Analyze!S168) -> 1.099557429 | W168: 1.122704317 | X168: -3.7 | Y168: 1.803690067 | Z168: -5.036509786 | AA168: 16.2 | AB168: 1.156637881 | AC168: 16.2 | AD168: 4.359223083 | AE168: 16.2 | AF168: 0.3592230826 | AG168: 16.2 | AH168: -3.640776917
O169: =IF(Analyze!G169="","",Analyze!G169) -> 16.3 | P169: =IF(Analyze!S169="","",Analyze!S169) -> 1.099557429 | W169: 1.071751772 | X169: -3.8 | Y169: 1.752737522 | Z169: -5.136509786 | AA169: 16.3 | AB169: 1.086617127 | AC169: 16.3 | AD169: 4.332428163 | AE169: 16.3 | AF169: 0.3324281634 | AG169: 16.3 | AH169: -3.667571837
O170: =IF(Analyze!G170="","",Analyze!G170) -> 16.4 | P170: =IF(Analyze!S170="","",Analyze!S170) -> 1.099557429 | W170: 1.020799227 | X170: -3.9 | Y170: 1.701784977 | Z170: -5.236509786 | AA170: 16.4 | AB170: 1.016596373 | AC170: 16.4 | AD170: 4.305633244 | AE170: 16.4 | AF170: 0.3056332441 | AG170: 16.4 | AH170: -3.694366756
O171: =IF(Analyze!G171="","",Analyze!G171) -> 16.5 | P171: =IF(Analyze!S171="","",Analyze!S171) -> 1.099557429 | W171: 0.9698466822 | X171: -4 | Y171: 1.650832432 | Z171: -5.336509786 | AA171: 16.5 | AB171: 0.9465756195 | AC171: 16.5 | AD171: 4.278838325 | AE171: 16.5 | AF171: 0.2788383249 | AG171: 16.5 | AH171: -3.721161675
O172: =IF(Analyze!G172="","",Analyze!G172) -> 16.6 | P172: =IF(Analyze!S172="","",Analyze!S172) -> 1.099557429 | W172: 0.9188941372 | X172: -4.1 | Y172: 1.599879887 | Z172: -5.436509786 | AA172: 16.6 | AB172: 0.8765548657 | AC172: 16.6 | AD172: 4.252043406 | AE172: 16.6 | AF172: 0.2520434056 | AG172: 16.6 | AH172: -3.747956594
O173: =IF(Analyze!G173="","",Analyze!G173) -> 16.7 | P173: =IF(Analyze!S173="","",Analyze!S173) -> 1.099557429 | W173: 0.8679415923 | X173: -4.2 | Y173: 1.548927342 | Z173: -5.536509786 | AA173: 16.7 | AB173: 0.8065341119 | AC173: 16.7 | AD173: 4.225248486 | AE173: 16.7 | AF173: 0.2252484864 | AG173: 16.7 | AH173: -3.774751514
O174: =IF(Analyze!G174="","",Analyze!G174) -> 16.8 | P174: =IF(Analyze!S174="","",Analyze!S174) -> 1.099557429 | W174: 0.8169890473 | X174: -4.3 | Y174: 1.497974797 | Z174: -5.636509786 | AA174: 16.8 | AB174: 0.7365133581 | AC174: 16.8 | AD174: 4.198453567 | AE174: 16.8 | AF174: 0.1984535672 | AG174: 16.8 | AH174: -3.801546433
O175: =IF(Analyze!G175="","",Analyze!G175) -> 16.9 | P175: =IF(Analyze!S175="","",Analyze!S175) -> 1.099557429 | W175: 0.7660365024 | X175: -4.4 | Y175: 1.447022252 | Z175: -5.736509786 | AA175: 16.9 | AB175: 0.6664926043 | AC175: 16.9 | AD175: 4.171658648 | AE175: 16.9 | AF175: 0.1716586479 | AG175: 16.9 | AH175: -3.828341352
O176: =IF(Analyze!G176="","",Analyze!G176) -> 17 | P176: =IF(Analyze!S176="","",Analyze!S176) -> 1.099557429 | W176: 0.7150839574 | X176: -4.5 | Y176: 1.396069707 | Z176: -5.836509786 | AA176: 17 | AB176: 0.5964718504 | AC176: 17 | AD176: 4.144863729 | AE176: 17 | AF176: 0.1448637287 | AG176: 17 | AH176: -3.855136271
O177: =IF(Analyze!G177="","",Analyze!G177) -> 17.1 | P177: =IF(Analyze!S177="","",Analyze!S177) -> 1.099557429 | W177: 0.6641314125 | X177: -4.6 | Y177: 1.345117162 | Z177: -5.936509786 | AA177: 17.1 | AB177: 0.5264510966 | AC177: 17.1 | AD177: 4.118068809 | AE177: 17.1 | AF177: 0.1180688094 | AG177: 17.1 | AH177: -3.881931191
O178: =IF(Analyze!G178="","",Analyze!G178) -> 17.2 | P178: =IF(Analyze!S178="","",Analyze!S178) -> 1.099557429 | W178: 0.6131788675 | X178: -4.7 | Y178: 1.294164617 | Z178: -6.036509786 | AA178: 17.2 | AB178: 0.4564303428 | AC178: 17.2 | AD178: 4.09127389 | AE178: 17.2 | AF178: 0.09127389018 | AG178: 17.2 | AH178: -3.90872611
O179: =IF(Analyze!G179="","",Analyze!G179) -> 17.3 | P179: =IF(Analyze!S179="","",Analyze!S179) -> 1.099557429 | W179: 0.5622263226 | X179: -4.8 | Y179: 1.243212072 | Z179: -6.136509786 | AA179: 17.3 | AB179: 0.386409589 | AC179: 17.3 | AD179: 4.064478971 | AE179: 17.3 | AF179: 0.06447897094 | AG179: 17.3 | AH179: -3.935521029
O180: =IF(Analyze!G180="","",Analyze!G180) -> 17.4 | P180: =IF(Analyze!S180="","",Analyze!S180) -> 1.099557429 | W180: 0.5112737776 | X180: -4.9 | Y180: 1.192259527 | Z180: -6.236509786 | AA180: 17.4 | AB180: 0.3163888352 | AC180: 17.4 | AD180: 4.037684052 | AE180: 17.4 | AF180: 0.0376840517 | AG180: 17.4 | AH180: -3.962315948
O181: =IF(Analyze!G181="","",Analyze!G181) -> 17.5 | P181: =IF(Analyze!S181="","",Analyze!S181) -> 1.099557429 | W181: 0.4603212327 | X181: -5 | Y181: 1.141306982 | Z181: -6.336509786 | AA181: 17.5 | AB181: 0.2463680813 | AC181: 17.5 | AD181: 4.010889132 | AE181: 17.5 | AF181: 0.01088913246 | AG181: 17.5 | AH181: -3.989110868
O182: =IF(Analyze!G182="","",Analyze!G182) -> 17.6 | P182: =IF(Analyze!S182="","",Analyze!S182) -> 1.099557429 | W182: 0.4093686877 | X182: -5.1 | Y182: 1.090354437 | Z182: -6.436509786 | AA182: 17.6 | AB182: 0.1763473275 | AC182: 17.6 | AD182: 3.984094213 | AE182: 17.6 | AF182: -0.01590578679 | AG182: 17.6 | AH182: -4.015905787
O183: =IF(Analyze!G183="","",Analyze!G183) -> 17.7 | P183: =IF(Analyze!S183="","",Analyze!S183) -> 1.099557429 | W183: 0.3584161428 | X183: -5.2 | Y183: 1.039401892 | Z183: -6.536509786 | AA183: 17.7 | AB183: 0.1063265737 | AC183: 17.7 | AD183: 3.957299294 | AE183: 17.7 | AF183: -0.04270070603 | AG183: 17.7 | AH183: -4.042700706
O184: =IF(Analyze!G184="","",Analyze!G184) -> 17.8 | P184: =IF(Analyze!S184="","",Analyze!S184) -> 1.099557429 | W184: 0.3074635978 | X184: -5.3 | Y184: 0.9884493474 | Z184: -6.636509786 | AA184: 17.8 | AB184: 0.03630581987 | AC184: 17.8 | AD184: 3.930504375 | AE184: 17.8 | AF184: -0.06949562527 | AG184: 17.8 | AH184: -4.069495625
O185: =IF(Analyze!G185="","",Analyze!G185) -> 17.9 | P185: =IF(Analyze!S185="","",Analyze!S185) -> 1.099557429 | W185: 0.2565110529 | X185: -5.4 | Y185: 0.9374968025 | Z185: -6.736509786 | AA185: 17.9 | AB185: -0.03371493395 | AC185: 17.9 | AD185: 3.903709455 | AE185: 17.9 | AF185: -0.09629054452 | AG185: 17.9 | AH185: -4.096290545
O186: =IF(Analyze!G186="","",Analyze!G186) -> 18 | P186: =IF(Analyze!S186="","",Analyze!S186) -> 1.099557429 | W186: 0.2055585079 | X186: -5.5 | Y186: 0.8865442575 | Z186: -6.836509786 | AA186: 18 | AB186: -0.1037356878 | AC186: 18 | AD186: 3.876914536 | AE186: 18 | AF186: -0.1230854638 | AG186: 18 | AH186: -4.123085464
O187: =IF(Analyze!G187="","",Analyze!G187) -> 18.1 | P187: =IF(Analyze!S187="","",Analyze!S187) -> 1.099557429 | W187: 0.154605963 | X187: -5.6 | Y187: 0.8355917126 | Z187: -6.936509786 | AA187: 18.1 | AB187: -0.1737564416 | AC187: 18.1 | AD187: 3.850119617 | AE187: 18.1 | AF187: -0.149880383 | AG187: 18.1 | AH187: -4.149880383
O188: =IF(Analyze!G188="","",Analyze!G188) -> 18.2 | P188: =IF(Analyze!S188="","",Analyze!S188) -> 1.099557429 | W188: 0.103653418 | X188: -5.7 | Y188: 0.7846391676 | Z188: -7.036509786 | AA188: 18.2 | AB188: -0.2437771954 | AC188: 18.2 | AD188: 3.823324698 | AE188: 18.2 | AF188: -0.1766753022 | AG188: 18.2 | AH188: -4.176675302
O189: =IF(Analyze!G189="","",Analyze!G189) -> 18.3 | P189: =IF(Analyze!S189="","",Analyze!S189) -> 1.099557429 | W189: 0.05270087309 | X189: -5.8 | Y189: 0.7336866227 | Z189: -7.136509786 | AA189: 18.3 | AB189: -0.3137979492 | AC189: 18.3 | AD189: 3.796529779 | AE189: 18.3 | AF189: -0.2034702215 | AG189: 18.3 | AH189: -4.203470221
O190: =IF(Analyze!G190="","",Analyze!G190) -> 18.4 | P190: =IF(Analyze!S190="","",Analyze!S190) -> 1.099557429 | W190: 0.001748328141 | X190: -5.9 | AA190: 18.4 | AB190: -0.3838187031 | AC190: 18.4 | AD190: 3.769734859 | AE190: 18.4 | AF190: -0.2302651407 | AG190: 18.4 | AH190: -4.230265141
O191: =IF(Analyze!G191="","",Analyze!G191) -> 18.5 | P191: =IF(Analyze!S191="","",Analyze!S191) -> 1.099557429 | AA191: 18.5 | AB191: -0.4538394569 | AC191: 18.5 | AD191: 3.74293994 | AE191: 18.5 | AF191: -0.25706006 | AG191: 18.5 | AH191: -4.25706006
O192: =IF(Analyze!G192="","",Analyze!G192) ->  | P192: =IF(Analyze!S192="","",Analyze!S192) ->  | AA192: 18.6 | AB192: -0.5238602107 | AC192: 18.6 | AD192: 3.716145021 | AE192: 18.6 | AF192: -0.2838549792 | AG192: 18.6 | AH192: -4.283854979
O193: =IF(Analyze!G193="","",Analyze!G193) ->  | P193: =IF(Analyze!S193="","",Analyze!S193) ->  | AA193: 18.7 | AB193: -0.5938809645 | AC193: 18.7 | AD193: 3.689350102 | AE193: 18.7 | AF193: -0.3106498985 | AG193: 18.7 | AH193: -4.310649898
O194: =IF(Analyze!G194="","",Analyze!G194) ->  | P194: =IF(Analyze!S194="","",Analyze!S194) ->  | AA194: 18.8 | AB194: -0.6639017183 | AC194: 18.8 | AD194: 3.662555182 | AE194: 18.8 | AF194: -0.3374448177 | AG194: 18.8 | AH194: -4.337444818
O195: =IF(Analyze!G195="","",Analyze!G195) ->  | P195: =IF(Analyze!S195="","",Analyze!S195) ->  | AA195: 18.9 | AB195: -0.7339224722 | AC195: 18.9 | AD195: 3.635760263 | AE195: 18.9 | AF195: -0.3642397369 | AG195: 18.9 | AH195: -4.364239737
O196: =IF(Analyze!G196="","",Analyze!G196) ->  | P196: =IF(Analyze!S196="","",Analyze!S196) ->  | AA196: 19 | AB196: -0.803943226 | AC196: 19 | AD196: 3.608965344 | AE196: 19 | AF196: -0.3910346562 | AG196: 19 | AH196: -4.391034656
O197: =IF(Analyze!G197="","",Analyze!G197) ->  | P197: =IF(Analyze!S197="","",Analyze!S197) ->  | AA197: 19.1 | AB197: -0.8739639798 | AC197: 19.1 | AD197: 3.582170425 | AE197: 19.1 | AF197: -0.4178295754 | AG197: 19.1 | AH197: -4.417829575
O198: =IF(Analyze!G198="","",Analyze!G198) ->  | P198: =IF(Analyze!S198="","",Analyze!S198) ->  | X198: =IF(O198="","",IF(O198>h+$H$2,(""),(h-O198))) ->  | AA198: 19.2 | AB198: -0.9439847336 | AC198: 19.2 | AD198: 3.555375505 | AE198: 19.2 | AF198: -0.4446244947 | AG198: 19.2 | AH198: -4.444624495
O199: =IF(Analyze!G199="","",Analyze!G199) ->  | P199: =IF(Analyze!S199="","",Analyze!S199) ->  | Y199: =IF(W200="","",W199+$H$4*COS(ATAN((X200-X199)/(W200-W199)))) ->  | Z199: =IF(W200="","",X199-$H$4*SIN(ATAN((X200-X199)/(W200-W199)))) ->  | AA199: 19.3 | AB199: -1.014005487 | AC199: 19.3 | AD199: 3.528580586 | AE199: 19.3 | AF199: -0.4714194139 | AG199: 19.3 | AH199: -4.471419414
O200: =IF(Analyze!G200="","",Analyze!G200) ->  | P200: =IF(Analyze!S200="","",Analyze!S200) ->  | AA200: =AA199+0.1 -> 19.4 | AB200: =AB199-0.1*TAN(RADIANS($F$7)) -> -1.084026241 | AC200: =AC199+0.1 -> 19.4 | AD200: =AD199-0.1*TAN(RADIANS($F$8)) -> 3.501785667 | AE200: =AE199+0.1 -> 19.4 | AF200: =AF199-0.1*TAN(RADIANS($F$9)) -> -0.4982143332 | AG200: =AG199+0.1 -> 19.4 | AH200: =AH199-0.1*TAN(RADIANS($F$10)) -> -4.498214333 | AI200: =AI199+0.1 ->  | AJ200: =AJ199-0.1*TAN(RADIANS($F$11)) ->  | AK200: =AK199+0.1 ->  | AL200: =AL199-0.1*TAN(RADIANS($F$12)) ->  | AM200: =AM199+0.1 ->  | AN200: =AN199-0.1*TAN(RADIANS($F$13)) ->  | AO200: =AO199+0.1 ->  | AP200: =AP199-0.1*TAN(RADIANS($F$14)) ->  | AQ200: =AQ199+0.1 ->  | AR200: =AR199-0.1*TAN(RADIANS($F$15)) ->  | AS200: =AS199+0.1 ->  | AT200: =AT199-0.1*TAN(RADIANS($F$16)) -> 
... 811 more rows

Sheet Shear-Moment Analysis
A1: 1 | B1: 2 | C1: 3 | D1: 4 | E1: 5 | F1: 6 | G1: 7 | H1: 8 | I1: 9 | J1: 10 | K1: 11 | L1: 12 | M1: 13 | N1: 14 | O1: 15 | P1: 16 | Q1: 17 | R1: 18
G5: Depth (m) | H5: Distribution (kPa) | I5: Strut Force (kN) | J5: Shear (kN) | K5: Moment (kN.m)
C6: =IF(G6="","",G6/10) -> 0 | G6: =IF(Analyze!G6="","",Analyze!G6) -> 0 | H6: =IF(G6="","",IF(Analyze!Y6="",Analyze!AB6,Analyze!AB6+Analyze!Y6/Summary!$Y$25)) -> 0 | I6: 22.11478671 | J6: =IF(G6="","",+I6) -> 22.11478671 | K6: =0 -> 0
C7: =IF(G7="","",G7/10) -> 0.01 | G7: =IF(Analyze!G7="","",Analyze!G7) -> 0.1 | H7: =IF(G7="","",IF(Analyze!Y7="",Analyze!AB7,Analyze!AB7+Analyze!Y7/Summary!$Y$25)) -> 1.20993529 | I7: 0 | J7: =IF(G7="","",(J6+I7-H7*(G7-G6))) -> 21.99379318 | K7: =IF(G7="","",K6+J6*(G7-G6)) -> 2.211478671
C8: 0.02 | G8: =IF(Analyze!G8="","",Analyze!G8) -> 0.2 | H8: =IF(G8="","",IF(Analyze!Y8="",Analyze!AB8,Analyze!AB8+Analyze!Y8/Summary!$Y$25)) -> 2.419870581 | I8: 0 | J8: =IF(G8="","",(J7+I8-H8*(G8-G7))) -> 21.75180612 | K8: =IF(G8="","",K7+J7*(G8-G7)) -> 4.410857988
C9: 0.03 | G9: =IF(Analyze!G9="","",Analyze!G9) -> 0.3 | H9: =IF(G9="","",IF(Analyze!Y9="",Analyze!AB9,Analyze!AB9+Analyze!Y9/Summary!$Y$25)) -> 3.629805871 | I9: 0 | J9: 21.38882553 | K9: 6.5860386
C10: 0.04 | G10: =IF(Analyze!G10="","",Analyze!G10) -> 0.4 | H10: =IF(G10="","",IF(Analyze!Y10="",Analyze!AB10,Analyze!AB10+Analyze!Y10/Summary!$Y$25)) -> 4.839741162 | I10: 0 | J10: 20.90485142 | K10: 8.724921153
C11: 0.05 | G11: =IF(Analyze!G11="","",Analyze!G11) -> 0.5 | H11: =IF(G11="","",IF(Analyze!Y11="",Analyze!AB11,Analyze!AB11+Analyze!Y11/Summary!$Y$25)) -> 6.049676452 | I11: 0 | J11: 20.29988377 | K11: 10.81540629
C12: 0.06 | G12: =IF(Analyze!G12="","",Analyze!G12) -> 0.6 | H12: =IF(G12="","",IF(Analyze!Y12="",Analyze!AB12,Analyze!AB12+Analyze!Y12/Summary!$Y$25)) -> 7.259611743 | I12: 0 | J12: 19.5739226 | K12: 12.84539467
C13: 0.07 | G13: =IF(Analyze!G13="","",Analyze!G13) -> 0.7 | H13: =IF(G13="","",IF(Analyze!Y13="",Analyze!AB13,Analyze!AB13+Analyze!Y13/Summary!$Y$25)) -> 8.469547033 | I13: 0 | J13: 18.72696789 | K13: 14.80278693
C14: 0.08 | G14: =IF(Analyze!G14="","",Analyze!G14) -> 0.8 | H14: =IF(G14="","",IF(Analyze!Y14="",Analyze!AB14,Analyze!AB14+Analyze!Y14/Summary!$Y$25)) -> 9.679482324 | I14: 0 | J14: 17.75901966 | K14: 16.67548372
C15: 0.09 | G15: =IF(Analyze!G15="","",Analyze!G15) -> 0.9 | H15: =IF(G15="","",IF(Analyze!Y15="",Analyze!AB15,Analyze!AB15+Analyze!Y15/Summary!$Y$25)) -> 10.88941761 | I15: 0 | J15: 16.6700779 | K15: 18.45138569
C16: 0.1 | G16: =IF(Analyze!G16="","",Analyze!G16) -> 1 | H16: =IF(G16="","",IF(Analyze!Y16="",Analyze!AB16,Analyze!AB16+Analyze!Y16/Summary!$Y$25)) -> 12.0993529 | I16: 0 | J16: 15.46014261 | K16: 20.11839348
C17: 0.11 | G17: =IF(Analyze!G17="","",Analyze!G17) -> 1.1 | H17: =IF(G17="","",IF(Analyze!Y17="",Analyze!AB17,Analyze!AB17+Analyze!Y17/Summary!$Y$25)) -> 13.3092882 | I17: 0 | J17: 14.12921379 | K17: 21.66440774
C18: 0.12 | G18: =IF(Analyze!G18="","",Analyze!G18) -> 1.2 | H18: =IF(G18="","",IF(Analyze!Y18="",Analyze!AB18,Analyze!AB18+Analyze!Y18/Summary!$Y$25)) -> 14.51922349 | I18: 0 | J18: 12.67729144 | K18: 23.07732912
C19: 0.13 | G19: =IF(Analyze!G19="","",Analyze!G19) -> 1.3 | H19: =IF(G19="","",IF(Analyze!Y19="",Analyze!AB19,Analyze!AB19+Analyze!Y19/Summary!$Y$25)) -> 15.72915878 | I19: 0 | J19: 11.10437556 | K19: 24.34505826
C20: 0.14 | G20: =IF(Analyze!G20="","",Analyze!G20) -> 1.4 | H20: =IF(G20="","",IF(Analyze!Y20="",Analyze!AB20,Analyze!AB20+Analyze!Y20/Summary!$Y$25)) -> 16.93909407 | I20: 0 | J20: 9.410466156 | K20: 25.45549582
C21: 0.15 | G21: =IF(Analyze!G21="","",Analyze!G21) -> 1.5 | H21: =IF(G21="","",IF(Analyze!Y21="",Analyze!AB21,Analyze!AB21+Analyze!Y21/Summary!$Y$25)) -> 18.14902936 | I21: 0 | J21: 7.59556322 | K21: 26.39654243
C22: 0.16 | G22: =IF(Analyze!G22="","",Analyze!G22) -> 1.6 | H22: =IF(G22="","",IF(Analyze!Y22="",Analyze!AB22,Analyze!AB22+Analyze!Y22/Summary!$Y$25)) -> 19.35896465 | I22: 0 | J22: 5.659666755 | K22: 27.15609875
C23: 0.17 | G23: =IF(Analyze!G23="","",Analyze!G23) -> 1.7 | H23: =IF(G23="","",IF(Analyze!Y23="",Analyze!AB23,Analyze!AB23+Analyze!Y23/Summary!$Y$25)) -> 20.56889994 | I23: 0 | J23: 3.602776761 | K23: 27.72206543
C24: 0.18 | G24: =IF(Analyze!G24="","",Analyze!G24) -> 1.8 | H24: =IF(G24="","",IF(Analyze!Y24="",Analyze!AB24,Analyze!AB24+Analyze!Y24/Summary!$Y$25)) -> 21.77883523 | I24: 0 | J24: 1.424893239 | K24: 28.08234311
C25: 0.19 | G25: =IF(Analyze!G25="","",Analyze!G25) -> 1.9 | H25: =IF(G25="","",IF(Analyze!Y25="",Analyze!AB25,Analyze!AB25+Analyze!Y25/Summary!$Y$25)) -> 22.98877052 | I25: 0 | J25: -0.8739838134 | K25: 28.22483243
C26: 0.2 | G26: =IF(Analyze!G26="","",Analyze!G26) -> 2 | H26: =IF(G26="","",IF(Analyze!Y26="",Analyze!AB26,Analyze!AB26+Analyze!Y26/Summary!$Y$25)) -> 24.19870581 | I26: 0 | J26: -3.293854394 | K26: 28.13743405
C27: 0.21 | G27: =IF(Analyze!G27="","",Analyze!G27) -> 2.1 | H27: =IF(G27="","",IF(Analyze!Y27="",Analyze!AB27,Analyze!AB27+Analyze!Y27/Summary!$Y$25)) -> 25.4086411 | I27: 0 | J27: -5.834718504 | K27: 27.80804861
C28: 0.22 | G28: =IF(Analyze!G28="","",Analyze!G28) -> 2.2 | H28: =IF(G28="","",IF(Analyze!Y28="",Analyze!AB28,Analyze!AB28+Analyze!Y28/Summary!$Y$25)) -> 26.61857639 | I28: 0 | J28: -8.496576143 | K28: 27.22457676
C29: 0.23 | G29: =IF(Analyze!G29="","",Analyze!G29) -> 2.3 | H29: =IF(G29="","",IF(Analyze!Y29="",Analyze!AB29,Analyze!AB29+Analyze!Y29/Summary!$Y$25)) -> 27.82851168 | I29: 0 | J29: -11.27942731 | K29: 26.37491914
C30: 0.24 | G30: =IF(Analyze!G30="","",Analyze!G30) -> 2.4 | H30: =IF(G30="","",IF(Analyze!Y30="",Analyze!AB30,Analyze!AB30+Analyze!Y30/Summary!$Y$25)) -> 29.03844697 | I30: 0 | J30: -14.18327201 | K30: 25.24697641
C31: 0.25 | G31: =IF(Analyze!G31="","",Analyze!G31) -> 2.5 | H31: =IF(G31="","",IF(Analyze!Y31="",Analyze!AB31,Analyze!AB31+Analyze!Y31/Summary!$Y$25)) -> 30.24838226 | I31: 0 | J31: -17.20811023 | K31: 23.82864921
C32: 0.26 | G32: =IF(Analyze!G32="","",Analyze!G32) -> 2.6 | H32: =IF(G32="","",IF(Analyze!Y32="",Analyze!AB32,Analyze!AB32+Analyze!Y32/Summary!$Y$25)) -> 31.45831755 | I32: 0 | J32: -20.35394199 | K32: 22.10783819
C33: 0.27 | G33: =IF(Analyze!G33="","",Analyze!G33) -> 2.7 | H33: =IF(G33="","",IF(Analyze!Y33="",Analyze!AB33,Analyze!AB33+Analyze!Y33/Summary!$Y$25)) -> 32.66825284 | I33: 0 | J33: -23.62076727 | K33: 20.07244399
C34: 0.28 | G34: =IF(Analyze!G34="","",Analyze!G34) -> 2.8 | H34: =IF(G34="","",IF(Analyze!Y34="",Analyze!AB34,Analyze!AB34+Analyze!Y34/Summary!$Y$25)) -> 33.87818813 | I34: 0 | J34: -27.00858609 | K34: 17.71036726
C35: 0.29 | G35: =IF(Analyze!G35="","",Analyze!G35) -> 2.9 | H35: =IF(G35="","",IF(Analyze!Y35="",Analyze!AB35,Analyze!AB35+Analyze!Y35/Summary!$Y$25)) -> 35.08812342 | I35: 0 | J35: -30.51739843 | K35: 15.00950865
C36: 0.3 | G36: =IF(Analyze!G36="","",Analyze!G36) -> 3 | H36: =IF(G36="","",IF(Analyze!Y36="",Analyze!AB36,Analyze!AB36+Analyze!Y36/Summary!$Y$25)) -> 36.29805871 | I36: 0 | J36: -34.1472043 | K36: 11.95776881
C37: 0.31 | G37: =IF(Analyze!G37="","",Analyze!G37) -> 3.1 | H37: =IF(G37="","",IF(Analyze!Y37="",Analyze!AB37,Analyze!AB37+Analyze!Y37/Summary!$Y$25)) -> 37.50799401 | I37: 0 | J37: -37.8980037 | K37: 8.54304838
C38: 0.32 | G38: =IF(Analyze!G38="","",Analyze!G38) -> 3.2 | H38: =IF(G38="","",IF(Analyze!Y38="",Analyze!AB38,Analyze!AB38+Analyze!Y38/Summary!$Y$25)) -> 38.7179293 | I38: 0 | J38: -41.76979663 | K38: 4.75324801
C39: 0.33 | G39: =IF(Analyze!G39="","",Analyze!G39) -> 3.3 | H39: =IF(G39="","",IF(Analyze!Y39="",Analyze!AB39,Analyze!AB39+Analyze!Y39/Summary!$Y$25)) -> 39.92786459 | I39: 0 | J39: -45.76258309 | K39: 0.5762683467
C40: 0.34 | G40: =IF(Analyze!G40="","",Analyze!G40) -> 3.4 | H40: =IF(G40="","",IF(Analyze!Y40="",Analyze!AB40,Analyze!AB40+Analyze!Y40/Summary!$Y$25)) -> 41.13779988 | I40: 0 | J40: -49.87636308 | K40: -3.999989962
C41: 0.35 | G41: =IF(Analyze!G41="","",Analyze!G41) -> 3.5 | H41: =IF(G41="","",IF(Analyze!Y41="",Analyze!AB41,Analyze!AB41+Analyze!Y41/Summary!$Y$25)) -> 42.34773517 | I41: 0 | J41: -54.11113659 | K41: -8.98762627
C42: 0.36 | G42: =IF(Analyze!G42="","",Analyze!G42) -> 3.6 | H42: =IF(G42="","",IF(Analyze!Y42="",Analyze!AB42,Analyze!AB42+Analyze!Y42/Summary!$Y$25)) -> 43.55767046 | I42: 0 | J42: -58.46690364 | K42: -14.39873993
C43: 0.37 | G43: =IF(Analyze!G43="","",Analyze!G43) -> 3.7 | H43: =IF(G43="","",IF(Analyze!Y43="",Analyze!AB43,Analyze!AB43+Analyze!Y43/Summary!$Y$25)) -> 44.76760575 | I43: 164.5708711 | J43: 101.6272069 | K43: -20.24543029
C44: 0.38 | G44: =IF(Analyze!G44="","",Analyze!G44) -> 3.8 | H44: =IF(G44="","",IF(Analyze!Y44="",Analyze!AB44,Analyze!AB44+Analyze!Y44/Summary!$Y$25)) -> 44.76760575 | I44: 0 | J44: 97.15044628 | K44: -10.08270961
C45: 0.39 | G45: =IF(Analyze!G45="","",Analyze!G45) -> 3.9 | H45: =IF(G45="","",IF(Analyze!Y45="",Analyze!AB45,Analyze!AB45+Analyze!Y45/Summary!$Y$25)) -> 44.76760575 | I45: 0 | J45: 92.6736857 | K45: -0.3676649803
C46: 0.4 | G46: =IF(Analyze!G46="","",Analyze!G46) -> 4 | H46: =IF(G46="","",IF(Analyze!Y46="",Analyze!AB46,Analyze!AB46+Analyze!Y46/Summary!$Y$25)) -> 44.76760575 | I46: 0 | J46: 88.19692513 | K46: 8.89970359
C47: 0.41 | G47: =IF(Analyze!G47="","",Analyze!G47) -> 4.1 | H47: =IF(G47="","",IF(Analyze!Y47="",Analyze!AB47,Analyze!AB47+Analyze!Y47/Summary!$Y$25)) -> 44.76760575 | I47: 0 | J47: 83.72016456 | K47: 17.7193961
C48: 0.42 | G48: =IF(Analyze!G48="","",Analyze!G48) -> 4.2 | H48: =IF(G48="","",IF(Analyze!Y48="",Analyze!AB48,Analyze!AB48+Analyze!Y48/Summary!$Y$25)) -> 44.76760575 | I48: 0 | J48: 79.24340398 | K48: 26.09141256
C49: 0.43 | G49: =IF(Analyze!G49="","",Analyze!G49) -> 4.3 | H49: =IF(G49="","",IF(Analyze!Y49="",Analyze!AB49,Analyze!AB49+Analyze!Y49/Summary!$Y$25)) -> 44.76760575 | I49: 0 | J49: 74.76664341 | K49: 34.01575296
C50: 0.44 | G50: =IF(Analyze!G50="","",Analyze!G50) -> 4.4 | H50: =IF(G50="","",IF(Analyze!Y50="",Analyze!AB50,Analyze!AB50+Analyze!Y50/Summary!$Y$25)) -> 44.76760575 | I50: 0 | J50: 70.28988283 | K50: 41.4924173
C51: 0.45 | G51: =IF(Analyze!G51="","",Analyze!G51) -> 4.5 | H51: =IF(G51="","",IF(Analyze!Y51="",Analyze!AB51,Analyze!AB51+Analyze!Y51/Summary!$Y$25)) -> 44.76760575 | I51: 0 | J51: 65.81312226 | K51: 48.52140558
C52: 0.46 | G52: =IF(Analyze!G52="","",Analyze!G52) -> 4.6 | H52: =IF(G52="","",IF(Analyze!Y52="",Analyze!AB52,Analyze!AB52+Analyze!Y52/Summary!$Y$25)) -> 44.76760575 | I52: 0 | J52: 61.33636168 | K52: 55.10271781
C53: 0.47 | G53: =IF(Analyze!G53="","",Analyze!G53) -> 4.7 | H53: =IF(G53="","",IF(Analyze!Y53="",Analyze!AB53,Analyze!AB53+Analyze!Y53/Summary!$Y$25)) -> 44.76760575 | I53: 0 | J53: 56.85960111 | K53: 61.23635397
C54: 0.48 | G54: =IF(Analyze!G54="","",Analyze!G54) -> 4.8 | H54: =IF(G54="","",IF(Analyze!Y54="",Analyze!AB54,Analyze!AB54+Analyze!Y54/Summary!$Y$25)) -> 44.76760575 | I54: 0 | J54: 52.38284053 | K54: 66.92231408
C55: 0.49 | G55: =IF(Analyze!G55="","",Analyze!G55) -> 4.9 | H55: =IF(G55="","",IF(Analyze!Y55="",Analyze!AB55,Analyze!AB55+Analyze!Y55/Summary!$Y$25)) -> 44.76760575 | I55: 0 | J55: 47.90607996 | K55: 72.16059814
C56: 0.5 | G56: =IF(Analyze!G56="","",Analyze!G56) -> 5 | H56: =IF(G56="","",IF(Analyze!Y56="",Analyze!AB56,Analyze!AB56+Analyze!Y56/Summary!$Y$25)) -> 44.76760575 | I56: 0 | J56: 43.42931938 | K56: 76.95120613
C57: 0.51 | G57: =IF(Analyze!G57="","",Analyze!G57) -> 5.1 | H57: =IF(G57="","",IF(Analyze!Y57="",Analyze!AB57,Analyze!AB57+Analyze!Y57/Summary!$Y$25)) -> 44.76760575 | I57: 0 | J57: 38.95255881 | K57: 81.29413807
C58: 0.52 | G58: =IF(Analyze!G58="","",Analyze!G58) -> 5.2 | H58: =IF(G58="","",IF(Analyze!Y58="",Analyze!AB58,Analyze!AB58+Analyze!Y58/Summary!$Y$25)) -> 44.76760575 | I58: 0 | J58: 34.47579823 | K58: 85.18939395
C59: 0.53 | G59: =IF(Analyze!G59="","",Analyze!G59) -> 5.3 | H59: =IF(G59="","",IF(Analyze!Y59="",Analyze!AB59,Analyze!AB59+Analyze!Y59/Summary!$Y$25)) -> 44.76760575 | I59: 0 | J59: 29.99903766 | K59: 88.63697378
C60: 0.54 | G60: =IF(Analyze!G60="","",Analyze!G60) -> 5.4 | H60: =IF(G60="","",IF(Analyze!Y60="",Analyze!AB60,Analyze!AB60+Analyze!Y60/Summary!$Y$25)) -> 44.76760575 | I60: 0 | J60: 25.52227708 | K60: 91.63687754
C61: 0.55 | G61: =IF(Analyze!G61="","",Analyze!G61) -> 5.5 | H61: =IF(G61="","",IF(Analyze!Y61="",Analyze!AB61,Analyze!AB61+Analyze!Y61/Summary!$Y$25)) -> 44.76760575 | I61: 0 | J61: 21.04551651 | K61: 94.18910525
C62: 0.56 | G62: =IF(Analyze!G62="","",Analyze!G62) -> 5.6 | H62: =IF(G62="","",IF(Analyze!Y62="",Analyze!AB62,Analyze!AB62+Analyze!Y62/Summary!$Y$25)) -> 44.76760575 | I62: 0 | J62: 16.56875593 | K62: 96.2936569
C63: 0.57 | G63: =IF(Analyze!G63="","",Analyze!G63) -> 5.7 | H63: =IF(G63="","",IF(Analyze!Y63="",Analyze!AB63,Analyze!AB63+Analyze!Y63/Summary!$Y$25)) -> 44.76760575 | I63: 0 | J63: 12.09199536 | K63: 97.95053249
C64: 0.58 | G64: =IF(Analyze!G64="","",Analyze!G64) -> 5.8 | H64: =IF(G64="","",IF(Analyze!Y64="",Analyze!AB64,Analyze!AB64+Analyze!Y64/Summary!$Y$25)) -> 44.76760575 | I64: 0 | J64: 7.615234783 | K64: 99.15973203
C65: 0.59 | G65: =IF(Analyze!G65="","",Analyze!G65) -> 5.9 | H65: =IF(G65="","",IF(Analyze!Y65="",Analyze!AB65,Analyze!AB65+Analyze!Y65/Summary!$Y$25)) -> 44.76760575 | I65: 0 | J65: 3.138474209 | K65: 99.92125551
C66: 0.6 | G66: =IF(Analyze!G66="","",Analyze!G66) -> 6 | H66: =IF(G66="","",IF(Analyze!Y66="",Analyze!AB66,Analyze!AB66+Analyze!Y66/Summary!$Y$25)) -> 44.76760575 | I66: 0 | J66: -1.338286366 | K66: 100.2351029
C67: 0.61 | G67: =IF(Analyze!G67="","",Analyze!G67) -> 6.1 | H67: =IF(G67="","",IF(Analyze!Y67="",Analyze!AB67,Analyze!AB67+Analyze!Y67/Summary!$Y$25)) -> 44.76760575 | I67: 0 | J67: -5.815046941 | K67: 100.1012743
C68: 0.62 | G68: =IF(Analyze!G68="","",Analyze!G68) -> 6.2 | H68: =IF(G68="","",IF(Analyze!Y68="",Analyze!AB68,Analyze!AB68+Analyze!Y68/Summary!$Y$25)) -> 44.76760575 | I68: 0 | J68: -10.29180752 | K68: 99.5197696
C69: 0.63 | G69: =IF(Analyze!G69="","",Analyze!G69) -> 6.3 | H69: =IF(G69="","",IF(Analyze!Y69="",Analyze!AB69,Analyze!AB69+Analyze!Y69/Summary!$Y$25)) -> 44.76760575 | I69: 0 | J69: -14.76856809 | K69: 98.49058885
C70: 0.64 | G70: =IF(Analyze!G70="","",Analyze!G70) -> 6.4 | H70: =IF(G70="","",IF(Analyze!Y70="",Analyze!AB70,Analyze!AB70+Analyze!Y70/Summary!$Y$25)) -> 44.76760575 | I70: 0 | J70: -19.24532867 | K70: 97.01373204
C71: =IF(G71="","",G71/10) -> 0.65 | G71: =IF(Analyze!G71="","",Analyze!G71) -> 6.5 | H71: =IF(G71="","",IF(Analyze!Y71="",Analyze!AB71,Analyze!AB71+Analyze!Y71/Summary!$Y$25)) -> 44.76760575 | I71: 0 | J71: -23.72208924 | K71: 95.08919917
C72: 0.66 | G72: =IF(Analyze!G72="","",Analyze!G72) -> 6.6 | H72: =IF(G72="","",IF(Analyze!Y72="",Analyze!AB72,Analyze!AB72+Analyze!Y72/Summary!$Y$25)) -> 44.76760575 | I72: 0 | J72: =IF(G72="","",(J71+I72-H72*(G72-G71))) -> -28.19884982 | K72: =IF(G72="","",K71+J71*(G72-G71)) -> 92.71699025
C73: 0.67 | G73: =IF(Analyze!G73="","",Analyze!G73) -> 6.7 | H73: =IF(G73="","",IF(Analyze!Y73="",Analyze!AB73,Analyze!AB73+Analyze!Y73/Summary!$Y$25)) -> 44.76760575 | I73: 0 | J73: -32.67561039 | K73: 89.89710527
C74: 0.68 | G74: =IF(Analyze!G74="","",Analyze!G74) -> 6.8 | H74: =IF(G74="","",IF(Analyze!Y74="",Analyze!AB74,Analyze!AB74+Analyze!Y74/Summary!$Y$25)) -> 44.76760575 | I74: 0 | J74: -37.15237096 | K74: 86.62954423
C75: 0.69 | G75: =IF(Analyze!G75="","",Analyze!G75) -> 6.9 | H75: =IF(G75="","",IF(Analyze!Y75="",Analyze!AB75,Analyze!AB75+Analyze!Y75/Summary!$Y$25)) -> 44.76760575 | I75: 0 | J75: -41.62913154 | K75: 82.91430713
C76: 0.7 | G76: =IF(Analyze!G76="","",Analyze!G76) -> 7 | H76: =IF(G76="","",IF(Analyze!Y76="",Analyze!AB76,Analyze!AB76+Analyze!Y76/Summary!$Y$25)) -> 44.76760575 | I76: 0 | J76: -46.10589211 | K76: 78.75139398
C77: 0.71 | G77: =IF(Analyze!G77="","",Analyze!G77) -> 7.1 | H77: =IF(G77="","",IF(Analyze!Y77="",Analyze!AB77,Analyze!AB77+Analyze!Y77/Summary!$Y$25)) -> 44.76760575 | I77: 0 | J77: -50.58265269 | K77: 74.14080476
C78: 0.72 | G78: =IF(Analyze!G78="","",Analyze!G78) -> 7.2 | H78: =IF(G78="","",IF(Analyze!Y78="",Analyze!AB78,Analyze!AB78+Analyze!Y78/Summary!$Y$25)) -> 44.76760575 | I78: 0 | J78: -55.05941326 | K78: 69.0825395
C79: 0.73 | G79: =IF(Analyze!G79="","",Analyze!G79) -> 7.3 | H79: =IF(G79="","",IF(Analyze!Y79="",Analyze!AB79,Analyze!AB79+Analyze!Y79/Summary!$Y$25)) -> 44.76760575 | I79: 0 | J79: -59.53617384 | K79: 63.57659817
C80: 0.74 | G80: =IF(Analyze!G80="","",Analyze!G80) -> 7.4 | H80: =IF(G80="","",IF(Analyze!Y80="",Analyze!AB80,Analyze!AB80+Analyze!Y80/Summary!$Y$25)) -> 44.76760575 | I80: 0 | J80: -64.01293441 | K80: 57.62298079
C81: 0.75 | G81: =IF(Analyze!G81="","",Analyze!G81) -> 7.5 | H81: =IF(G81="","",IF(Analyze!Y81="",Analyze!AB81,Analyze!AB81+Analyze!Y81/Summary!$Y$25)) -> 44.76760575 | I81: 0 | J81: -68.48969499 | K81: 51.22168734
C82: 0.76 | G82: =IF(Analyze!G82="","",Analyze!G82) -> 7.6 | H82: =IF(G82="","",IF(Analyze!Y82="",Analyze!AB82,Analyze!AB82+Analyze!Y82/Summary!$Y$25)) -> 44.76760575 | I82: 0 | J82: -72.96645556 | K82: 44.37271785
C83: 0.77 | G83: =IF(Analyze!G83="","",Analyze!G83) -> 7.7 | H83: =IF(G83="","",IF(Analyze!Y83="",Analyze!AB83,Analyze!AB83+Analyze!Y83/Summary!$Y$25)) -> 44.76760575 | I83: 0 | J83: -77.44321614 | K83: 37.07607229
C84: 0.78 | G84: =IF(Analyze!G84="","",Analyze!G84) -> 7.8 | H84: =IF(G84="","",IF(Analyze!Y84="",Analyze!AB84,Analyze!AB84+Analyze!Y84/Summary!$Y$25)) -> 44.76760575 | I84: 186.7470877 | J84: 104.827111 | K84: 29.33175068
C85: 0.79 | G85: =IF(Analyze!G85="","",Analyze!G85) -> 7.9 | H85: =IF(G85="","",IF(Analyze!Y85="",Analyze!AB85,Analyze!AB85+Analyze!Y85/Summary!$Y$25)) -> 44.76760575 | I85: 0 | J85: 100.3503505 | K85: 39.81446178
C86: 0.8 | G86: =IF(Analyze!G86="","",Analyze!G86) -> 8 | H86: =IF(G86="","",IF(Analyze!Y86="",Analyze!AB86,Analyze!AB86+Analyze!Y86/Summary!$Y$25)) -> 44.76760575 | I86: 0 | J86: 95.87358988 | K86: 49.84949682
C87: 0.81 | G87: =IF(Analyze!G87="","",Analyze!G87) -> 8.1 | H87: =IF(G87="","",IF(Analyze!Y87="",Analyze!AB87,Analyze!AB87+Analyze!Y87/Summary!$Y$25)) -> 44.76760575 | I87: 0 | J87: 91.3968293 | K87: 59.43685581
C88: 0.82 | G88: =IF(Analyze!G88="","",Analyze!G88) -> 8.2 | H88: =IF(G88="","",IF(Analyze!Y88="",Analyze!AB88,Analyze!AB88+Analyze!Y88/Summary!$Y$25)) -> 44.76760575 | I88: 0 | J88: 86.92006873 | K88: 68.57653874
C89: 0.83 | G89: =IF(Analyze!G89="","",Analyze!G89) -> 8.3 | H89: =IF(G89="","",IF(Analyze!Y89="",Analyze!AB89,Analyze!AB89+Analyze!Y89/Summary!$Y$25)) -> 44.76760575 | I89: 0 | J89: 82.44330815 | K89: 77.26854561
C90: 0.84 | G90: =IF(Analyze!G90="","",Analyze!G90) -> 8.4 | H90: =IF(G90="","",IF(Analyze!Y90="",Analyze!AB90,Analyze!AB90+Analyze!Y90/Summary!$Y$25)) -> 44.76760575 | I90: 0 | J90: 77.96654758 | K90: 85.51287643
C91: 0.85 | G91: =IF(Analyze!G91="","",Analyze!G91) -> 8.5 | H91: =IF(G91="","",IF(Analyze!Y91="",Analyze!AB91,Analyze!AB91+Analyze!Y91/Summary!$Y$25)) -> 44.76760575 | I91: 0 | J91: 73.489787 | K91: 93.30953119
C92: 0.86 | G92: =IF(Analyze!G92="","",Analyze!G92) -> 8.6 | H92: =IF(G92="","",IF(Analyze!Y92="",Analyze!AB92,Analyze!AB92+Analyze!Y92/Summary!$Y$25)) -> 44.76760575 | I92: 0 | J92: 69.01302643 | K92: 100.6585099
C93: 0.87 | G93: =IF(Analyze!G93="","",Analyze!G93) -> 8.7 | H93: =IF(G93="","",IF(Analyze!Y93="",Analyze!AB93,Analyze!AB93+Analyze!Y93/Summary!$Y$25)) -> 44.76760575 | I93: 0 | J93: 64.53626585 | K93: 107.5598125
C94: 0.88 | G94: =IF(Analyze!G94="","",Analyze!G94) -> 8.8 | H94: =IF(G94="","",IF(Analyze!Y94="",Analyze!AB94,Analyze!AB94+Analyze!Y94/Summary!$Y$25)) -> 44.76760575 | I94: 0 | J94: 60.05950528 | K94: 114.0134391
C95: 0.89 | G95: =IF(Analyze!G95="","",Analyze!G95) -> 8.9 | H95: =IF(G95="","",IF(Analyze!Y95="",Analyze!AB95,Analyze!AB95+Analyze!Y95/Summary!$Y$25)) -> 44.76760575 | I95: 0 | J95: 55.5827447 | K95: 120.0193896
C96: 0.9 | G96: =IF(Analyze!G96="","",Analyze!G96) -> 9 | H96: =IF(G96="","",IF(Analyze!Y96="",Analyze!AB96,Analyze!AB96+Analyze!Y96/Summary!$Y$25)) -> 44.76760575 | I96: 0 | J96: 51.10598413 | K96: 125.5776641
C97: 0.91 | G97: =IF(Analyze!G97="","",Analyze!G97) -> 9.1 | H97: =IF(G97="","",IF(Analyze!Y97="",Analyze!AB97,Analyze!AB97+Analyze!Y97/Summary!$Y$25)) -> 44.76760575 | I97: 0 | J97: 46.62922355 | K97: 130.6882625
C98: 0.92 | G98: =IF(Analyze!G98="","",Analyze!G98) -> 9.2 | H98: =IF(G98="","",IF(Analyze!Y98="",Analyze!AB98,Analyze!AB98+Analyze!Y98/Summary!$Y$25)) -> 44.76760575 | I98: 0 | J98: 42.15246298 | K98: 135.3511849
C99: 0.93 | G99: =IF(Analyze!G99="","",Analyze!G99) -> 9.3 | H99: =IF(G99="","",IF(Analyze!Y99="",Analyze!AB99,Analyze!AB99+Analyze!Y99/Summary!$Y$25)) -> 44.76760575 | I99: 0 | J99: 37.6757024 | K99: 139.5664312
C100: 0.94 | G100: =IF(Analyze!G100="","",Analyze!G100) -> 9.4 | H100: =IF(G100="","",IF(Analyze!Y100="",Analyze!AB100,Analyze!AB100+Analyze!Y100/Summary!$Y$25)) -> 44.76760575 | I100: 0 | J100: 33.19894183 | K100: 143.3340014
C101: 0.95 | G101: =IF(Analyze!G101="","",Analyze!G101) -> 9.5 | H101: =IF(G101="","",IF(Analyze!Y101="",Analyze!AB101,Analyze!AB101+Analyze!Y101/Summary!$Y$25)) -> 44.76760575 | I101: 0 | J101: 28.72218125 | K101: 146.6538956
C102: 0.96 | G102: =IF(Analyze!G102="","",Analyze!G102) -> 9.6 | H102: =IF(G102="","",IF(Analyze!Y102="",Analyze!AB102,Analyze!AB102+Analyze!Y102/Summary!$Y$25)) -> 44.76760575 | I102: 0 | J102: 24.24542068 | K102: 149.5261137
C103: 0.97 | G103: =IF(Analyze!G103="","",Analyze!G103) -> 9.7 | H103: =IF(G103="","",IF(Analyze!Y103="",Analyze!AB103,Analyze!AB103+Analyze!Y103/Summary!$Y$25)) -> 44.76760575 | I103: 0 | J103: 19.7686601 | K103: 151.9506558
C104: 0.98 | G104: =IF(Analyze!G104="","",Analyze!G104) -> 9.8 | H104: =IF(G104="","",IF(Analyze!Y104="",Analyze!AB104,Analyze!AB104+Analyze!Y104/Summary!$Y$25)) -> 44.76760575 | I104: 0 | J104: 15.29189953 | K104: 153.9275218
C105: 0.99 | G105: =IF(Analyze!G105="","",Analyze!G105) -> 9.9 | H105: =IF(G105="","",IF(Analyze!Y105="",Analyze!AB105,Analyze!AB105+Analyze!Y105/Summary!$Y$25)) -> 44.76760575 | I105: 0 | J105: 10.81513896 | K105: 155.4567118
C106: 1 | G106: =IF(Analyze!G106="","",Analyze!G106) -> 10 | H106: =IF(G106="","",IF(Analyze!Y106="",Analyze!AB106,Analyze!AB106+Analyze!Y106/Summary!$Y$25)) -> 44.76760575 | I106: 0 | J106: 6.33837838 | K106: 156.5382257
C107: 1.01 | G107: =IF(Analyze!G107="","",Analyze!G107) -> 10.1 | H107: =IF(G107="","",IF(Analyze!Y107="",Analyze!AB107,Analyze!AB107+Analyze!Y107/Summary!$Y$25)) -> 44.76760575 | I107: 0 | J107: 1.861617806 | K107: 157.1720635
C108: 1.02 | G108: =IF(Analyze!G108="","",Analyze!G108) -> 10.2 | H108: =IF(G108="","",IF(Analyze!Y108="",Analyze!AB108,Analyze!AB108+Analyze!Y108/Summary!$Y$25)) -> 44.76760575 | I108: 0 | J108: -2.615142769 | K108: 157.3582253
C109: 1.03 | G109: =IF(Analyze!G109="","",Analyze!G109) -> 10.3 | H109: =IF(G109="","",IF(Analyze!Y109="",Analyze!AB109,Analyze!AB109+Analyze!Y109/Summary!$Y$25)) -> 44.76760575 | I109: 0 | J109: -7.091903344 | K109: 157.096711
C110: 1.04 | G110: =IF(Analyze!G110="","",Analyze!G110) -> 10.4 | H110: =IF(G110="","",IF(Analyze!Y110="",Analyze!AB110,Analyze!AB110+Analyze!Y110/Summary!$Y$25)) -> 44.76760575 | I110: 0 | J110: -11.56866392 | K110: 156.3875207
C111: 1.05 | G111: =IF(Analyze!G111="","",Analyze!G111) -> 10.5 | H111: =IF(G111="","",IF(Analyze!Y111="",Analyze!AB111,Analyze!AB111+Analyze!Y111/Summary!$Y$25)) -> 44.76760575 | I111: 0 | J111: -16.04542449 | K111: 155.2306543
C112: 1.06 | G112: =IF(Analyze!G112="","",Analyze!G112) -> 10.6 | H112: =IF(G112="","",IF(Analyze!Y112="",Analyze!AB112,Analyze!AB112+Analyze!Y112/Summary!$Y$25)) -> 44.76760575 | I112: 0 | J112: -20.52218507 | K112: 153.6261118
C113: 1.07 | G113: =IF(Analyze!G113="","",Analyze!G113) -> 10.7 | H113: =IF(G113="","",IF(Analyze!Y113="",Analyze!AB113,Analyze!AB113+Analyze!Y113/Summary!$Y$25)) -> 44.76760575 | I113: 0 | J113: -24.99894564 | K113: 151.5738933
C114: 1.08 | G114: =IF(Analyze!G114="","",Analyze!G114) -> 10.8 | H114: =IF(G114="","",IF(Analyze!Y114="",Analyze!AB114,Analyze!AB114+Analyze!Y114/Summary!$Y$25)) -> 44.76760575 | I114: 0 | J114: -29.47570622 | K114: 149.0739987
C115: 1.09 | G115: =IF(Analyze!G115="","",Analyze!G115) -> 10.9 | H115: =IF(G115="","",IF(Analyze!Y115="",Analyze!AB115,Analyze!AB115+Analyze!Y115/Summary!$Y$25)) -> 44.76760575 | I115: 0 | J115: -33.95246679 | K115: 146.1264281
C116: 1.1 | G116: =IF(Analyze!G116="","",Analyze!G116) -> 11 | H116: =IF(G116="","",IF(Analyze!Y116="",Analyze!AB116,Analyze!AB116+Analyze!Y116/Summary!$Y$25)) -> 44.76760575 | I116: 0 | J116: -38.42922737 | K116: 142.7311814
C117: 1.11 | G117: =IF(Analyze!G117="","",Analyze!G117) -> 11.1 | H117: =IF(G117="","",IF(Analyze!Y117="",Analyze!AB117,Analyze!AB117+Analyze!Y117/Summary!$Y$25)) -> 44.76760575 | I117: 0 | J117: -42.90598794 | K117: 138.8882587
C118: 1.12 | G118: =IF(Analyze!G118="","",Analyze!G118) -> 11.2 | H118: =IF(G118="","",IF(Analyze!Y118="",Analyze!AB118,Analyze!AB118+Analyze!Y118/Summary!$Y$25)) -> 44.76760575 | I118: 0 | J118: -47.38274852 | K118: 134.5976599
C119: 1.13 | G119: =IF(Analyze!G119="","",Analyze!G119) -> 11.3 | H119: =IF(G119="","",IF(Analyze!Y119="",Analyze!AB119,Analyze!AB119+Analyze!Y119/Summary!$Y$25)) -> 44.76760575 | I119: 0 | J119: -51.85950909 | K119: 129.8593851
C120: 1.14 | G120: =IF(Analyze!G120="","",Analyze!G120) -> 11.4 | H120: =IF(G120="","",IF(Analyze!Y120="",Analyze!AB120,Analyze!AB120+Analyze!Y120/Summary!$Y$25)) -> 44.76760575 | I120: 0 | J120: -56.33626967 | K120: 124.6734342
C121: 1.15 | G121: =IF(Analyze!G121="","",Analyze!G121) -> 11.5 | H121: =IF(G121="","",IF(Analyze!Y121="",Analyze!AB121,Analyze!AB121+Analyze!Y121/Summary!$Y$25)) -> 44.76760575 | I121: 0 | J121: -60.81303024 | K121: 119.0398072
C122: 1.16 | G122: =IF(Analyze!G122="","",Analyze!G122) -> 11.6 | H122: =IF(G122="","",IF(Analyze!Y122="",Analyze!AB122,Analyze!AB122+Analyze!Y122/Summary!$Y$25)) -> 44.76760575 | I122: 0 | J122: -65.28979082 | K122: 112.9585042
C123: 1.17 | G123: =IF(Analyze!G123="","",Analyze!G123) -> 11.7 | H123: =IF(G123="","",IF(Analyze!Y123="",Analyze!AB123,Analyze!AB123+Analyze!Y123/Summary!$Y$25)) -> 44.76760575 | I123: 0 | J123: -69.76655139 | K123: 106.4295251
C124: 1.18 | G124: =IF(Analyze!G124="","",Analyze!G124) -> 11.8 | H124: =IF(G124="","",IF(Analyze!Y124="",Analyze!AB124,Analyze!AB124+Analyze!Y124/Summary!$Y$25)) -> 44.76760575 | I124: 205.4217965 | J124: 131.1784845 | K124: 99.45286994
C125: 1.19 | G125: =IF(Analyze!G125="","",Analyze!G125) -> 11.9 | H125: =IF(G125="","",IF(Analyze!Y125="",Analyze!AB125,Analyze!AB125+Analyze!Y125/Summary!$Y$25)) -> 44.76760575 | I125: 0 | J125: 126.701724 | K125: 112.5707184
C126: 1.2 | G126: =IF(Analyze!G126="","",Analyze!G126) -> 12 | H126: =IF(G126="","",IF(Analyze!Y126="",Analyze!AB126,Analyze!AB126+Analyze!Y126/Summary!$Y$25)) -> 44.76760575 | I126: 0 | J126: 122.2249634 | K126: 125.2408908
C127: 1.21 | G127: =IF(Analyze!G127="","",Analyze!G127) -> 12.1 | H127: =IF(G127="","",IF(Analyze!Y127="",Analyze!AB127,Analyze!AB127+Analyze!Y127/Summary!$Y$25)) -> 44.76760575 | I127: 0 | J127: 117.7482028 | K127: 137.4633871
C128: 1.22 | G128: =IF(Analyze!G128="","",Analyze!G128) -> 12.2 | H128: =IF(G128="","",IF(Analyze!Y128="",Analyze!AB128,Analyze!AB128+Analyze!Y128/Summary!$Y$25)) -> 44.76760575 | I128: 0 | J128: 113.2714422 | K128: 149.2382074
C129: 1.23 | G129: =IF(Analyze!G129="","",Analyze!G129) -> 12.3 | H129: =IF(G129="","",IF(Analyze!Y129="",Analyze!AB129,Analyze!AB129+Analyze!Y129/Summary!$Y$25)) -> 44.76760575 | I129: 0 | J129: 108.7946817 | K129: 160.5653516
C130: 1.24 | G130: =IF(Analyze!G130="","",Analyze!G130) -> 12.4 | H130: =IF(G130="","",IF(Analyze!Y130="",Analyze!AB130,Analyze!AB130+Analyze!Y130/Summary!$Y$25)) -> 44.76760575 | I130: 0 | J130: 104.3179211 | K130: 171.4448198
C131: 1.25 | G131: =IF(Analyze!G131="","",Analyze!G131) -> 12.5 | H131: =IF(G131="","",IF(Analyze!Y131="",Analyze!AB131,Analyze!AB131+Analyze!Y131/Summary!$Y$25)) -> 32.88295619 | I131: 0 | J131: 101.0296255 | K131: 181.8766119
C132: 1.26 | G132: =IF(Analyze!G132="","",Analyze!G132) -> 12.6 | H132: =IF(G132="","",IF(Analyze!Y132="",Analyze!AB132,Analyze!AB132+Analyze!Y132/Summary!$Y$25)) -> 32.39406679 | I132: 0 | J132: 97.7902188 | K132: 191.9795745
C133: 1.27 | G133: =IF(Analyze!G133="","",Analyze!G133) -> 12.7 | H133: =IF(G133="","",IF(Analyze!Y133="",Analyze!AB133,Analyze!AB133+Analyze!Y133/Summary!$Y$25)) -> 31.90517739 | I133: 0 | J133: 94.59970106 | K133: 201.7585963
C134: 1.28 | G134: =IF(Analyze!G134="","",Analyze!G134) -> 12.8 | H134: =IF(G134="","",IF(Analyze!Y134="",Analyze!AB134,Analyze!AB134+Analyze!Y134/Summary!$Y$25)) -> 31.41628799 | I134: 0 | J134: 91.45807226 | K134: 211.2185665
C135: =IF(G135="","",G135/10) -> 1.29 | G135: =IF(Analyze!G135="","",Analyze!G135) -> 12.9 | H135: =IF(G135="","",IF(Analyze!Y135="",Analyze!AB135,Analyze!AB135+Analyze!Y135/Summary!$Y$25)) -> 30.92739859 | I135: 0 | J135: 88.3653324 | K135: 220.3643737
C136: 1.3 | G136: =IF(Analyze!G136="","",Analyze!G136) -> 13 | H136: =IF(G136="","",IF(Analyze!Y136="",Analyze!AB136,Analyze!AB136+Analyze!Y136/Summary!$Y$25)) -> 30.43850919 | I136: 0 | J136: =IF(G136="","",(J135+I136-H136*(G136-G135))) -> 85.32148148 | K136: =IF(G136="","",K135+J135*(G136-G135)) -> 229.2009069
C137: 1.31 | G137: =IF(Analyze!G137="","",Analyze!G137) -> 13.1 | H137: =IF(G137="","",IF(Analyze!Y137="",Analyze!AB137,Analyze!AB137+Analyze!Y137/Summary!$Y$25)) -> 29.94961979 | I137: 0 | J137: 82.3265195 | K137: 237.7330551
C138: 1.32 | G138: =IF(Analyze!G138="","",Analyze!G138) -> 13.2 | H138: =IF(G138="","",IF(Analyze!Y138="",Analyze!AB138,Analyze!AB138+Analyze!Y138/Summary!$Y$25)) -> 29.46073039 | I138: 0 | J138: 79.38044646 | K138: 245.965707
C139: 1.33 | G139: =IF(Analyze!G139="","",Analyze!G139) -> 13.3 | H139: =IF(G139="","",IF(Analyze!Y139="",Analyze!AB139,Analyze!AB139+Analyze!Y139/Summary!$Y$25)) -> 28.97184099 | I139: 0 | J139: 76.48326236 | K139: 253.9037517
C140: 1.34 | G140: =IF(Analyze!G140="","",Analyze!G140) -> 13.4 | H140: =IF(G140="","",IF(Analyze!Y140="",Analyze!AB140,Analyze!AB140+Analyze!Y140/Summary!$Y$25)) -> 28.48295159 | I140: 0 | J140: 73.6349672 | K140: 261.5520779
C141: 1.35 | G141: =IF(Analyze!G141="","",Analyze!G141) -> 13.5 | H141: =IF(G141="","",IF(Analyze!Y141="",Analyze!AB141,Analyze!AB141+Analyze!Y141/Summary!$Y$25)) -> 27.99406219 | I141: 0 | J141: 70.83556099 | K141: 268.9155746
C142: 1.36 | G142: =IF(Analyze!G142="","",Analyze!G142) -> 13.6 | H142: =IF(G142="","",IF(Analyze!Y142="",Analyze!AB142,Analyze!AB142+Analyze!Y142/Summary!$Y$25)) -> 27.50517279 | I142: 0 | J142: 68.08504371 | K142: 275.9991307
C143: 1.37 | G143: =IF(Analyze!G143="","",Analyze!G143) -> 13.7 | H143: =IF(G143="","",IF(Analyze!Y143="",Analyze!AB143,Analyze!AB143+Analyze!Y143/Summary!$Y$25)) -> 27.01628339 | I143: 0 | J143: 65.38341537 | K143: 282.8076351
C144: 1.38 | G144: =IF(Analyze!G144="","",Analyze!G144) -> 13.8 | H144: =IF(G144="","",IF(Analyze!Y144="",Analyze!AB144,Analyze!AB144+Analyze!Y144/Summary!$Y$25)) -> 26.52739399 | I144: 0 | J144: 62.73067597 | K144: 289.3459766
C145: 1.39 | G145: =IF(Analyze!G145="","",Analyze!G145) -> 13.9 | H145: =IF(G145="","",IF(Analyze!Y145="",Analyze!AB145,Analyze!AB145+Analyze!Y145/Summary!$Y$25)) -> 26.03850459 | I145: 0 | J145: 60.12682551 | K145: 295.6190442
C146: 1.4 | G146: =IF(Analyze!G146="","",Analyze!G146) -> 14 | H146: =IF(G146="","",IF(Analyze!Y146="",Analyze!AB146,Analyze!AB146+Analyze!Y146/Summary!$Y$25)) -> 25.54961519 | I146: 0 | J146: 57.57186399 | K146: 301.6317268
C147: 1.41 | G147: =IF(Analyze!G147="","",Analyze!G147) -> 14.1 | H147: =IF(G147="","",IF(Analyze!Y147="",Analyze!AB147,Analyze!AB147+Analyze!Y147/Summary!$Y$25)) -> 25.06072579 | I147: 0 | J147: 55.06579141 | K147: 307.3889132
C148: 1.42 | G148: =IF(Analyze!G148="","",Analyze!G148) -> 14.2 | H148: =IF(G148="","",IF(Analyze!Y148="",Analyze!AB148,Analyze!AB148+Analyze!Y148/Summary!$Y$25)) -> 24.57183639 | I148: 0 | J148: 52.60860777 | K148: 312.8954923
C149: 1.43 | G149: =IF(Analyze!G149="","",Analyze!G149) -> 14.3 | H149: =IF(G149="","",IF(Analyze!Y149="",Analyze!AB149,Analyze!AB149+Analyze!Y149/Summary!$Y$25)) -> 24.08294699 | I149: 0 | J149: 50.20031307 | K149: 318.1563531
C150: 1.44 | G150: =IF(Analyze!G150="","",Analyze!G150) -> 14.4 | H150: =IF(G150="","",IF(Analyze!Y150="",Analyze!AB150,Analyze!AB150+Analyze!Y150/Summary!$Y$25)) -> 23.59405759 | I150: 0 | J150: 47.84090731 | K150: 323.1763844
C151: 1.45 | G151: =IF(Analyze!G151="","",Analyze!G151) -> 14.5 | H151: =IF(G151="","",IF(Analyze!Y151="",Analyze!AB151,Analyze!AB151+Analyze!Y151/Summary!$Y$25)) -> 23.10516819 | I151: 0 | J151: 45.5303905 | K151: 327.9604751
C152: 1.46 | G152: =IF(Analyze!G152="","",Analyze!G152) -> 14.6 | H152: =IF(G152="","",IF(Analyze!Y152="",Analyze!AB152,Analyze!AB152+Analyze!Y152/Summary!$Y$25)) -> 22.61627879 | I152: 0 | J152: 43.26876262 | K152: 332.5135142
C153: 1.47 | G153: =IF(Analyze!G153="","",Analyze!G153) -> 14.7 | H153: =IF(G153="","",IF(Analyze!Y153="",Analyze!AB153,Analyze!AB153+Analyze!Y153/Summary!$Y$25)) -> 22.12738939 | I153: 0 | J153: 41.05602368 | K153: 336.8403904
C154: 1.48 | G154: =IF(Analyze!G154="","",Analyze!G154) -> 14.8 | H154: =IF(G154="","",IF(Analyze!Y154="",Analyze!AB154,Analyze!AB154+Analyze!Y154/Summary!$Y$25)) -> 21.63849999 | I154: 0 | J154: 38.89217368 | K154: 340.9459928
C155: 1.49 | G155: =IF(Analyze!G155="","",Analyze!G155) -> 14.9 | H155: =IF(G155="","",IF(Analyze!Y155="",Analyze!AB155,Analyze!AB155+Analyze!Y155/Summary!$Y$25)) -> 19.9396753 | I155: 0 | J155: 36.89820615 | K155: 344.8352102
C156: 1.5 | G156: =IF(Analyze!G156="","",Analyze!G156) -> 15 | H156: =IF(G156="","",IF(Analyze!Y156="",Analyze!AB156,Analyze!AB156+Analyze!Y156/Summary!$Y$25)) -> 18.24085061 | I156: 0 | J156: 35.07412109 | K156: 348.5250308
C157: 1.51 | G157: =IF(Analyze!G157="","",Analyze!G157) -> 15.1 | H157: =IF(G157="","",IF(Analyze!Y157="",Analyze!AB157,Analyze!AB157+Analyze!Y157/Summary!$Y$25)) -> 16.54202591 | I157: 0 | J157: 33.4199185 | K157: 352.0324429
C158: 1.52 | G158: =IF(Analyze!G158="","",Analyze!G158) -> 15.2 | H158: =IF(G158="","",IF(Analyze!Y158="",Analyze!AB158,Analyze!AB158+Analyze!Y158/Summary!$Y$25)) -> 14.84320122 | I158: 0 | J158: 31.93559838 | K158: 355.3744348
C159: 1.53 | G159: =IF(Analyze!G159="","",Analyze!G159) -> 15.3 | H159: =IF(G159="","",IF(Analyze!Y159="",Analyze!AB159,Analyze!AB159+Analyze!Y159/Summary!$Y$25)) -> 13.14437653 | I159: 0 | J159: 30.62116072 | K159: 358.5679946
C160: 1.54 | G160: =IF(Analyze!G160="","",Analyze!G160) -> 15.4 | H160: =IF(G160="","",IF(Analyze!Y160="",Analyze!AB160,Analyze!AB160+Analyze!Y160/Summary!$Y$25)) -> 11.44555184 | I160: 0 | J160: 29.47660554 | K160: 361.6301107
C161: 1.55 | G161: =IF(Analyze!G161="","",Analyze!G161) -> 15.5 | H161: =IF(G161="","",IF(Analyze!Y161="",Analyze!AB161,Analyze!AB161+Analyze!Y161/Summary!$Y$25)) -> 9.746727151 | I161: 0 | J161: 28.50193282 | K161: 364.5777712
C162: 1.56 | G162: =IF(Analyze!G162="","",Analyze!G162) -> 15.6 | H162: =IF(G162="","",IF(Analyze!Y162="",Analyze!AB162,Analyze!AB162+Analyze!Y162/Summary!$Y$25)) -> 8.04790246 | I162: 0 | J162: 27.69714258 | K162: 367.4279645
C163: 1.57 | G163: =IF(Analyze!G163="","",Analyze!G163) -> 15.7 | H163: =IF(G163="","",IF(Analyze!Y163="",Analyze!AB163,Analyze!AB163+Analyze!Y163/Summary!$Y$25)) -> 6.34907777 | I163: 0 | J163: 27.0622348 | K163: 370.1976788
C164: 1.58 | G164: =IF(Analyze!G164="","",Analyze!G164) -> 15.8 | H164: =IF(G164="","",IF(Analyze!Y164="",Analyze!AB164,Analyze!AB164+Analyze!Y164/Summary!$Y$25)) -> 4.650253079 | I164: 0 | J164: 26.59720949 | K164: 372.9039022
C165: 1.59 | G165: =IF(Analyze!G165="","",Analyze!G165) -> 15.9 | H165: =IF(G165="","",IF(Analyze!Y165="",Analyze!AB165,Analyze!AB165+Analyze!Y165/Summary!$Y$25)) -> 2.951428388 | I165: 0 | J165: 26.30206665 | K165: 375.5636232
C166: 1.6 | G166: =IF(Analyze!G166="","",Analyze!G166) -> 16 | H166: =IF(G166="","",IF(Analyze!Y166="",Analyze!AB166,Analyze!AB166+Analyze!Y166/Summary!$Y$25)) -> 1.252603697 | I166: 0 | J166: 26.17680628 | K166: 378.1938298
C167: 1.61 | G167: =IF(Analyze!G167="","",Analyze!G167) -> 16.1 | H167: =IF(G167="","",IF(Analyze!Y167="",Analyze!AB167,Analyze!AB167+Analyze!Y167/Summary!$Y$25)) -> -0.4462209938 | I167: 0 | J167: 26.22142838 | K167: 380.8115105
C168: 1.62 | G168: =IF(Analyze!G168="","",Analyze!G168) -> 16.2 | H168: =IF(G168="","",IF(Analyze!Y168="",Analyze!AB168,Analyze!AB168+Analyze!Y168/Summary!$Y$25)) -> -2.145045685 | I168: 0 | J168: 26.43593295 | K168: 383.4336533
C169: 1.63 | G169: =IF(Analyze!G169="","",Analyze!G169) -> 16.3 | H169: =IF(G169="","",IF(Analyze!Y169="",Analyze!AB169,Analyze!AB169+Analyze!Y169/Summary!$Y$25)) -> -3.843870375 | I169: 0 | J169: 26.82031999 | K169: 386.0772466
C170: 1.64 | G170: =IF(Analyze!G170="","",Analyze!G170) -> 16.4 | H170: =IF(G170="","",IF(Analyze!Y170="",Analyze!AB170,Analyze!AB170+Analyze!Y170/Summary!$Y$25)) -> -5.542695066 | I170: 0 | J170: 27.3745895 | K170: 388.7592786
C171: 1.65 | G171: =IF(Analyze!G171="","",Analyze!G171) -> 16.5 | H171: =IF(G171="","",IF(Analyze!Y171="",Analyze!AB171,Analyze!AB171+Analyze!Y171/Summary!$Y$25)) -> -7.241519757 | I171: 0 | J171: 28.09874147 | K171: 391.4967376
C172: 1.66 | G172: =IF(Analyze!G172="","",Analyze!G172) -> 16.6 | H172: =IF(G172="","",IF(Analyze!Y172="",Analyze!AB172,Analyze!AB172+Analyze!Y172/Summary!$Y$25)) -> -8.940344448 | I172: 0 | J172: 28.99277592 | K172: 394.3066117
C173: 1.67 | G173: =IF(Analyze!G173="","",Analyze!G173) -> 16.7 | H173: =IF(G173="","",IF(Analyze!Y173="",Analyze!AB173,Analyze!AB173+Analyze!Y173/Summary!$Y$25)) -> -10.63916914 | I173: 0 | J173: 30.05669283 | K173: 397.2058893
C174: 1.68 | G174: =IF(Analyze!G174="","",Analyze!G174) -> 16.8 | H174: =IF(G174="","",IF(Analyze!Y174="",Analyze!AB174,Analyze!AB174+Analyze!Y174/Summary!$Y$25)) -> -12.33799383 | I174: 0 | J174: 31.29049221 | K174: 400.2115586
C175: 1.69 | G175: =IF(Analyze!G175="","",Analyze!G175) -> 16.9 | H175: =IF(G175="","",IF(Analyze!Y175="",Analyze!AB175,Analyze!AB175+Analyze!Y175/Summary!$Y$25)) -> -14.03681852 | I175: 0 | J175: 32.69417406 | K175: 403.3406078
C176: 1.7 | G176: =IF(Analyze!G176="","",Analyze!G176) -> 17 | H176: =IF(G176="","",IF(Analyze!Y176="",Analyze!AB176,Analyze!AB176+Analyze!Y176/Summary!$Y$25)) -> -15.73564321 | I176: 0 | J176: 34.26773839 | K176: 406.6100252
C177: 1.71 | G177: =IF(Analyze!G177="","",Analyze!G177) -> 17.1 | H177: =IF(G177="","",IF(Analyze!Y177="",Analyze!AB177,Analyze!AB177+Analyze!Y177/Summary!$Y$25)) -> -17.4344679 | I177: 0 | J177: 36.01118518 | K177: 410.036799
C178: 1.72 | G178: =IF(Analyze!G178="","",Analyze!G178) -> 17.2 | H178: =IF(G178="","",IF(Analyze!Y178="",Analyze!AB178,Analyze!AB178+Analyze!Y178/Summary!$Y$25)) -> -19.13329259 | I178: 0 | J178: 37.92451444 | K178: 413.6379176
C179: 1.73 | G179: =IF(Analyze!G179="","",Analyze!G179) -> 17.3 | H179: =IF(G179="","",IF(Analyze!Y179="",Analyze!AB179,Analyze!AB179+Analyze!Y179/Summary!$Y$25)) -> -20.83211728 | I179: 0 | J179: 40.00772616 | K179: 417.430369
C180: 1.74 | G180: =IF(Analyze!G180="","",Analyze!G180) -> 17.4 | H180: =IF(G180="","",IF(Analyze!Y180="",Analyze!AB180,Analyze!AB180+Analyze!Y180/Summary!$Y$25)) -> -22.53094197 | I180: 0 | J180: 42.26082036 | K180: 421.4311416
C181: 1.75 | G181: =IF(Analyze!G181="","",Analyze!G181) -> 17.5 | H181: =IF(G181="","",IF(Analyze!Y181="",Analyze!AB181,Analyze!AB181+Analyze!Y181/Summary!$Y$25)) -> -24.22976667 | I181: 0 | J181: 44.68379703 | K181: 425.6572237
C182: 1.76 | G182: =IF(Analyze!G182="","",Analyze!G182) -> 17.6 | H182: =IF(G182="","",IF(Analyze!Y182="",Analyze!AB182,Analyze!AB182+Analyze!Y182/Summary!$Y$25)) -> -25.92859136 | I182: 0 | J182: 47.27665616 | K182: 430.1256034
C183: 1.77 | G183: =IF(Analyze!G183="","",Analyze!G183) -> 17.7 | H183: =IF(G183="","",IF(Analyze!Y183="",Analyze!AB183,Analyze!AB183+Analyze!Y183/Summary!$Y$25)) -> -27.62741605 | I183: 0 | J183: 50.03939777 | K183: 434.853269
C184: 1.78 | G184: =IF(Analyze!G184="","",Analyze!G184) -> 17.8 | H184: =IF(G184="","",IF(Analyze!Y184="",Analyze!AB184,Analyze!AB184+Analyze!Y184/Summary!$Y$25)) -> -29.32624074 | I184: 0 | J184: 52.97202184 | K184: 439.8572088
C185: 1.79 | G185: =IF(Analyze!G185="","",Analyze!G185) -> 17.9 | H185: =IF(G185="","",IF(Analyze!Y185="",Analyze!AB185,Analyze!AB185+Analyze!Y185/Summary!$Y$25)) -> -31.02506543 | I185: 0 | J185: 56.07452838 | K185: 445.1544109
C186: 1.8 | G186: =IF(Analyze!G186="","",Analyze!G186) -> 18 | H186: =IF(G186="","",IF(Analyze!Y186="",Analyze!AB186,Analyze!AB186+Analyze!Y186/Summary!$Y$25)) -> -32.72389012 | I186: 0 | J186: 59.3469174 | K186: 450.7618638
C187: 1.81 | G187: =IF(Analyze!G187="","",Analyze!G187) -> 18.1 | H187: =IF(G187="","",IF(Analyze!Y187="",Analyze!AB187,Analyze!AB187+Analyze!Y187/Summary!$Y$25)) -> -34.42271481 | I187: 0 | J187: 62.78918888 | K187: 456.6965555
C188: 1.82 | G188: =IF(Analyze!G188="","",Analyze!G188) -> 18.2 | H188: =IF(G188="","",IF(Analyze!Y188="",Analyze!AB188,Analyze!AB188+Analyze!Y188/Summary!$Y$25)) -> -36.1215395 | I188: 0 | J188: 66.40134283 | K188: 462.9754744
C189: 1.83 | G189: =IF(Analyze!G189="","",Analyze!G189) -> 18.3 | H189: =IF(G189="","",IF(Analyze!Y189="",Analyze!AB189,Analyze!AB189+Analyze!Y189/Summary!$Y$25)) -> -37.82036419 | I189: 0 | J189: 70.18337925 | K189: 469.6156087
C190: 1.84 | G190: =IF(Analyze!G190="","",Analyze!G190) -> 18.4 | H190: =IF(G190="","",IF(Analyze!Y190="",Analyze!AB190,Analyze!AB190+Analyze!Y190/Summary!$Y$25)) -> -39.51918888 | I190: 0 | J190: 74.13529814 | K190: 476.6339466
C191: 1.85 | G191: =IF(Analyze!G191="","",Analyze!G191) -> 18.5 | H191: =IF(G191="","",IF(Analyze!Y191="",Analyze!AB191,Analyze!AB191+Analyze!Y191/Summary!$Y$25)) -> -41.21801357 | I191: 0 | J191: 78.25709949 | K191: 484.0474764
G192: =IF(Analyze!G192="","",Analyze!G192) ->  | H192: =IF(G192="","",IF(Analyze!Y192="",Analyze!AB192,Analyze!AB192+Analyze!Y192/Summary!$Y$25)) ->  | I192: 0
G193: =IF(Analyze!G193="","",Analyze!G193) ->  | H193: =IF(G193="","",IF(Analyze!Y193="",Analyze!AB193,Analyze!AB193+Analyze!Y193/Summary!$Y$25)) ->  | I193: 0
G194: =IF(Analyze!G194="","",Analyze!G194) ->  | H194: =IF(G194="","",IF(Analyze!Y194="",Analyze!AB194,Analyze!AB194+Analyze!Y194/Summary!$Y$25)) ->  | I194: 0
G195: =IF(Analyze!G195="","",Analyze!G195) ->  | H195: =IF(G195="","",IF(Analyze!Y195="",Analyze!AB195,Analyze!AB195+Analyze!Y195/Summary!$Y$25)) ->  | I195: 0
G196: =IF(Analyze!G196="","",Analyze!G196) ->  | H196: =IF(G196="","",IF(Analyze!Y196="",Analyze!AB196,Analyze!AB196+Analyze!Y196/Summary!$Y$25)) ->  | I196: 0
G197: =IF(Analyze!G197="","",Analyze!G197) ->  | H197: =IF(G197="","",IF(Analyze!Y197="",Analyze!AB197,Analyze!AB197+Analyze!Y197/Summary!$Y$25)) -> 
G198: =IF(Analyze!G198="","",Analyze!G198) ->  | H198: =IF(G198="","",IF(Analyze!Y198="",Analyze!AB198,Analyze!AB198+Analyze!Y198/Summary!$Y$25)) -> 
C199: =IF(G199="","",G199/10) ->  | G199: =IF(Analyze!G199="","",Analyze!G199) ->  | H199: =IF(G199="","",IF(Analyze!Y199="",Analyze!AB199,Analyze!AB199+Analyze!Y199/Summary!$Y$25)) -> 
G200: =IF(Analyze!G200="","",Analyze!G200) ->  | H200: =IF(G200="","",IF(Analyze!Y200="",Analyze!AB200,Analyze!AB200+Analyze!Y200/Summary!$Y$25)) ->  | J200: =IF(G200="","",(J199+I200-H200*(G200-G199))) ->  | K200: =IF(G200="","",K199+J199*(G200-G199)) -> 
G201: =IF(Analyze!G201="","",Analyze!G201) ->  | H201: =IF(G201="","",IF(Analyze!Y201="",Analyze!AB201,Analyze!AB201+Analyze!Y201/Summary!$Y$25)) -> 
G202: =IF(Analyze!G202="","",Analyze!G202) ->  | H202: =IF(G202="","",IF(Analyze!Y202="",Analyze!AB202,Analyze!AB202+Analyze!Y202/Summary!$Y$25)) -> 
G203: =IF(Analyze!G203="","",Analyze!G203) ->  | H203: =IF(G203="","",IF(Analyze!Y203="",Analyze!AB203,Analyze!AB203+Analyze!Y203/Summary!$Y$25)) -> 
... 807 more rows

Sheet Summary
B2: Summary:
N4: Soil Data:
D5: Geometry: | P5: Thickness (m) | Q5: g (kN/m3) | R5: gsat (kN/m3) | S5: C (kPa) | T5: ф | U5: δ | V5: Fs фa | W5: Fs фp | X5: Fs C
E6: H (m): | F6: =h -> 12.5 | O6: Soil 1 | P6: =IF(Analyze!AH24="","",Analyze!AH24) -> 28 | Q6: =IF(Analyze!AI24="","",Analyze!AI24) -> 19 | R6: =IF(Analyze!AJ24="","",Analyze!AJ24) -> 19 | S6: =IF(Analyze!AK24="","",Analyze!AK24) -> 40 | T6: =IF(Analyze!AL24="","",Analyze!AL24) -> 36 | U6: =IF(Analyze!AM24="","",Analyze!AM24) -> 0 | V6: =IF(Analyze!AN24="","",Analyze!AN24) -> 1 | W6: =IF(Analyze!AO24="","",Analyze!AO24) -> 1.2 | X6: =IF(Analyze!AP24="","",Analyze!AP24) -> 1
E7: D (m): | F7: =d -> 6 | O7: Soil 2 | P7: =IF(Analyze!AH25="","",Analyze!AH25) ->  | Q7: =IF(Analyze!AI25="","",Analyze!AI25) ->  | R7: =IF(Analyze!AJ25="","",Analyze!AJ25) ->  | S7: =IF(Analyze!AK25="","",Analyze!AK25) ->  | T7: =IF(Analyze!AL25="","",Analyze!AL25) ->  | U7: =IF(Analyze!AM25="","",Analyze!AM25) ->  | V7: =IF(Analyze!AN25="","",Analyze!AN25) ->  | W7: =IF(Analyze!AO25="","",Analyze!AO25) ->  | X7: =IF(Analyze!AP25="","",Analyze!AP25) -> 
E8: q Dead (kPa) | F8: =Analyze!E4 -> 0 | O8: Soil 3 | P8: =IF(Analyze!AH26="","",Analyze!AH26) ->  | Q8: =IF(Analyze!AI26="","",Analyze!AI26) ->  | R8: =IF(Analyze!AJ26="","",Analyze!AJ26) ->  | S8: =IF(Analyze!AK26="","",Analyze!AK26) ->  | T8: =IF(Analyze!AL26="","",Analyze!AL26) ->  | U8: =IF(Analyze!AM26="","",Analyze!AM26) ->  | V8: =IF(Analyze!AN26="","",Analyze!AN26) ->  | W8: =IF(Analyze!AO26="","",Analyze!AO26) ->  | X8: =IF(Analyze!AP26="","",Analyze!AP26) -> 
E9: q Live (kPa) | F9: =Analyze!E5 -> 200 | O9: Soil 4 | P9: =IF(Analyze!AH27="","",Analyze!AH27) ->  | Q9: =IF(Analyze!AI27="","",Analyze!AI27) ->  | R9: =IF(Analyze!AJ27="","",Analyze!AJ27) ->  | S9: =IF(Analyze!AK27="","",Analyze!AK27) ->  | T9: =IF(Analyze!AL27="","",Analyze!AL27) ->  | U9: =IF(Analyze!AM27="","",Analyze!AM27) ->  | V9: =IF(Analyze!AN27="","",Analyze!AN27) ->  | W9: =IF(Analyze!AO27="","",Analyze!AO27) ->  | X9: =IF(Analyze!AP27="","",Analyze!AP27) -> 
E10: Length Of Surcharge (m) | F10: =Analyze!A34 -> 40 | O10: Soil 5 | P10: =IF(Analyze!AH28="","",Analyze!AH28) ->  | Q10: =IF(Analyze!AI28="","",Analyze!AI28) ->  | R10: =IF(Analyze!AJ28="","",Analyze!AJ28) ->  | S10: =IF(Analyze!AK28="","",Analyze!AK28) ->  | T10: =IF(Analyze!AL28="","",Analyze!AL28) ->  | U10: =IF(Analyze!AM28="","",Analyze!AM28) ->  | V10: =IF(Analyze!AN28="","",Analyze!AN28) ->  | W10: =IF(Analyze!AO28="","",Analyze!AO28) ->  | X10: =IF(Analyze!AP28="","",Analyze!AP28) -> 
E11: β (Degrees): | F11: =Analyze!E7 -> 0 | O11: Soil 6 | P11: =IF(Analyze!AH29="","",Analyze!AH29) ->  | Q11: =IF(Analyze!AI29="","",Analyze!AI29) ->  | R11: =IF(Analyze!AJ29="","",Analyze!AJ29) ->  | S11: =IF(Analyze!AK29="","",Analyze!AK29) ->  | T11: =IF(Analyze!AL29="","",Analyze!AL29) ->  | U11: =IF(Analyze!AM29="","",Analyze!AM29) ->  | V11: =IF(Analyze!AN29="","",Analyze!AN29) ->  | W11: =IF(Analyze!AO29="","",Analyze!AO29) ->  | X11: =IF(Analyze!AP29="","",Analyze!AP29) -> 
E12: α (Degrees): | F12: =Analyze!E9 -> 90 | O12: Soil 7 | P12: =IF(Analyze!AH30="","",Analyze!AH30) ->  | Q12: =IF(Analyze!AI30="","",Analyze!AI30) ->  | R12: =IF(Analyze!AJ30="","",Analyze!AJ30) ->  | S12: =IF(Analyze!AK30="","",Analyze!AK30) ->  | T12: =IF(Analyze!AL30="","",Analyze!AL30) ->  | U12: =IF(Analyze!AM30="","",Analyze!AM30) ->  | V12: =IF(Analyze!AN30="","",Analyze!AN30) ->  | W12: =IF(Analyze!AO30="","",Analyze!AO30) ->  | X12: =IF(Analyze!AP30="","",Analyze!AP30) -> 
O13: Soil 8 | P13: =IF(Analyze!AH31="","",Analyze!AH31) ->  | Q13: =IF(Analyze!AI31="","",Analyze!AI31) ->  | R13: =IF(Analyze!AJ31="","",Analyze!AJ31) ->  | S13: =IF(Analyze!AK31="","",Analyze!AK31) ->  | T13: =IF(Analyze!AL31="","",Analyze!AL31) ->  | U13: =IF(Analyze!AM31="","",Analyze!AM31) ->  | V13: =IF(Analyze!AN31="","",Analyze!AN31) ->  | W13: =IF(Analyze!AO31="","",Analyze!AO31) ->  | X13: =IF(Analyze!AP31="","",Analyze!AP31) -> 
O14: Soil 9 | P14: =IF(Analyze!AH32="","",Analyze!AH32) ->  | Q14: =IF(Analyze!AI32="","",Analyze!AI32) ->  | R14: =IF(Analyze!AJ32="","",Analyze!AJ32) ->  | S14: =IF(Analyze!AK32="","",Analyze!AK32) ->  | T14: =IF(Analyze!AL32="","",Analyze!AL32) ->  | U14: =IF(Analyze!AM32="","",Analyze!AM32) ->  | V14: =IF(Analyze!AN32="","",Analyze!AN32) ->  | W14: =IF(Analyze!AO32="","",Analyze!AO32) ->  | X14: =IF(Analyze!AP32="","",Analyze!AP32) -> 
O15: Soil 10 | P15: =IF(Analyze!AH33="","",Analyze!AH33) ->  | Q15: =IF(Analyze!AI33="","",Analyze!AI33) ->  | R15: =IF(Analyze!AJ33="","",Analyze!AJ33) ->  | S15: =IF(Analyze!AK33="","",Analyze!AK33) ->  | T15: =IF(Analyze!AL33="","",Analyze!AL33) ->  | U15: =IF(Analyze!AM33="","",Analyze!AM33) ->  | V15: =IF(Analyze!AN33="","",Analyze!AN33) ->  | W15: =IF(Analyze!AO33="","",Analyze!AO33) ->  | X15: =IF(Analyze!AP33="","",Analyze!AP33) -> 
C17: Struts: | O17: γave (kN/m3) | P17: =g -> 19 | R17: C ave (kPa) | S17: =ca -> 40 | U17: Ka ave | V17: =ka -> 0.2596161837
E18: Depth (m) | F18: Angle (Degrees) | G18: Spacing (m) | H18: Strut Force (kN) | I18: Unbonded Length (m) | J18: bonded Length (m) | K18: Total Length (m)
D19: Strut 1 | E19: =IF(F19="","",IF(Analyze!AH6="","",Analyze!AH6)) -> 0 | F19: =IF(Analyze!AI6="","",Analyze!AI6) -> 35 | G19: =IF(Analyze!AJ6="","",Analyze!AJ6) -> 6 | H19: =IF(E19="","",Analyze!AN6*Analyze!AJ6) -> 159.5094219 | I19: =IF(E19="","",Draw!H7) -> 9.76619671 | J19: =IF(E19="","",Draw!K7) -> 2.115559413 | K19: =IF(E19="","",J19+I19) -> 11.88175612 | O19: Ke | P19: =Analyze!E11 -> 0
D20: Strut 2 | E20: =IF(F20="","",IF(Analyze!AH7="","",Analyze!AH7)) -> 3.8 | F20: =IF(Analyze!AI7="","",Analyze!AI7) -> 15 | G20: =IF(Analyze!AJ7="","",Analyze!AJ7) -> 3 | H20: =IF(E20="","",Analyze!AN7*Analyze!AJ7) -> 495.2782818 | I20: =IF(E20="","",Draw!H8) -> 8.075154207 | J20: =IF(E20="","",Draw!K8) -> 6.568832229 | K20: =IF(E20="","",J20+I20) -> 14.64398644
D21: Strut 3 | E21: =IF(F21="","",IF(Analyze!AH8="","",Analyze!AH8)) -> 7.8 | F21: =IF(Analyze!AI8="","",Analyze!AI8) -> 15 | G21: =IF(Analyze!AJ8="","",Analyze!AJ8) -> 3 | H21: =IF(E21="","",Analyze!AN8*Analyze!AJ8) -> 556.1546715 | I21: =IF(E21="","",Draw!H9) -> 6.211657082 | J21: =IF(E21="","",Draw!K9) -> 7.376230424 | K21: 13.58788751
D22: Strut 4 | E22: =IF(F22="","",IF(Analyze!AH9="","",Analyze!AH9)) -> 11.8 | F22: =IF(Analyze!AI9="","",Analyze!AI9) -> 15 | G22: =IF(Analyze!AJ9="","",Analyze!AJ9) -> 3 | H22: =IF(E22="","",Analyze!AN9*Analyze!AJ9) -> 583.962405 | I22: =IF(E22="","",Draw!H10) -> 4.5 | J22: =IF(E22="","",Draw!K10) -> 7.745041945 | K22: 12.24504195 | N22: Forces: | S22: Methods:
D23: Strut 5 | E23: =IF(F23="","",IF(Analyze!AH10="","",Analyze!AH10)) ->  | F23: =IF(Analyze!AI10="","",Analyze!AI10) ->  | G23: =IF(Analyze!AJ10="","",Analyze!AJ10) ->  | H23: =IF(E23="","",Analyze!AN10*Analyze!AJ10) ->  | I23: =IF(E23="","",Draw!H11) ->  | J23: =IF(E23="","",Draw!K11) ->  | O23: Pa(kN) | P23: =Analyze!AH20 -> 517.6254415
D24: Strut 6 | E24: =IF(F24="","",IF(Analyze!AH11="","",Analyze!AH11)) ->  | F24: =IF(Analyze!AI11="","",Analyze!AI11) ->  | G24: =IF(Analyze!AJ11="","",Analyze!AJ11) ->  | H24: =IF(E24="","",Analyze!AN11*Analyze!AJ11) ->  | I24: =IF(E24="","",Draw!H12) ->  | J24: =IF(E24="","",Draw!K12) ->  | O24: Fa (e) (kN) | P24: =Analyze!AH21 -> 0 | T24: Distribution Method: | U24: =Analyze!AO17 -> Puller
D25: Strut 7 | E25: =IF(F25="","",IF(Analyze!AH12="","",Analyze!AH12)) ->  | F25: =IF(Analyze!AI12="","",Analyze!AI12) ->  | G25: =IF(Analyze!AJ12="","",Analyze!AJ12) ->  | H25: =IF(E25="","",Analyze!AN12*Analyze!AJ12) ->  | I25: =IF(E25="","",Draw!H13) ->  | J25: =IF(E25="","",Draw!K13) ->  | O25: Hydroststic Force (kN) | P25: =Analyze!AK18 -> 0 | X25: FS: | Y25: =Analyze!AR18 -> 11.65907871
D26: Strut 8 | E26: =IF(F26="","",IF(Analyze!AH13="","",Analyze!AH13)) ->  | F26: =IF(Analyze!AI13="","",Analyze!AI13) ->  | G26: =IF(Analyze!AJ13="","",Analyze!AJ13) ->  | H26: =IF(E26="","",Analyze!AN13*Analyze!AJ13) ->  | I26: =IF(E26="","",Draw!H14) ->  | J26: =IF(E26="","",Draw!K14) ->  | O26: Area(kN) | P26: =Analyze!AK19 -> 662.5605651 | T26: Strut Method: | U26: =Analyze!AO19 -> Half Method
D27: Strut 9 | E27: =IF(F27="","",IF(Analyze!AH14="","",Analyze!AH14)) ->  | F27: =IF(Analyze!AI14="","",Analyze!AI14) ->  | G27: =IF(Analyze!AJ14="","",Analyze!AJ14) ->  | H27: =IF(E27="","",Analyze!AN14*Analyze!AJ14) ->  | I27: =IF(E27="","",Draw!H15) ->  | J27: =IF(E27="","",Draw!K15) ->  | O27: Fp(kN) | P27: =Analyze!AK20 -> 1331.675386
D28: Strut 10 | E28: =IF(F28="","",IF(Analyze!AH15="","",Analyze!AH15)) ->  | F28: =IF(Analyze!AI15="","",Analyze!AI15) ->  | G28: =IF(Analyze!AJ15="","",Analyze!AJ15) ->  | H28: =IF(E28="","",Analyze!AN15*Analyze!AJ15) ->  | I28: =IF(E28="","",Draw!H16) ->  | J28: =IF(E28="","",Draw!K16) ->  | O28: Z Fp(m) | P28: =Analyze!AK21 -> 16.20358808 | T28: H or H+D | U28: =Analyze!AO21 -> H+D
